Workbook

Sheet Constants (hidden)
C1: Year 1 | K1: 2025
A2: Faculty dropdown menu | C2: VAT calculations
A3: AgriSciences | C3: SA VAT | K3: 0.155
A4: Arts and Social Sciences | C4: Foreign | K4: ='COVER PAGE'!B21 -> NO | L4: From cover page
A5: Economic and Management Sciences | C5: VATForeign | K5: =IF(K4="YES",0%,K3) -> 0.155 | L5: If foreign client, then VAT = 0%
A6: Education
A7: Engineering | C7: Yearly increase in tariff for staff cost | M7: 0.06 | N7: StaffIncrPerc
A8: Law
A9: Medicine and Health Sciences | C9: Equipment exempted from ICRR | K9: 1000000
A10: Military Science
A11: Science | C11: Indirect Costs | K11: =20/80 -> 0.25
A12: Theology
A13: Vice Rector: Learning and Teaching
A14: Vice Rector: Research, Innovation and Postgraduate Studies
A15: Vice Rector: Social Impact, Transformation and Personnel
A17: Currency dropdown
A18: USD
A19: Euro
A20: GBP
A21: CAD
A22: SEK
A23: Other - specify
A26: Legal Advisor dropdown menu
A27: Abdurahman Dhansay
A28: Ayakha Nyangeni
A29: Julie Nadler-Visser
A30: Naseema Sonday
A31: Ollof Esterhuizen
A32: Sandile Rens
A33: Select Legal Advisor
A36: Accountant dropdown menu
A37: Audrey Erasmus
A38: Chantal Hugo
A39: Select Accountant

Sheet COVER PAGE
A1: Project Name | B1: Enter NAME
A2: Principal Investigator | B2: Enter PI name | C2: The Principal Investigator on the project.
A3: Contract number (S-number) | B3: Enter S-number | C3: Supplied by Contracts Office
A4: Funder/Client name | B4: Enter funder | C4: Enter institution / Company name
A5: Legal Advisor | B5: Select Legal Advisor | C5: Select from drop-down list
A6: Full Cost Accountant | B6: Select Accountant | C6: Select from drop-down list
A8: Indirect Cost Recovery Rate (ICRR) | B8: 0.2 | C8: As per SU Policy.
A9: Does the funder restrict the indirect cost percentage allowed? | B9: NO
A10: Indirect Cost Recovery Rate funder restrictions | B10: 0.1 | C10: If the funder restricts the indirect cost recovery rate, please submit proof and indicate allowable percentage. Subject to formal approval by the ICRR committee.
A11: Lower ICRR approved by Dean | B11: YES
A12: Has the application for a lower rate been submitted to the ICRR committee? | B12: YES
A14: Faculty | C14: Select from drop-down list
A15: Department | C15: Please enter Department or Centre name.
A16: Faculty Levy | B16: NO | C16: Consult management regarding Faculty or Departmental levy. If yes, template will automatically calculate the 5% levy on Full Cost and Contract Price budget
A17: Faculty Levy if applicable | B17: =IF(B16="YES",5%,"") ->  | C17: Insert percentage.
A18: Departmental Levy | B18: NO | C18: If yes, template automatically calculates the relevant Departmental Levy on Full Cost and Contract Price budget
A19: Departmental Levy Rate if applicable | C19: Insert percentage.
A21: Foreign Client? | B21: NO | C21: If it is an international funds transaction (not via an RSA institution) then VAT will be zero rated. Select YES if international
A22: Currency: Drop-down | C22: Select currency from dropdown
A23: Specify if not in list | C23: Type Currency if not in list above
A24: Exchange Rate | C24: Fill in exchange rate
A25: Source & date of exchange rate | C25: Please indicate the source and date of exchange rate used.

Sheet INTRODUCTION
A1: INTRODUCTION
B3: By using this template, the contract price will be profitable and within legal and regulatory guidelines.
B4: The Contract Pricing phase of this process allows for extensive PRICE editing, so that the researcher will not lose his/her autonomy: this will simply provide the researcher with a solid decisionmaking base.
B5: This template is a step by step guide to assist you to optimise the planning and costing of Research Contracts
A7: The basic steps:
A8: 1 | B8: INTRODUCTION ( current page) - Contains detailed instructions and hyperlinks to assist you with the budgeting process. This worksheet can be consulted throughout.
A9: 2 | B9: FULL COST BUDGET- Reflects actual cost of the contract/project.
A10: 3 | B10: IP PRICING TOOL - Evaluates the factors that impact the pricing of a contract. These include Intellectual Property and Academic Footprint of a contract.
A11: 4 | B11: CONTRACT PRICE ZAR - Is based on the FULL COST BUDGET. Adjust the CONTRACT PRICE budget after consideration of FULL COST Budget and IP PRICING as determined.
A12: 5 | B12: CONTRACT PRICE FOREX - Is only relevant if your contract is in a foreign currency. The budgeting process will still be completed in the CONTRACT PRICE ZAR, and these amounts will automatically be reflected in this worksheet. (Exchange rate to be filled in on cover page.)
A13: 6 | B13: DEVIATION REPORT- is completed automatically from the FULL COST BUDGET and the CONTRACT PRICE BUDGETS. This information enables you to compare the PROFIT or LOSS at this stage of the budgeting process. This informs any PRICE adjustment that may be required.
A14: 7 | B14: QUOTATION FOR CLIENT- This sheet reflects the CONTRACT PRICE in ZAR as finalised previously and may be collapsed according to the contracting party's requirements. A PDF printout of this serves as the quotation to the client.
A16: Throughout the budgeting process note the following:
A17: 1 | B17: Only type information in the cells that are highlighted - other cells will be protected.
A18: 2 | B18: Do not delete line items you don't need.
A19: 3 | B19: You may change the description in the line items to better suit your project.
A21: To start this process of determining the basic actual cost of a project, click:
B22: FULL COST BUDGET'
A24: FULL COST BUDGET NOTES
A25: (The following numbers correspond to budget item numbers.)
A26: 1.1 | B26: The FULL COST BUDGET uses a standard hourly tariff for each post level. This is simply intended as a calculation of the salary expenses that the university will have with regard to the staff involved in the project. Do not adjust this rate here: the CONTRACT PRICE BUDGET will allow for such adjustments. This rate is inflated annually with 6%. Click the following link to view the latest BRL (Basic Remuneration Levels) as approved by HR:
B27: BRL (Basic Remuneration Levels)
A28: 1.2 | B28: Use the actual amount that external consultants or personnel will invoice SU for services rendered.
A29: 2 | B29: Adhere to SU financial policies and Funder regulations when purchasing equipment as applicable.
A30: 4 | B30: Consult the Division for Research Development to confirm whether an audit is required.
B31: Kindly contact SU Division: Financial Services regarding the amount to budget for an audit, if applicable.
A32: 5 | B32: Refer to the contract to confirm stipulations regarding eligable travel expenses (e.g. certain research contracts do not subsidise conference travel expenditure). It is imperative to distinguish between local and international travel for reporting and auditing purposes.
A33: 8 | B33: The University will recover 20% of the invoice amount (excl IP transfer fee and Bursaries) to recover the indirect cost (support cost) related to third stream income. This template calculates this automatically. To calculate the indirect cost of direct cost manually, multiply the total cost with 25% (20/80).
B34: Research Finances
B35: Exemption from this policy must be formally addressed and confirmed; refer to the Division for Research Development website, as above.
A36: 10 | B36: For VAT exemption on International Funding, SU must receive the payment from a foreign bank account. In all other cases where VAT exemption may relevant , kindly contact the FULL COST ACCOUNTANT for confirmation.
A37: 11 | B37: Please ensure that the contract partner is aware of the bursary budget item and that it will reflect as such on the invoice. Bursaries are exempt from VAT and ICRR on condition that it is invoiced correctly and processed via the SU Student Fees Department.
A39: The following links to the IP Pricing Tool sheet:
B40: IP PRICING TOOL
A42: CONTRACT PRICE ZAR
B43: CONTRACT PRICE ZAR'
A44: 1.1 | B44: In this, the CONTRACT PRICE Budget the salary rates may be adjusted to reflect the commercial salary tariffs that will be charged to the client. Please note, these rates may not be lower than the BRL as used in the FULL COST BUDGET.
A45: 1.2 | B45: Use the actual amount that external consultants or personnel are expected to invoice SU for services rendered.
A46: 2.1 | B46: Adhere to SU financial policies and Funder regulations when purchasing equipment as applicable.
A47: 4 | B47: Consult the Division for Research Development to confirm whether an audit is required. Kindly contact SU Division Financial Services regarding the amount to budget for an audit, if applicable.
A48: 5 | B48: Refer to the contract to confirm stipulations regarding eligable travel expenses (eg certain research contracts do not subsidise conference-travel expenditure). It is imperative to distinguish between local and international travel for reporting and auditing purposes.
A49: 6 | B49: It is advised that the SURPLUS/PROFIT MARGIN line be left at zero at this stage. Once a first iteration of this CONTRACT PRICE is completed, the DEVIATION REPORT will serve as a practical tool to indicate a Profit Margin that may be needed. By returning to edit this entry on the CONTRACT BUDGET at that stage, the DEVIATION may be aligned to an acceptably profitable figure. It is advised that the IP PRICING TOOL's Deciding Factors be consulted in the process of making this decision.
B50: IP PRICING TOOL
A51: 7 | B51: Departmental and/or Faculty Policies need to be complied with. Faculty and Departmental rates, as completed on the Cover Page, are applicable.
B52: COVER PAGE
A53: 8 | B53: The University will recover 20% of the invoice amount (excl IP transfer fee and Bursaries) to recover the indirect cost (support cost) related to third stream income. This template calculates this automatically. To calculate the indirect cost of direct cost manually, multiply the total cost with 25% (20/80).
B54: RESEARCH FINANCE
A55: 9 | B55: An Intellectual Pricing margin may be reflected at this stage. For this fee to be exempt from ICRR, it will need to be reflected on the invoice and charged to the correct income account. In cases where the client should not see such a cost item, this expense will need to be listed under the heading: 6. Other Expenses.
A56: 10 | B56: For VAT exemption on International Funding, SU must receive the payment from a foreign bank account. In all other cases where VAT exemption may be relevant, kindly contact the FULL COST ACCOUNTANT for confirmation.
A57: 11 | B57: Please ensure that the contract partner is aware of the bursary budget item and that it will reflect as such on the invoice. Bursaries are exempt from VAT and ICRR on condition that it is invoiced correctly and processed via the SU Student Fees Department.
A59: DEVIATION REPORT
B60: DEVIATION REPORT'
B61: The total deviation from column P-U indicates your profit/loss at this stage of the budgeting process.
B62: This discrepancy may be used to adjust the CONTRACT PRICE ZAR budget to ensure sufficient profit.
B63: Revisit this DEVIATION REPORT once adjustments have been made to the CONTRACT PRICE ZAR budget.
B64: Upon finalisation of this process kindly proceed to QUOTATION FOR CLIENT for the amounts to be reflected in your contract or quote.
A66: QUOTATION FOR CLIENT
A67: Please note to only send the FINAL QUOTE in PDF format to the client
B68: Detail Quote
B69: Standard Quote
B70: Summarised Quote
A71: 11 | B71: Please ensure that the contract partner is aware of the bursary budget item and that it will reflect as such on the invoice. Bursaries are exempt from VAT and ICRR on condition that it is invoiced correctly and processed via the SU Student Fees Department.

Sheet IP PRICING TOOL
B3: Contract number | C3: =ContractNumber -> Enter S-number
B4: Project name | C4: ='COVER PAGE'!B1 -> Enter NAME
B5: Client | C5: =Client -> Enter funder
B6: Date
B7: SU Project leader | C7: ='COVER PAGE'!B2 -> Enter PI name
B8: Department | C8: =IF(ISBLANK(Department),"",Department) -> 
B9: Faculty | C9: =IF(ISBLANK(Faculty),"",Faculty) -> 
B11: To enable you as a Researcher, your Faculty and the Research Contracts Office to make transparent and auditable decisions with regards to the exploitation of IP in Research Contracts, we kindly request that you complete the attached form for this research contract. Please note that in most cases you will only be required to indicate your choice with an “X”. Please be specific in your choice and where more information is required, complete that comment box in full. We thank you for your assistance in this regard.
A14: STEP 1.1 - COMPLETE FULL COST TEMPLATE
B15: · All research related contracts should be costed on a full cost basis.
B16: · Full Cost budgets must be completed for all contracts, regardless of the type of client and/or the client’s policies.
B17: · Mechanisms are in place to deal with THRIP, NIH, FP7 and similar contracts where directives are applicable.
B18: · The Full Cost budget referred to in this section is based on a “break-even” and DO NOT TAKE ANY PROFITS OR DISCOUNTS in account. The latter will be dealt with in the Contract Price as determined in Step 2.
B19: Click here to Complete Full Cost Budget template
A21: STEP 1.2 - DETERMINE TYPE OF CONTRACT
A22: A YES to any one of these questions immediately classifies the contract as R&D.
A23: i. | B23: Are one or more post graduate students involved in any manner what so ever in the project?
A24: ii. | B24: Are any other university or research institution involved with the project?
A25: iii | B25: Is the contract a Grant or Consortium Agreement?
A26: iv. | B26: Do you plan to publish the results or project outcomes?
A27: v. | B27: Is one or more of the deliverables of the project a Feasibility Study?
A28: vi. | B28: Is there any intention to register a patent that is directly connected to the project?
A29: vii. | B29: Is one or more of the deliverables of the project a process of devising new or substantially improved methods of testing?
A30: viii. | B30: Is one or more of the deliverables a prototype or pilot plant?
A31: ix. | B31: Is one or more of the deliverables the development of new theorems or algorithms, information technology at the level of operating systems and software, internet technology, software development, experimental development to address a gap in technology knowledge?
E32: R&D Contract: | F32: =IF(COUNTA(F23:F31)=0,"",IF(COUNTIF(F23:F31,"YES")>=1,"YES","NO")) -> 
F33: =IF(F32="YES","R&D contract, Proceed to Step 2",IF(IsRDContract="no","Other research related contract; complete Contract price","")) -> 
B34: Quick link na CONTRACT PRICE ZAR
A37: STEP 2 - TABLE 2 (pricing):
A38: According to SU’s Full Cost Policy, all Contracts should be costed on full cost. However, the price is still to be negotiated with the client (without lowering the current indirect Cost Recovery Rate).
A39: Step 2 is a qualitative test and even in an outcome where the indicator leans towards a price at full cost, Step 2 must be completed to assess the potential value of IP emanating from the R&D contract, regardless of Full Cost considerations. Note that Step 2 is done regardless of the IPR Act.
A42: Factors that may influence the Research Contract Price | H42: Weight
A43: Is the Client proposing the project deliverables? | G43: =IF(ISBLANK(F43),"",IF(F43="No","Full cost","More")) ->  | H43: 5 | I43: =IF(G43="Full cost",1,0) -> 0
A44: Is SU initiating a project and seek funding? | G44: =IF(ISBLANK(F44),"",IF(F44="Yes","Full cost","More")) ->  | H44: 5 | I44: =IF(G44="Full cost",1,0) -> 0
A45: Is the Client providing Key Background IP? | G45: =IF(ISBLANK(F45),"",IF(F45="Yes","Full cost","More")) ->  | H45: 5 | I45: 0
A46: Is SU providing Key Background IP? | G46: =IF(ISBLANK(F46),"",IF(F46="No","Full cost","More")) ->  | H46: 10 | I46: 0
A47: Is the IP that might be created dependent on the Client’s Background IP, or will it improve it? | G47: =IF(ISBLANK(F47),"",IF(F47="Yes","Full cost","More")) ->  | H47: 5 | I47: 0
A48: Is it the intention of the Client to commercialise the IP that might be created? | G48: =IF(ISBLANK(F48),"",IF(F48="No","Full cost","More")) ->  | H48: 10 | I48: 0
A49: Will the IP that might be created improve the client’s internal business and operational processes? | G49: =IF(ISBLANK(F49),"",IF(F49="No","Full cost","More")) ->  | H49: 10 | I49: 0
A50: Does the Client consider obtaining statutory protection for IP that might be created during the project? | G50: =IF(ISBLANK(F50),"",IF(F50="No","Full cost","More")) ->  | H50: 10 | I50: 0
A51: Will the Client require a licence to use SU background IP? | G51: =IF(ISBLANK(F51),"",IF(F51="No","Full cost","More")) ->  | H51: 5 | I51: 0
A52: Is Client providing in-kind support (i.e. access to equipment, data etc)? | H52: 10 | I52: 0
A53: Is SU retaining control over Foreground IP? | H53: 5 | I53: 0
A54: Will there be any form of Benefit Sharing to SU (i.e. through royalties, further research initiatives etc) if IP is assigned to Client? | H54: 5 | I54: 0
A55: Will SU be able to publish within reasonable timeframe? | H55: 3 | I55: 0
A56: Will SU be free to use research results for further research and academic purposes? | H56: 3 | I56: 0
A57: Will SU be free to make commercial use of the results outside of Client’s field of interest? | H57: 3 | I57: 0
A58: Is SU the preferred partner, or uniquely placed to perform the research? | G58: =IF(ISBLANK(F58),"",IF(F58="No","Full cost","More")) ->  | H58: 3 | I58: 0
A59: Could the Client find similar standard research at other institutions in SA? | H59: 3 | I59: 0
H60: =SUM(H43:H59) -> 100
G61: Price=Full Cost | H61: =SUMPRODUCT(H43:H59,I43:I59)*100/H60 -> 0
G62: Price>Full Cost | H62: =100-H61 -> 100
A64: If R&D contract and NOT FULL COST, complete step 2.2
A66: STEP 2.2. IP BENEFIT SHARING
A68: i. | B68: Does the Client want an EXCLUSIVE licence to the IP? | G68: =IF(OR(F68="YES",F69="YES",F70="YES"),"(i) a Profit Margin used for further research activities, or","") -> 
A69: ii. | B69: Does the client want Joint Ownership op IP? | G69: =IF(OR(F69="YES",F70="YES",F68="YES"),"(ii) an IP Assignment Fee for IP emanating from the contract","") -> 
A70: iii | B70: Does the Client want to take the IP off shore?
B72: What is the main deliverables of the R&D contract?
B73: What type op IP is envisage to emanate from the R&D contract?

Sheet FULL COST BUDGET
C1: FULL COST BUDGET: RESEARCH BUDGET
C2: Principal Investigator | D2: =PrincipalInvestigator -> Enter PI name
C3: PROJECT NAME: | D3: =ProjectName -> Enter NAME
A5: DIRECT COST | G5: Year 1 | J5: Year 2 | M5: Year 3 | P5: Year 4 | S5: Year 5 | T5: TOTAL
A6: 1. Personnel | G6: =Year1 -> 2025 | J6: =G6+1 -> 2026 | M6: =J6+1 -> 2027 | P6: =M6+1 -> 2028 | S6: =P6+1 -> 2029 | T6: FULL COST
B7: 1.1 | C7: US Professional personnel and US research support personnel | D7: Minimum tariff per hour | E7: Hours | F7: Rate/hour | G7: Amount | H7: Hours | I7: Rate/hour | J7: Amount | K7: Hours | L7: Rate/hour | M7: Amount | N7: Hours | O7: Rate/hour | P7: Amount | Q7: Hours | R7: Rate/hour | S7: Amount | T7: Total Amount
C8: Professor P5 | D8: =(IF(ISBLANK(C8),0,VLOOKUP(C8,BRL!$B$5:$M$24,12,FALSE))) -> 858.3569231 | F8: =IF(ISBLANK(E8),"",D8) ->  | G8: =IFERROR(F8*E8,0) -> 0 | I8: =IF(ISBLANK(H8),0,IFERROR(F8*(1+StaffIncrPerc),0)) -> 0 | J8: =IFERROR(I8*H8,0) -> 0 | L8: =IF(ISBLANK(K8),0,IFERROR(I8*(1+StaffIncrPerc),0)) -> 0 | M8: =IFERROR(L8*K8,0) -> 0 | O8: =IF(ISBLANK(N8),0,IFERROR(L8*(1+StaffIncrPerc),0)) -> 0 | P8: =IFERROR(O8*N8,0) -> 0 | R8: =IF(ISBLANK(Q8),0,IFERROR(O8*(1+StaffIncrPerc),0)) -> 0 | S8: =IFERROR(R8*Q8,0) -> 0 | T8: =SUM(G8,J8,M8,P8,S8) -> 0
C9: Senior Lecturer P7 | D9: =(IF(ISBLANK(C9),0,VLOOKUP(C9,BRL!$B$5:$M$24,12,FALSE))) -> 572.3328205 | G9: 0 | I9: 0 | J9: 0 | L9: 0 | M9: 0 | O9: 0 | P9: 0 | R9: 0 | S9: 0 | T9: 0
C10: Lecturer P8 | D10: =(IF(ISBLANK(C10),0,VLOOKUP(C10,BRL!$B$5:$M$24,12,FALSE))) -> 452.3153846 | G10: 0 | I10: 0 | J10: 0 | L10: 0 | M10: 0 | O10: 0 | P10: 0 | R10: 0 | S10: 0 | T10: 0
C11: Lecturer P8 | D11: =(IF(ISBLANK(C11),0,VLOOKUP(C11,BRL!$B$5:$M$24,12,FALSE))) -> 452.3153846 | G11: 0 | I11: 0 | J11: 0 | L11: 0 | M11: 0 | O11: 0 | P11: 0 | R11: 0 | S11: 0 | T11: 0
C12: Post Level 9 | D12: =(IF(ISBLANK(C12),0,VLOOKUP(C12,BRL!$B$5:$M$24,12,FALSE))) -> 262.1230769 | G12: 0 | I12: 0 | J12: 0 | L12: 0 | M12: 0 | O12: 0 | P12: 0 | R12: 0 | S12: 0 | T12: 0
C13: Post Level 12 | D13: =(IF(ISBLANK(C13),0,VLOOKUP(C13,BRL!$B$5:$M$24,12,FALSE))) -> 125.1569231 | G13: 0 | I13: 0 | J13: 0 | L13: 0 | M13: 0 | O13: 0 | P13: 0 | R13: 0 | S13: 0 | T13: 0
C14: Total US personnel | G14: =SUM(G8:G13) -> 0 | J14: =SUM(J8:J13) -> 0 | M14: =SUM(M8:M13) -> 0 | P14: =SUM(P8:P13) -> 0 | S14: =SUM(S8:S13) -> 0 | T14: =SUM(T8:T13) -> 0
B15: 1.2 | C15: External personnel (e.g. Consultants) | E15: Hours | F15: Rate/hour | G15: Amount | H15: Hours | I15: Rate/hour | J15: Amount | K15: Hours | L15: Rate/hour | M15: Amount | N15: Hours | O15: Rate/hour | P15: Amount | Q15: Hours | R15: Rate/hour | S15: Amount
G16: =IFERROR(F16*E16,0) -> 0 | J16: =IFERROR(I16*H16,0) -> 0 | M16: =IFERROR(L16*K16,0) -> 0 | P16: =IFERROR(O16*N16,0) -> 0 | S16: =IFERROR(R16*Q16,0) -> 0 | T16: 0
G17: =IFERROR(F17*E17,0) -> 0 | J17: =IFERROR(I17*H17,0) -> 0 | M17: =IFERROR(L17*K17,0) -> 0 | P17: =IFERROR(O17*N17,0) -> 0 | S17: =IFERROR(R17*Q17,0) -> 0 | T17: 0
G18: =IFERROR(F18*E18,0) -> 0 | J18: =IFERROR(I18*H18,0) -> 0 | M18: =IFERROR(L18*K18,0) -> 0 | P18: =IFERROR(O18*N18,0) -> 0 | S18: =IFERROR(R18*Q18,0) -> 0 | T18: 0
C19: Total external personnel | G19: =SUM(G16:G18) -> 0 | J19: =SUM(J16:J18) -> 0 | M19: =SUM(M16:M18) -> 0 | P19: =SUM(P16:P18) -> 0 | S19: =SUM(S16:S18) -> 0 | T19: =SUM(T16:T18) -> 0
C20: Total personnel | G20: =SUM(G19,G14) -> 0 | J20: =SUM(J19,J14) -> 0 | M20: =SUM(M19,M14) -> 0 | P20: =SUM(P19,P14) -> 0 | S20: =SUM(S19,S14) -> 0 | T20: =SUM(T14,T19) -> 0
A22: 2. Equipment | E22: Units | F22: Price/unit | G22: Amount | H22: Units | I22: Price/unit | J22: Amount | K22: Units | L22: Price/unit | M22: Amount | N22: Units | O22: Price/unit | P22: Amount | Q22: Units | R22: Price/unit | S22: Amount | T22: Total Amount
B23: 2.1 | C23: Computers & hardware | G23: =IFERROR(F23*E23,0) -> 0 | J23: =IFERROR(I23*H23,0) -> 0 | M23: =IFERROR(L23*K23,0) -> 0 | P23: =IFERROR(O23*N23,0) -> 0 | S23: =IFERROR(R23*Q23,0) -> 0 | T23: =SUM(G23,J23,M23,P23,S23) -> 0
B24: 2.2 | C24: Other | G24: =IFERROR(F24*E24,0) -> 0 | J24: =IFERROR(I24*H24,0) -> 0 | M24: =IFERROR(L24*K24,0) -> 0 | P24: =IFERROR(O24*N24,0) -> 0 | S24: =IFERROR(R24*Q24,0) -> 0 | T24: =SUM(G24,J24,M24,P24,S24) -> 0
B25: 2.3 | G25: =IFERROR(F25*E25,0) -> 0 | J25: =IFERROR(I25*H25,0) -> 0 | M25: =IFERROR(L25*K25,0) -> 0 | P25: =IFERROR(O25*N25,0) -> 0 | S25: =IFERROR(R25*Q25,0) -> 0 | T25: =SUM(G25,J25,M25,P25,S25) -> 0
C26: Total equipment | G26: =SUM(G23:G25) -> 0 | J26: =SUM(J23:J25) -> 0 | M26: =SUM(M23:M25) -> 0 | P26: =SUM(P23:P25) -> 0 | S26: =SUM(S23:S25) -> 0 | T26: =SUM(T23:T25) -> 0
C27: Equipment exempted from ICRR | G27: =IFERROR(ROUND(G26*$T$27/$T$26,2),0) -> 0 | J27: =IFERROR(ROUND(J26*$T$27/$T$26,2),0) -> 0 | M27: =IFERROR(ROUND(M26*$T$27/$T$26,2),0) -> 0 | P27: =IFERROR(ROUND(P26*$T$27/$T$26,2),0) -> 0 | S27: =IFERROR(ROUND(S26*$T$27/$T$26,2),0) -> 0 | T27: =MAX(0,T26-ICRRExempt) -> 0
A29: 3. Running costs | E29: Units | F29: Price/unit | G29: Amount | H29: Units | I29: Price/unit | J29: Amount | K29: Units | L29: Price/unit | M29: Amount | N29: Units | O29: Price/unit | P29: Amount | Q29: Units | R29: Price/unit | S29: Amount | T29: Total Amount
B30: 3.1 | C30: Material (e.g. Reagents, electronic components) | G30: =IFERROR(F30*E30,0) -> 0 | J30: =IFERROR(I30*H30,0) -> 0 | M30: =IFERROR(L30*K30,0) -> 0 | P30: =IFERROR(O30*N30,0) -> 0 | S30: =IFERROR(R30*Q30,0) -> 0 | T30: =SUM(G30,J30,M30,P30,S30) -> 0
B31: 3.2 | C31: Stationery and printing | G31: =IFERROR(F31*E31,0) -> 0 | J31: =IFERROR(I31*H31,0) -> 0 | M31: =IFERROR(L31*K31,0) -> 0 | P31: =IFERROR(O31*N31,0) -> 0 | S31: =IFERROR(R31*Q31,0) -> 0 | T31: 0
B32: 3.3 | C32: Services | G32: =IFERROR(F32*E32,0) -> 0 | J32: 0 | M32: =IFERROR(L32*K32,0) -> 0 | P32: =IFERROR(O32*N32,0) -> 0 | S32: 0 | T32: 0
B33: 3.4 | C33: Consumable material (e.g. Pipette, petri dishes) | G33: 0 | J33: 0 | M33: =IF(K33=0,0,K33*L33) -> 0 | P33: 0 | S33: 0 | T33: 0
B34: 3.5 | C34: Analysis of samples | G34: 0 | J34: 0 | M34: 0 | P34: 0 | S34: 0 | T34: 0
B35: 3.6 | C35: Use of equipment | G35: 0 | J35: 0 | M35: 0 | P35: 0 | S35: 0 | T35: 0
B36: 3.7 | C36: Maintenance of equipment | G36: 0 | J36: 0 | M36: 0 | P36: 0 | S36: 0 | T36: 0
B37: 3.8 | C37: Sundry expenses | G37: 0 | J37: 0 | M37: 0 | P37: 0 | S37: 0 | T37: 0
B38: 3.9 | C38: Project specific insurance | G38: 0 | J38: 0 | M38: 0 | P38: 0 | S38: 0 | T38: 0
B39: 3.1 | C39: Software | G39: 0 | J39: 0 | M39: 0 | P39: 0 | S39: 0 | T39: 0
B40: 3.11 | C40: Communication and data costs | G40: 0 | J40: 0 | M40: 0 | P40: 0 | S40: 0 | T40: =SUM(G40,J40,M40,P40,S40) -> 0
B41: 3.12 | C41: Printing | G41: 0 | J41: 0 | M41: 0 | P41: 0 | S41: 0 | T41: 0
B42: 3.13 | G42: 0 | J42: 0 | M42: 0 | P42: 0 | S42: 0 | T42: 0
B43: 3.14 | G43: 0 | J43: 0 | M43: 0 | P43: 0 | S43: 0 | T43: 0
B44: 3.15 | G44: 0 | J44: 0 | M44: 0 | P44: 0 | S44: 0 | T44: 0
B45: 3.16 | G45: 0 | J45: 0 | M45: 0 | P45: 0 | S45: 0 | T45: 0
B46: 3.17 | G46: 0 | J46: 0 | M46: 0 | P46: 0 | S46: 0 | T46: 0
C47: Total running costs | G47: =SUM(G30:G46) -> 0 | J47: =SUM(J30:J46) -> 0 | M47: =SUM(M30:M46) -> 0 | P47: =SUM(P30:P46) -> 0 | S47: =SUM(S30:S46) -> 0 | T47: =SUM(T30:T46) -> 0
A49: 4. Audit fees (if additional audit is requested from client) | E49: Units | F49: Price/unit | G49: Amount | H49: Units | I49: Price/unit | J49: Amount | K49: Units | L49: Price/unit | M49: Amount | N49: Units | O49: Price/unit | P49: Amount | Q49: Units | R49: Price/unit | S49: Amount | T49: Total Amount
C50: Audit fees | G50: =IFERROR(F50*E50,0) -> 0 | J50: =IFERROR(I50*H50,0) -> 0 | M50: =IFERROR(L50*K50,0) -> 0 | P50: =IFERROR(O50*N50,0) -> 0 | S50: =IFERROR(R50*Q50,0) -> 0 | T50: =SUM(G50,J50,M50,P50,S50) -> 0
A52: 5. Travel costs, conferences, workshops & seminars | E52: Units | F52: Price/unit | G52: Amount | H52: Units | I52: Price/unit | J52: Amount | K52: Units | L52: Price/unit | M52: Amount | N52: Units | O52: Price/unit | P52: Amount | Q52: Units | R52: Price/unit | S52: Amount | T52: Total Amount
B53: 5.1 | C53: Domestic travel to workshops / conferences | G53: =E53*F53 -> 0 | J53: =H53*I53 -> 0 | M53: =K53*L53 -> 0 | P53: =N53*O53 -> 0 | S53: =Q53*R53 -> 0 | T53: =SUM(G53,J53,M53,P53,S53) -> 0
B54: 5.2 | C54: International travel to workshops / conferences | G54: 0 | J54: 0 | M54: 0 | P54: 0 | S54: 0 | T54: 0
B55: 5.3 | C55: Accommodation | G55: 0 | J55: 0 | M55: 0 | P55: 0 | S55: 0 | T55: 0
B56: 5.4 | C56: Registration cost | G56: 0 | J56: 0 | M56: 0 | P56: 0 | S56: 0 | T56: 0
B57: 5.5 | C57: Per diems (daily allowances) | G57: 0 | J57: 0 | M57: 0 | P57: 0 | S57: 0 | T57: 0
B58: 5.6 | C58: Other travel costs | G58: 0 | J58: 0 | M58: 0 | P58: 0 | S58: 0 | T58: 0
C59: Total travel cost, conferences etc | G59: =SUM(G53:G58) -> 0 | J59: =SUM(J53:J58) -> 0 | M59: =SUM(M53:M58) -> 0 | P59: =SUM(P53:P58) -> 0 | S59: =SUM(S53:S58) -> 0 | T59: =SUM(T53:T58) -> 0
A61: 6. Any other expenses directly related to the research project | E61: Units | F61: Price/unit | G61: Amount | H61: Units | I61: Price/unit | J61: Amount | K61: Units | L61: Price/unit | M61: Amount | N61: Units | O61: Price/unit | P61: Amount | Q61: Units | R61: Price/unit | S61: Amount | T61: Total Amount
B62: 6.1 | C62: Research Data Management | G62: =E62*F62 -> 0 | J62: =H62*I62 -> 0 | M62: =K62*L62 -> 0 | P62: =N62*O62 -> 0 | S62: =Q62*R62 -> 0 | T62: =SUM(G62,J62,M62,P62,S62) -> 0
B63: 6.2 | C63: Grant Management Office | G63: =E63*F63 -> 0 | J63: =H63*I63 -> 0 | M63: =K63*L63 -> 0 | P63: =N63*O63 -> 0 | S63: =Q63*R63 -> 0 | T63: =SUM(G63,J63,M63,P63,S63) -> 0
B64: 6.3 | G64: =E64*F64 -> 0 | J64: =H64*I64 -> 0 | M64: =K64*L64 -> 0 | P64: =N64*O64 -> 0 | S64: =Q64*R64 -> 0 | T64: =SUM(G64,J64,M64,P64,S64) -> 0
C65: Total other expenses | G65: =SUM(G62:G64) -> 0 | J65: =SUM(J62:J64) -> 0 | M65: =SUM(M62:M64) -> 0 | P65: =SUM(P62:P64) -> 0 | S65: =SUM(S62:S64) -> 0 | T65: =SUM(T62:T64) -> 0
A67: SUBTOTAL A (TOTAL DIRECT COST excluding Bursaries, Levies and Indirect Costs) | G67: =G20+G26+G47+G50+G59+G65 -> 0 | J67: =J20+J26+J47+J50+J59+J65 -> 0 | M67: =M20+M26+M47+M50+M59+M65 -> 0 | P67: =P20+P26+P47+P50+P59+P65 -> 0 | S67: =S20+S26+S47+S50+S59+S65 -> 0 | T67: =T20+T26+T47+T50+T59+T65 -> 0
C68: Subtotal A, excluding equipment amount exempted from ICRR | G68: =G67-G27 -> 0 | J68: =J67-J27 -> 0 | M68: =M67-M27 -> 0 | P68: =P67-P27 -> 0 | S68: =S67-S27 -> 0 | T68: =T67-T27 -> 0
C70: Departmental levy | D70: =IF(IsDeptLevy="YES",DeptLevy,0) -> 0
C71: Faculty levy | D71: =IF(IsFactLevy="YES",FacultyLevy,0) -> 0
C72: ICRR | D72: =ICRR -> 0.2
C73: Total Overhead charges % | D73: =SUM(D70:D72) -> 0.2 | G73: Amount | J73: Amount | M73: Amount | P73: Amount | S73: Amount | T73: Total Amount
C74: Overheads total charge (Subtotal A excl exempted equipment) | G74: =ROUND(G68/(1-$D$73)-G68,2) -> 0 | J74: =ROUND(J68/(1-$D$73)-J68,2) -> 0 | M74: =ROUND(M68/(1-$D$73)-M68,2) -> 0 | P74: =ROUND(P68/(1-$D$73)-P68,2) -> 0 | S74: =ROUND(S68/(1-$D$73)-S68,2) -> 0 | T74: =G74+J74+M74+P74+S74 -> 0
C75: Overheads total charge (Exempted equipment) | G75: =ROUND(G27/(1-($D$70+$D$71))-G27,2) -> 0 | J75: =ROUND(J27/(1-($D$70+$D$71))-J27,2) -> 0 | M75: =ROUND(M27/(1-($D$70+$D$71))-M27,2) -> 0 | P75: =ROUND(P27/(1-($D$70+$D$71))-P27,2) -> 0 | S75: =ROUND(S27/(1-($D$70+$D$71))-S27,2) -> 0 | T75: =G75+J75+M75+P75+S75 -> 0
A77: 7. Departmental / Faculty Indirect Costs | G77: Amount | J77: Amount | M77: Amount | P77: Amount | S77: Amount | T77: Total Amount
B78: 7.1 | C78: Departmental margin | G78: =ROUND(G74/$D$73*$D$70+IFERROR(G75/SUM($D$70:$D$71)*$D$70,0),2) -> 0 | J78: =ROUND(J74/$D$73*$D$70+IFERROR(J75/SUM($D$70:$D$71)*$D$70,0),2) -> 0 | M78: =ROUND(M74/$D$73*$D$70+IFERROR(M75/SUM($D$70:$D$71)*$D$70,0),2) -> 0 | P78: =ROUND(P74/$D$73*$D$70+IFERROR(P75/SUM($D$70:$D$71)*$D$70,0),2) -> 0 | S78: =ROUND(S74/$D$73*$D$70+IFERROR(S75/SUM($D$70:$D$71)*$D$70,0),2) -> 0 | T78: =SUM(G78,J78,M78,P78,S78) -> 0
B79: 7.2 | C79: Faculty levy | G79: =ROUND(G74/$D$73*$D$71+IFERROR(G75*$D$71/SUM($D$70:$D$71),0),2) -> 0 | J79: =ROUND(J74/$D$73*$D$71+IFERROR(J75*$D$71/SUM($D$70:$D$71),0),2) -> 0 | M79: =ROUND(M74/$D$73*$D$71+IFERROR(M75*$D$71/SUM($D$70:$D$71),0),2) -> 0 | P79: =ROUND(P74/$D$73*$D$71+IFERROR(P75*$D$71/SUM($D$70:$D$71),0),2) -> 0 | S79: =ROUND(S74/$D$73*$D$71+IFERROR(S75*$D$71/SUM($D$70:$D$71),0),2) -> 0 | T79: =SUM(G79,J79,M79,P79,S79) -> 0
C80: Total faculty & departmental indirect cost | G80: =SUM(G78:G79) -> 0 | J80: =SUM(J78:J79) -> 0 | M80: =SUM(M78:M79) -> 0 | P80: =SUM(P78:P79) -> 0 | S80: =SUM(S78:S79) -> 0 | T80: =SUM(T78:T79) -> 0
A82: SUBTOTAL B (TOTAL COST excluding Bursaries) | G82: =G67+G80 -> 0 | J82: =J67+J80 -> 0 | M82: =M67+M80 -> 0 | P82: =P67+P80 -> 0 | S82: =S67+S80 -> 0 | T82: =T67+T80 -> 0
A84: 8. ICRR (Indirect Cost Recovery Rate) | G84: Amount | J84: Amount | M84: Amount | P84: Amount | S84: Amount | T84: Total Amount
C85: ICRR as per Cover Page (excluding IP Transfer Fee and Bursaries) | G85: =ROUND(G74/$D$73*$D$72,2) -> 0 | J85: =ROUND(J74/$D$73*$D$72,2) -> 0 | M85: =ROUND(M74/$D$73*$D$72,2) -> 0 | P85: =ROUND(P74/$D$73*$D$72,2) -> 0 | S85: =ROUND(S74/$D$73*$D$72,2) -> 0 | T85: =SUM(G85,J85,M85,P85,S85) -> 0
A87: SUBTOTAL C | G87: =SUM(G67,G74,G75) -> 0 | J87: =SUM(J67,J74,J75) -> 0 | M87: =SUM(M67,M74,M75) -> 0 | P87: =SUM(P67,P74,P75) -> 0 | S87: =SUM(S67,S74,S75) -> 0 | T87: =SUM(G87,J87,M87,P87,S87) -> 0
A89: 9. IP Transfer Fee - only relevant at CONTRACT PRICE stage (therefore R 0) | G89: 0 | J89: 0 | M89: 0 | P89: 0 | S89: 0 | T89: =SUM(G89,J89,M89,P89,S89) -> 0
A91: SUBTOTAL D | G91: =G87 -> 0 | J91: =J87 -> 0 | M91: =M87 -> 0 | P91: =P87 -> 0 | S91: =S87 -> 0 | T91: =SUM(G91,J91,M91,P91,S91) -> 0
A93: 10. VAT | G93: Amount | J93: Amount | M93: Amount | P93: Amount | S93: Amount | T93: Total Amount
C94: =TEXT(VAT,"0%") & " of Subtotal D" -> 16% of Subtotal D | G94: =G91*VAT -> 0 | J94: =J91*VAT -> 0 | M94: =M91*VAT -> 0 | P94: =P91*VAT -> 0 | S94: =S91*VAT -> 0 | T94: =SUM(G94,J94,M94,P94,S94) -> 0
A97: 11. Bursaries | E97: Units | F97: Price/unit | G97: Amount | H97: Units | I97: Price/unit | J97: Amount | K97: Units | L97: Price/unit | M97: Amount | N97: Units | O97: Price/unit | P97: Amount | Q97: Units | R97: Price/unit | S97: Amount | T97: Total Amount
B98: 11.1 | C98: Undergraduate Bursaries | G98: =E98*F98 -> 0 | J98: =H98*I98 -> 0 | M98: =K98*L98 -> 0 | P98: =N98*O98 -> 0 | S98: =Q98*R98 -> 0 | T98: =SUM(G98,J98,M98,P98,S98) -> 0
B99: 11.2 | C99: Postgraduate Bursaries | G99: =E99*F99 -> 0 | J99: =H99*I99 -> 0 | M99: =K99*L99 -> 0 | P99: =N99*O99 -> 0 | S99: =Q99*R99 -> 0 | T99: =SUM(G99,J99,M99,P99,S99) -> 0
C100: Total bursaries | G100: =SUM(G98:G99) -> 0 | J100: =SUM(J98:J99) -> 0 | M100: =SUM(M98:M99) -> 0 | P100: =SUM(P98:P99) -> 0 | S100: =SUM(S98:S99) -> 0 | T100: =SUM(T98:T99) -> 0
C102: TOTAL BREAKEVEN BUDGET | G102: =SUM(G100,G94,G91) -> 0 | J102: =SUM(J100,J94,J91) -> 0 | M102: =SUM(M100,M94,M91) -> 0 | P102: =SUM(P100,P94,P91) -> 0 | S102: =SUM(S100,S94,S91) -> 0 | T102: =SUM(T100,T94,T91) -> 0
G103: This represents simply the actual cost to SU. This will be used as a basis to plan and evaluate the budget of the contract.
G105: QUICK LINK to IP PRICING TOOL
G106: QUICK LINK to INTRODUCTION Page

Sheet CONTRACT PRICE ZAR
C1: CONTRACT BUDGET: RESEARCH BUDGET
C2: PROJECT NAME: | D2: =ProjectName -> Enter NAME
C3: FACULTY: | D3: =IF(ISBLANK(Faculty),"",Faculty) -> 
C5: All figures entered into the FULL COST BUDGET will automatically be reflected in this CONTRACT PRICE BUDGET.
C6: These figures thus copied are reflected as a guideline only and may be edited, deleted or added to, to fulfill contract requirements, and determine the CONTRACT PRICE.
C7: For budgets in foreign currency please complete this budget first, foreign currency budget wil be addressed at the next stage.
A8: DIRECT COST | G8: Year 1 | J8: Year 2 | M8: Year 3 | P8: Year 4 | S8: Year 5 | T8: TOTAL
A9: 1. Personnel | G9: =Year1 -> 2025 | J9: =G9+1 -> 2026 | M9: =J9+1 -> 2027 | P9: 2028 | S9: 2029 | T9: FULL COST
B10: 1.1 | C10: ='FULL COST BUDGET'!C7 -> US Professional personnel and US research support personnel | D10: Minimum tariff per hour that you may ask for this US employee (Refer to BRL sheet): | E10: Hours | F10: Rate/hour | G10: Amount | H10: Hours | I10: Rate/hour | J10: Amount | K10: Hours | L10: Rate/hour | M10: Amount | N10: Hours | O10: Rate/hour | P10: Amount | Q10: Hours | R10: Rate/hour | S10: Amount | T10: Total Amount
C11: =IF(ISBLANK('FULL COST BUDGET'!C8),"",'FULL COST BUDGET'!C8) -> Professor P5 | D11: =IF(ISBLANK('FULL COST BUDGET'!D8),"",'FULL COST BUDGET'!D8) -> 858.3569231 | F11: =IF(ISBLANK('FULL COST BUDGET'!F8),"",'FULL COST BUDGET'!F8) ->  | G11: =IFERROR(F11*E11,0) -> 0 | H11: =IF(ISBLANK('FULL COST BUDGET'!H8),"",'FULL COST BUDGET'!H8) ->  | I11: =IF(ISBLANK(H11),0,IFERROR(F11*(1+StaffIncrPerc),0)) -> 0 | J11: =IFERROR(I11*H11,0) -> 0 | K11: =IF(ISBLANK('FULL COST BUDGET'!K8),"",'FULL COST BUDGET'!K8) ->  | L11: =IF(ISBLANK(K11),0,IFERROR(I11*(1+StaffIncrPerc),0)) -> 0 | M11: =IFERROR(L11*K11,0) -> 0 | N11: =IF(ISBLANK('FULL COST BUDGET'!N8),"",'FULL COST BUDGET'!N8) ->  | O11: =IF(ISBLANK(N11),0,IFERROR(L11*(1+StaffIncrPerc),0)) -> 0 | P11: =IFERROR(O11*N11,0) -> 0 | Q11: =IF(ISBLANK('FULL COST BUDGET'!Q8),"",'FULL COST BUDGET'!Q8) ->  | R11: =IF(ISBLANK(Q11),0,IFERROR(O11*(1+StaffIncrPerc),0)) -> 0 | S11: =IFERROR(R11*Q11,0) -> 0 | T11: =G11+J11+M11+P11+S11 -> 0
C12: =IF(ISBLANK('FULL COST BUDGET'!C9),"",'FULL COST BUDGET'!C9) -> Senior Lecturer P7 | D12: =IF(ISBLANK('FULL COST BUDGET'!D9),"",'FULL COST BUDGET'!D9) -> 572.3328205 | E12: =IF(ISBLANK('FULL COST BUDGET'!E9),"",'FULL COST BUDGET'!E9) ->  | F12: =IF(ISBLANK('FULL COST BUDGET'!F9),"",'FULL COST BUDGET'!F9) ->  | G12: 0 | H12: =IF(ISBLANK('FULL COST BUDGET'!H9),"",'FULL COST BUDGET'!H9) ->  | I12: 0 | J12: 0 | K12: =IF(ISBLANK('FULL COST BUDGET'!K9),"",'FULL COST BUDGET'!K9) ->  | L12: 0 | M12: 0 | N12: =IF(ISBLANK('FULL COST BUDGET'!N9),"",'FULL COST BUDGET'!N9) ->  | O12: 0 | P12: 0 | Q12: =IF(ISBLANK('FULL COST BUDGET'!Q9),"",'FULL COST BUDGET'!Q9) ->  | R12: 0 | S12: 0 | T12: 0
C13: =IF(ISBLANK('FULL COST BUDGET'!C10),"",'FULL COST BUDGET'!C10) -> Lecturer P8 | D13: =IF(ISBLANK('FULL COST BUDGET'!D10),"",'FULL COST BUDGET'!D10) -> 452.3153846 | E13: =IF(ISBLANK('FULL COST BUDGET'!E10),"",'FULL COST BUDGET'!E10) ->  | F13: =IF(ISBLANK('FULL COST BUDGET'!F10),"",'FULL COST BUDGET'!F10) ->  | G13: 0 | H13: =IF(ISBLANK('FULL COST BUDGET'!H10),"",'FULL COST BUDGET'!H10) ->  | I13: 0 | J13: 0 | K13: =IF(ISBLANK('FULL COST BUDGET'!K10),"",'FULL COST BUDGET'!K10) ->  | L13: 0 | M13: 0 | N13: =IF(ISBLANK('FULL COST BUDGET'!N10),"",'FULL COST BUDGET'!N10) ->  | O13: 0 | P13: 0 | Q13: =IF(ISBLANK('FULL COST BUDGET'!Q10),"",'FULL COST BUDGET'!Q10) ->  | R13: 0 | S13: 0 | T13: 0
C14: =IF(ISBLANK('FULL COST BUDGET'!C11),"",'FULL COST BUDGET'!C11) -> Lecturer P8 | D14: =IF(ISBLANK('FULL COST BUDGET'!D11),"",'FULL COST BUDGET'!D11) -> 452.3153846 | E14: =IF(ISBLANK('FULL COST BUDGET'!E11),"",'FULL COST BUDGET'!E11) ->  | F14: =IF(ISBLANK('FULL COST BUDGET'!F11),"",'FULL COST BUDGET'!F11) ->  | G14: 0 | H14: =IF(ISBLANK('FULL COST BUDGET'!H11),"",'FULL COST BUDGET'!H11) ->  | I14: 0 | J14: 0 | K14: =IF(ISBLANK('FULL COST BUDGET'!K11),"",'FULL COST BUDGET'!K11) ->  | L14: 0 | M14: 0 | N14: =IF(ISBLANK('FULL COST BUDGET'!N11),"",'FULL COST BUDGET'!N11) ->  | O14: 0 | P14: 0 | Q14: =IF(ISBLANK('FULL COST BUDGET'!Q11),"",'FULL COST BUDGET'!Q11) ->  | R14: 0 | S14: 0 | T14: 0
C15: =IF(ISBLANK('FULL COST BUDGET'!C12),"",'FULL COST BUDGET'!C12) -> Post Level 9 | D15: =IF(ISBLANK('FULL COST BUDGET'!D12),"",'FULL COST BUDGET'!D12) -> 262.1230769 | E15: =IF(ISBLANK('FULL COST BUDGET'!E12),"",'FULL COST BUDGET'!E12) ->  | F15: =IF(ISBLANK('FULL COST BUDGET'!F12),"",'FULL COST BUDGET'!F12) ->  | G15: 0 | H15: =IF(ISBLANK('FULL COST BUDGET'!H12),"",'FULL COST BUDGET'!H12) ->  | I15: 0 | J15: 0 | K15: =IF(ISBLANK('FULL COST BUDGET'!K12),"",'FULL COST BUDGET'!K12) ->  | L15: 0 | M15: 0 | N15: =IF(ISBLANK('FULL COST BUDGET'!N12),"",'FULL COST BUDGET'!N12) ->  | O15: 0 | P15: 0 | Q15: =IF(ISBLANK('FULL COST BUDGET'!Q12),"",'FULL COST BUDGET'!Q12) ->  | R15: 0 | S15: 0 | T15: 0
C16: =IF(ISBLANK('FULL COST BUDGET'!C13),"",'FULL COST BUDGET'!C13) -> Post Level 12 | D16: =IF(ISBLANK('FULL COST BUDGET'!D13),"",'FULL COST BUDGET'!D13) -> 125.1569231 | E16: =IF(ISBLANK('FULL COST BUDGET'!E13),"",'FULL COST BUDGET'!E13) ->  | F16: =IF(ISBLANK('FULL COST BUDGET'!F13),"",'FULL COST BUDGET'!F13) ->  | G16: 0 | H16: =IF(ISBLANK('FULL COST BUDGET'!H13),"",'FULL COST BUDGET'!H13) ->  | I16: 0 | J16: 0 | K16: =IF(ISBLANK('FULL COST BUDGET'!K13),"",'FULL COST BUDGET'!K13) ->  | L16: 0 | M16: 0 | N16: =IF(ISBLANK('FULL COST BUDGET'!N13),"",'FULL COST BUDGET'!N13) ->  | O16: 0 | P16: 0 | Q16: =IF(ISBLANK('FULL COST BUDGET'!Q13),"",'FULL COST BUDGET'!Q13) ->  | R16: 0 | S16: 0 | T16: 0
C17: Total US personnel | G17: =SUM(G11:G16) -> 0 | J17: =SUM(J11:J16) -> 0 | M17: =SUM(M11:M16) -> 0 | P17: =SUM(P11:P16) -> 0 | S17: =SUM(S11:S16) -> 0 | T17: =SUM(T11:T16) -> 0
B18: 1.2 | C18: ='FULL COST BUDGET'!C15 -> External personnel (e.g. Consultants) | E18: Hours | F18: Rate/hour | G18: Amount | H18: Hours | I18: Rate/hour | J18: Amount | K18: Hours | L18: Rate/hour | M18: Amount | N18: Hours | O18: Rate/hour | P18: Amount | Q18: Hours | R18: Rate/hour | S18: Amount
C19: =IF(ISBLANK('FULL COST BUDGET'!C16),"",'FULL COST BUDGET'!C16) ->  | E19: =IF(ISBLANK('FULL COST BUDGET'!E16),"",'FULL COST BUDGET'!E16) ->  | F19: =IF(ISBLANK('FULL COST BUDGET'!F16),"",'FULL COST BUDGET'!F16) ->  | G19: =IF(ISBLANK('FULL COST BUDGET'!G16),"",'FULL COST BUDGET'!G16) -> 0 | H19: =IF(ISBLANK('FULL COST BUDGET'!H16),"",'FULL COST BUDGET'!H16) ->  | I19: =IF(ISBLANK('FULL COST BUDGET'!I16),"",'FULL COST BUDGET'!I16) ->  | J19: =IFERROR(I19*H19,0) -> 0 | K19: =IF(ISBLANK('FULL COST BUDGET'!K16),"",'FULL COST BUDGET'!K16) ->  | L19: =IF(ISBLANK('FULL COST BUDGET'!L16),"",'FULL COST BUDGET'!L16) ->  | M19: =IFERROR(L19*K19,0) -> 0 | N19: =IF(ISBLANK('FULL COST BUDGET'!N16),"",'FULL COST BUDGET'!N16) ->  | O19: =IF(ISBLANK('FULL COST BUDGET'!O16),"",'FULL COST BUDGET'!O16) ->  | P19: =IFERROR(O19*N19,0) -> 0 | Q19: =IF(ISBLANK('FULL COST BUDGET'!Q16),"",'FULL COST BUDGET'!Q16) ->  | R19: =IF(ISBLANK('FULL COST BUDGET'!R16),"",'FULL COST BUDGET'!R16) ->  | S19: =IFERROR(R19*Q19,0) -> 0 | T19: 0
C20: =IF(ISBLANK('FULL COST BUDGET'!C17),"",'FULL COST BUDGET'!C17) ->  | E20: =IF(ISBLANK('FULL COST BUDGET'!E17),"",'FULL COST BUDGET'!E17) ->  | F20: =IF(ISBLANK('FULL COST BUDGET'!F17),"",'FULL COST BUDGET'!F17) ->  | G20: =IF(ISBLANK('FULL COST BUDGET'!G17),"",'FULL COST BUDGET'!G17) -> 0 | H20: =IF(ISBLANK('FULL COST BUDGET'!H17),"",'FULL COST BUDGET'!H17) ->  | I20: =IF(ISBLANK('FULL COST BUDGET'!I17),"",'FULL COST BUDGET'!I17) ->  | J20: =IFERROR(I20*H20,0) -> 0 | K20: =IF(ISBLANK('FULL COST BUDGET'!K17),"",'FULL COST BUDGET'!K17) ->  | L20: =IF(ISBLANK('FULL COST BUDGET'!L17),"",'FULL COST BUDGET'!L17) ->  | M20: =IFERROR(L20*K20,0) -> 0 | N20: =IF(ISBLANK('FULL COST BUDGET'!N17),"",'FULL COST BUDGET'!N17) ->  | O20: =IF(ISBLANK('FULL COST BUDGET'!O17),"",'FULL COST BUDGET'!O17) ->  | P20: =IFERROR(O20*N20,0) -> 0 | Q20: =IF(ISBLANK('FULL COST BUDGET'!Q17),"",'FULL COST BUDGET'!Q17) ->  | R20: =IF(ISBLANK('FULL COST BUDGET'!R17),"",'FULL COST BUDGET'!R17) ->  | S20: =IFERROR(R20*Q20,0) -> 0 | T20: 0
C21: =IF(ISBLANK('FULL COST BUDGET'!C18),"",'FULL COST BUDGET'!C18) ->  | E21: =IF(ISBLANK('FULL COST BUDGET'!E18),"",'FULL COST BUDGET'!E18) ->  | F21: =IF(ISBLANK('FULL COST BUDGET'!F18),"",'FULL COST BUDGET'!F18) ->  | G21: =IF(ISBLANK('FULL COST BUDGET'!G18),"",'FULL COST BUDGET'!G18) -> 0 | H21: =IF(ISBLANK('FULL COST BUDGET'!H18),"",'FULL COST BUDGET'!H18) ->  | I21: =IF(ISBLANK('FULL COST BUDGET'!I18),"",'FULL COST BUDGET'!I18) ->  | J21: =IFERROR(I21*H21,0) -> 0 | K21: =IF(ISBLANK('FULL COST BUDGET'!K18),"",'FULL COST BUDGET'!K18) ->  | L21: =IF(ISBLANK('FULL COST BUDGET'!L18),"",'FULL COST BUDGET'!L18) ->  | M21: =IFERROR(L21*K21,0) -> 0 | N21: =IF(ISBLANK('FULL COST BUDGET'!N18),"",'FULL COST BUDGET'!N18) ->  | O21: =IF(ISBLANK('FULL COST BUDGET'!O18),"",'FULL COST BUDGET'!O18) ->  | P21: =IFERROR(O21*N21,0) -> 0 | Q21: =IF(ISBLANK('FULL COST BUDGET'!Q18),"",'FULL COST BUDGET'!Q18) ->  | R21: =IF(ISBLANK('FULL COST BUDGET'!R18),"",'FULL COST BUDGET'!R18) ->  | S21: =IFERROR(R21*Q21,0) -> 0 | T21: 0
C22: Total external personnel | G22: =SUM(G19:G21) -> 0 | J22: =SUM(J19:J21) -> 0 | M22: =SUM(M19:M21) -> 0 | P22: =SUM(P19:P21) -> 0 | S22: =SUM(S19:S21) -> 0 | T22: =SUM(T19:T21) -> 0
C23: Total personnel | G23: =G17+G22 -> 0 | J23: =J17+J22 -> 0 | M23: =M17+M22 -> 0 | P23: =P17+P22 -> 0 | S23: =S17+S22 -> 0 | T23: =T17+T22 -> 0
A25: 2. Equipment | E25: Units | F25: Price/unit | G25: Amount | H25: Units | I25: Price/unit | J25: Amount | K25: Units | L25: Price/unit | M25: Amount | N25: Units | O25: Price/unit | P25: Amount | Q25: Units | R25: Price/unit | S25: Amount | T25: Total Amount
B26: 2.1 | C26: =IF(ISBLANK('FULL COST BUDGET'!C23),"",'FULL COST BUDGET'!C23) -> Computers & hardware | E26: =IF(ISBLANK('FULL COST BUDGET'!E23),"",'FULL COST BUDGET'!E23) ->  | G26: =IFERROR(F26*E26,0) -> 0 | H26: =IF(ISBLANK('FULL COST BUDGET'!H23),"",'FULL COST BUDGET'!H23) ->  | J26: =IFERROR(I26*H26,0) -> 0 | K26: =IF(ISBLANK('FULL COST BUDGET'!K23),"",'FULL COST BUDGET'!K23) ->  | M26: =IFERROR(L26*K26,0) -> 0 | N26: =IF(ISBLANK('FULL COST BUDGET'!N23),"",'FULL COST BUDGET'!N23) ->  | P26: =IFERROR(O26*N26,0) -> 0 | Q26: =IF(ISBLANK('FULL COST BUDGET'!Q23),"",'FULL COST BUDGET'!Q23) ->  | S26: =IFERROR(R26*Q26,0) -> 0 | T26: =G26+J26+M26+P26+S26 -> 0
B27: 2.2 | C27: =IF(ISBLANK('FULL COST BUDGET'!C24),"",'FULL COST BUDGET'!C24) -> Other | E27: =IF(ISBLANK('FULL COST BUDGET'!E24),"",'FULL COST BUDGET'!E24) ->  | F27: =IF(ISBLANK('FULL COST BUDGET'!F24),"",'FULL COST BUDGET'!F24) ->  | G27: =IFERROR(F27*E27,0) -> 0 | H27: =IF(ISBLANK('FULL COST BUDGET'!H24),"",'FULL COST BUDGET'!H24) ->  | I27: =IF(ISBLANK('FULL COST BUDGET'!I24),"",'FULL COST BUDGET'!I24) ->  | J27: =IFERROR(I27*H27,0) -> 0 | K27: =IF(ISBLANK('FULL COST BUDGET'!K24),"",'FULL COST BUDGET'!K24) ->  | L27: =IF(ISBLANK('FULL COST BUDGET'!L24),"",'FULL COST BUDGET'!L24) ->  | M27: =IFERROR(L27*K27,0) -> 0 | N27: =IF(ISBLANK('FULL COST BUDGET'!N24),"",'FULL COST BUDGET'!N24) ->  | O27: =IF(ISBLANK('FULL COST BUDGET'!O24),"",'FULL COST BUDGET'!O24) ->  | P27: =IFERROR(O27*N27,0) -> 0 | Q27: =IF(ISBLANK('FULL COST BUDGET'!Q24),"",'FULL COST BUDGET'!Q24) ->  | R27: =IF(ISBLANK('FULL COST BUDGET'!R24),"",'FULL COST BUDGET'!R24) ->  | S27: =IFERROR(R27*Q27,0) -> 0 | T27: =G27+J27+M27+P27+S27 -> 0
B28: 2.3 | C28: =IF(ISBLANK('FULL COST BUDGET'!C25),"",'FULL COST BUDGET'!C25) ->  | E28: =IF(ISBLANK('FULL COST BUDGET'!E25),"",'FULL COST BUDGET'!E25) ->  | F28: =IF(ISBLANK('FULL COST BUDGET'!F25),"",'FULL COST BUDGET'!F25) ->  | G28: =IFERROR(F28*E28,0) -> 0 | H28: =IF(ISBLANK('FULL COST BUDGET'!H25),"",'FULL COST BUDGET'!H25) ->  | I28: =IF(ISBLANK('FULL COST BUDGET'!I25),"",'FULL COST BUDGET'!I25) ->  | J28: =IFERROR(I28*H28,0) -> 0 | K28: =IF(ISBLANK('FULL COST BUDGET'!K25),"",'FULL COST BUDGET'!K25) ->  | L28: =IF(ISBLANK('FULL COST BUDGET'!L25),"",'FULL COST BUDGET'!L25) ->  | M28: =IFERROR(L28*K28,0) -> 0 | N28: =IF(ISBLANK('FULL COST BUDGET'!N25),"",'FULL COST BUDGET'!N25) ->  | O28: =IF(ISBLANK('FULL COST BUDGET'!O25),"",'FULL COST BUDGET'!O25) ->  | P28: =IFERROR(O28*N28,0) -> 0 | Q28: =IF(ISBLANK('FULL COST BUDGET'!Q25),"",'FULL COST BUDGET'!Q25) ->  | R28: =IF(ISBLANK('FULL COST BUDGET'!R25),"",'FULL COST BUDGET'!R25) ->  | S28: =IFERROR(R28*Q28,0) -> 0 | T28: =G28+J28+M28+P28+S28 -> 0
C29: Total equipment | G29: =SUM(G26:G28) -> 0 | J29: =SUM(J26:J28) -> 0 | M29: =SUM(M26:M28) -> 0 | P29: =SUM(P26:P28) -> 0 | S29: =SUM(S26:S28) -> 0 | T29: =SUM(T26:T28) -> 0
C30: Equipment exempted from ICRR | G30: =IFERROR(ROUND(G29*$T$30/$T$29,2),0) -> 0 | J30: =IFERROR(ROUND(J29*$T$30/$T$29,2),0) -> 0 | M30: =IFERROR(ROUND(M29*$T$30/$T$29,2),0) -> 0 | P30: =IFERROR(ROUND(P29*$T$30/$T$29,2),0) -> 0 | S30: =IFERROR(ROUND(S29*$T$30/$T$29,2),0) -> 0 | T30: =MAX(0,T29-ICRRExempt) -> 0
A32: 3. Running costs | E32: Units | F32: Price/unit | G32: Amount | H32: Units | I32: Price/unit | J32: Amount | K32: Units | L32: Price/unit | M32: Amount | N32: Units | O32: Price/unit | P32: Amount | Q32: Units | R32: Price/unit | S32: Amount | T32: Total Amount
B33: 3.1 | C33: =IF(ISBLANK('FULL COST BUDGET'!C30),"",'FULL COST BUDGET'!C30) -> Material (e.g. Reagents, electronic components) | E33: =IF(ISBLANK('FULL COST BUDGET'!E30),"",'FULL COST BUDGET'!E30) ->  | F33: =IF(ISBLANK('FULL COST BUDGET'!F30),"",'FULL COST BUDGET'!F30) ->  | G33: =IFERROR(F33*E33,0) -> 0 | H33: =IF(ISBLANK('FULL COST BUDGET'!H30),"",'FULL COST BUDGET'!H30) ->  | I33: =IF(ISBLANK('FULL COST BUDGET'!I30),"",'FULL COST BUDGET'!I30) ->  | J33: =IFERROR(I33*H33,0) -> 0 | K33: =IF(ISBLANK('FULL COST BUDGET'!K30),"",'FULL COST BUDGET'!K30) ->  | L33: =IF(ISBLANK('FULL COST BUDGET'!L30),"",'FULL COST BUDGET'!L30) ->  | M33: =IFERROR(L33*K33,0) -> 0 | N33: =IF(ISBLANK('FULL COST BUDGET'!N30),"",'FULL COST BUDGET'!N30) ->  | O33: =IF(ISBLANK('FULL COST BUDGET'!O30),"",'FULL COST BUDGET'!O30) ->  | P33: =IFERROR(O33*N33,0) -> 0 | Q33: =IF(ISBLANK('FULL COST BUDGET'!Q30),"",'FULL COST BUDGET'!Q30) ->  | R33: =IF(ISBLANK('FULL COST BUDGET'!R30),"",'FULL COST BUDGET'!R30) ->  | S33: =IFERROR(R33*Q33,0) -> 0 | T33: =SUM(G33,J33,M33,P33,S33) -> 0
B34: 3.2 | C34: =IF(ISBLANK('FULL COST BUDGET'!C31),"",'FULL COST BUDGET'!C31) -> Stationery and printing | E34: =IF(ISBLANK('FULL COST BUDGET'!E31),"",'FULL COST BUDGET'!E31) ->  | F34: =IF(ISBLANK('FULL COST BUDGET'!F31),"",'FULL COST BUDGET'!F31) ->  | G34: 0 | H34: =IF(ISBLANK('FULL COST BUDGET'!H31),"",'FULL COST BUDGET'!H31) ->  | I34: =IF(ISBLANK('FULL COST BUDGET'!I31),"",'FULL COST BUDGET'!I31) ->  | J34: 0 | K34: =IF(ISBLANK('FULL COST BUDGET'!K31),"",'FULL COST BUDGET'!K31) ->  | L34: =IF(ISBLANK('FULL COST BUDGET'!L31),"",'FULL COST BUDGET'!L31) ->  | M34: 0 | N34: =IF(ISBLANK('FULL COST BUDGET'!N31),"",'FULL COST BUDGET'!N31) ->  | O34: =IF(ISBLANK('FULL COST BUDGET'!O31),"",'FULL COST BUDGET'!O31) ->  | P34: 0 | Q34: =IF(ISBLANK('FULL COST BUDGET'!Q31),"",'FULL COST BUDGET'!Q31) ->  | R34: =IF(ISBLANK('FULL COST BUDGET'!R31),"",'FULL COST BUDGET'!R31) ->  | S34: 0 | T34: =SUM(G34,J34,M34,P34,S34) -> 0
B35: 3.3 | C35: =IF(ISBLANK('FULL COST BUDGET'!C32),"",'FULL COST BUDGET'!C32) -> Services | E35: =IF(ISBLANK('FULL COST BUDGET'!E32),"",'FULL COST BUDGET'!E32) ->  | F35: =IF(ISBLANK('FULL COST BUDGET'!F32),"",'FULL COST BUDGET'!F32) ->  | G35: 0 | H35: =IF(ISBLANK('FULL COST BUDGET'!H32),"",'FULL COST BUDGET'!H32) ->  | I35: =IF(ISBLANK('FULL COST BUDGET'!I32),"",'FULL COST BUDGET'!I32) ->  | J35: 0 | K35: =IF(ISBLANK('FULL COST BUDGET'!K32),"",'FULL COST BUDGET'!K32) ->  | L35: =IF(ISBLANK('FULL COST BUDGET'!L32),"",'FULL COST BUDGET'!L32) ->  | M35: 0 | N35: =IF(ISBLANK('FULL COST BUDGET'!N32),"",'FULL COST BUDGET'!N32) ->  | O35: =IF(ISBLANK('FULL COST BUDGET'!O32),"",'FULL COST BUDGET'!O32) ->  | P35: 0 | Q35: =IF(ISBLANK('FULL COST BUDGET'!Q32),"",'FULL COST BUDGET'!Q32) ->  | R35: =IF(ISBLANK('FULL COST BUDGET'!R32),"",'FULL COST BUDGET'!R32) ->  | S35: 0 | T35: 0
B36: 3.4 | C36: =IF(ISBLANK('FULL COST BUDGET'!C33),"",'FULL COST BUDGET'!C33) -> Consumable material (e.g. Pipette, petri dishes) | E36: =IF(ISBLANK('FULL COST BUDGET'!E33),"",'FULL COST BUDGET'!E33) ->  | F36: =IF(ISBLANK('FULL COST BUDGET'!F33),"",'FULL COST BUDGET'!F33) ->  | G36: 0 | H36: =IF(ISBLANK('FULL COST BUDGET'!H33),"",'FULL COST BUDGET'!H33) ->  | I36: =IF(ISBLANK('FULL COST BUDGET'!I33),"",'FULL COST BUDGET'!I33) ->  | J36: 0 | K36: =IF(ISBLANK('FULL COST BUDGET'!K33),"",'FULL COST BUDGET'!K33) ->  | L36: =IF(ISBLANK('FULL COST BUDGET'!L33),"",'FULL COST BUDGET'!L33) ->  | M36: 0 | N36: =IF(ISBLANK('FULL COST BUDGET'!N33),"",'FULL COST BUDGET'!N33) ->  | O36: =IF(ISBLANK('FULL COST BUDGET'!O33),"",'FULL COST BUDGET'!O33) ->  | P36: 0 | Q36: =IF(ISBLANK('FULL COST BUDGET'!Q33),"",'FULL COST BUDGET'!Q33) ->  | R36: =IF(ISBLANK('FULL COST BUDGET'!R33),"",'FULL COST BUDGET'!R33) ->  | S36: 0 | T36: 0
B37: 3.5 | C37: =IF(ISBLANK('FULL COST BUDGET'!C34),"",'FULL COST BUDGET'!C34) -> Analysis of samples | E37: =IF(ISBLANK('FULL COST BUDGET'!E34),"",'FULL COST BUDGET'!E34) ->  | F37: =IF(ISBLANK('FULL COST BUDGET'!F34),"",'FULL COST BUDGET'!F34) ->  | G37: 0 | H37: =IF(ISBLANK('FULL COST BUDGET'!H34),"",'FULL COST BUDGET'!H34) ->  | I37: =IF(ISBLANK('FULL COST BUDGET'!I34),"",'FULL COST BUDGET'!I34) ->  | J37: 0 | K37: =IF(ISBLANK('FULL COST BUDGET'!K34),"",'FULL COST BUDGET'!K34) ->  | L37: =IF(ISBLANK('FULL COST BUDGET'!L34),"",'FULL COST BUDGET'!L34) ->  | M37: 0 | N37: =IF(ISBLANK('FULL COST BUDGET'!N34),"",'FULL COST BUDGET'!N34) ->  | O37: =IF(ISBLANK('FULL COST BUDGET'!O34),"",'FULL COST BUDGET'!O34) ->  | P37: 0 | Q37: =IF(ISBLANK('FULL COST BUDGET'!Q34),"",'FULL COST BUDGET'!Q34) ->  | R37: =IF(ISBLANK('FULL COST BUDGET'!R34),"",'FULL COST BUDGET'!R34) ->  | S37: 0 | T37: 0
B38: 3.6 | C38: =IF(ISBLANK('FULL COST BUDGET'!C35),"",'FULL COST BUDGET'!C35) -> Use of equipment | E38: =IF(ISBLANK('FULL COST BUDGET'!E35),"",'FULL COST BUDGET'!E35) ->  | F38: =IF(ISBLANK('FULL COST BUDGET'!F35),"",'FULL COST BUDGET'!F35) ->  | G38: 0 | H38: =IF(ISBLANK('FULL COST BUDGET'!H35),"",'FULL COST BUDGET'!H35) ->  | I38: =IF(ISBLANK('FULL COST BUDGET'!I35),"",'FULL COST BUDGET'!I35) ->  | J38: 0 | K38: =IF(ISBLANK('FULL COST BUDGET'!K35),"",'FULL COST BUDGET'!K35) ->  | L38: =IF(ISBLANK('FULL COST BUDGET'!L35),"",'FULL COST BUDGET'!L35) ->  | M38: 0 | N38: =IF(ISBLANK('FULL COST BUDGET'!N35),"",'FULL COST BUDGET'!N35) ->  | O38: =IF(ISBLANK('FULL COST BUDGET'!O35),"",'FULL COST BUDGET'!O35) ->  | P38: 0 | Q38: =IF(ISBLANK('FULL COST BUDGET'!Q35),"",'FULL COST BUDGET'!Q35) ->  | R38: =IF(ISBLANK('FULL COST BUDGET'!R35),"",'FULL COST BUDGET'!R35) ->  | S38: 0 | T38: 0
B39: 3.7 | C39: =IF(ISBLANK('FULL COST BUDGET'!C36),"",'FULL COST BUDGET'!C36) -> Maintenance of equipment | E39: =IF(ISBLANK('FULL COST BUDGET'!E36),"",'FULL COST BUDGET'!E36) ->  | F39: =IF(ISBLANK('FULL COST BUDGET'!F36),"",'FULL COST BUDGET'!F36) ->  | G39: 0 | H39: =IF(ISBLANK('FULL COST BUDGET'!H36),"",'FULL COST BUDGET'!H36) ->  | I39: =IF(ISBLANK('FULL COST BUDGET'!I36),"",'FULL COST BUDGET'!I36) ->  | J39: 0 | K39: =IF(ISBLANK('FULL COST BUDGET'!K36),"",'FULL COST BUDGET'!K36) ->  | L39: =IF(ISBLANK('FULL COST BUDGET'!L36),"",'FULL COST BUDGET'!L36) ->  | M39: 0 | N39: =IF(ISBLANK('FULL COST BUDGET'!N36),"",'FULL COST BUDGET'!N36) ->  | O39: =IF(ISBLANK('FULL COST BUDGET'!O36),"",'FULL COST BUDGET'!O36) ->  | P39: 0 | Q39: =IF(ISBLANK('FULL COST BUDGET'!Q36),"",'FULL COST BUDGET'!Q36) ->  | R39: =IF(ISBLANK('FULL COST BUDGET'!R36),"",'FULL COST BUDGET'!R36) ->  | S39: 0 | T39: 0
B40: 3.8 | C40: =IF(ISBLANK('FULL COST BUDGET'!C37),"",'FULL COST BUDGET'!C37) -> Sundry expenses | E40: =IF(ISBLANK('FULL COST BUDGET'!E37),"",'FULL COST BUDGET'!E37) ->  | F40: =IF(ISBLANK('FULL COST BUDGET'!F37),"",'FULL COST BUDGET'!F37) ->  | G40: 0 | H40: =IF(ISBLANK('FULL COST BUDGET'!H37),"",'FULL COST BUDGET'!H37) ->  | I40: =IF(ISBLANK('FULL COST BUDGET'!I37),"",'FULL COST BUDGET'!I37) ->  | J40: 0 | K40: =IF(ISBLANK('FULL COST BUDGET'!K37),"",'FULL COST BUDGET'!K37) ->  | L40: =IF(ISBLANK('FULL COST BUDGET'!L37),"",'FULL COST BUDGET'!L37) ->  | M40: 0 | N40: =IF(ISBLANK('FULL COST BUDGET'!N37),"",'FULL COST BUDGET'!N37) ->  | O40: =IF(ISBLANK('FULL COST BUDGET'!O37),"",'FULL COST BUDGET'!O37) ->  | P40: 0 | Q40: =IF(ISBLANK('FULL COST BUDGET'!Q37),"",'FULL COST BUDGET'!Q37) ->  | R40: =IF(ISBLANK('FULL COST BUDGET'!R37),"",'FULL COST BUDGET'!R37) ->  | S40: 0 | T40: 0
B41: 3.9 | C41: =IF(ISBLANK('FULL COST BUDGET'!C38),"",'FULL COST BUDGET'!C38) -> Project specific insurance | E41: =IF(ISBLANK('FULL COST BUDGET'!E38),"",'FULL COST BUDGET'!E38) ->  | F41: =IF(ISBLANK('FULL COST BUDGET'!F38),"",'FULL COST BUDGET'!F38) ->  | G41: 0 | H41: =IF(ISBLANK('FULL COST BUDGET'!H38),"",'FULL COST BUDGET'!H38) ->  | I41: =IF(ISBLANK('FULL COST BUDGET'!I38),"",'FULL COST BUDGET'!I38) ->  | J41: 0 | K41: =IF(ISBLANK('FULL COST BUDGET'!K38),"",'FULL COST BUDGET'!K38) ->  | L41: =IF(ISBLANK('FULL COST BUDGET'!L38),"",'FULL COST BUDGET'!L38) ->  | M41: 0 | N41: =IF(ISBLANK('FULL COST BUDGET'!N38),"",'FULL COST BUDGET'!N38) ->  | O41: =IF(ISBLANK('FULL COST BUDGET'!O38),"",'FULL COST BUDGET'!O38) ->  | P41: 0 | Q41: =IF(ISBLANK('FULL COST BUDGET'!Q38),"",'FULL COST BUDGET'!Q38) ->  | R41: =IF(ISBLANK('FULL COST BUDGET'!R38),"",'FULL COST BUDGET'!R38) ->  | S41: 0 | T41: 0
B42: 3.1 | C42: =IF(ISBLANK('FULL COST BUDGET'!C39),"",'FULL COST BUDGET'!C39) -> Software | E42: =IF(ISBLANK('FULL COST BUDGET'!E39),"",'FULL COST BUDGET'!E39) ->  | F42: =IF(ISBLANK('FULL COST BUDGET'!F39),"",'FULL COST BUDGET'!F39) ->  | G42: 0 | H42: =IF(ISBLANK('FULL COST BUDGET'!H39),"",'FULL COST BUDGET'!H39) ->  | I42: =IF(ISBLANK('FULL COST BUDGET'!I39),"",'FULL COST BUDGET'!I39) ->  | J42: 0 | K42: =IF(ISBLANK('FULL COST BUDGET'!K39),"",'FULL COST BUDGET'!K39) ->  | L42: =IF(ISBLANK('FULL COST BUDGET'!L39),"",'FULL COST BUDGET'!L39) ->  | M42: 0 | N42: =IF(ISBLANK('FULL COST BUDGET'!N39),"",'FULL COST BUDGET'!N39) ->  | O42: =IF(ISBLANK('FULL COST BUDGET'!O39),"",'FULL COST BUDGET'!O39) ->  | P42: 0 | Q42: =IF(ISBLANK('FULL COST BUDGET'!Q39),"",'FULL COST BUDGET'!Q39) ->  | R42: =IF(ISBLANK('FULL COST BUDGET'!R39),"",'FULL COST BUDGET'!R39) ->  | S42: 0 | T42: 0
B43: 3.11 | C43: =IF(ISBLANK('FULL COST BUDGET'!C40),"",'FULL COST BUDGET'!C40) -> Communication and data costs | E43: =IF(ISBLANK('FULL COST BUDGET'!E40),"",'FULL COST BUDGET'!E40) ->  | F43: =IF(ISBLANK('FULL COST BUDGET'!F40),"",'FULL COST BUDGET'!F40) ->  | G43: 0 | H43: =IF(ISBLANK('FULL COST BUDGET'!H40),"",'FULL COST BUDGET'!H40) ->  | I43: =IF(ISBLANK('FULL COST BUDGET'!I40),"",'FULL COST BUDGET'!I40) ->  | J43: 0 | K43: =IF(ISBLANK('FULL COST BUDGET'!K40),"",'FULL COST BUDGET'!K40) ->  | L43: =IF(ISBLANK('FULL COST BUDGET'!L40),"",'FULL COST BUDGET'!L40) ->  | M43: 0 | N43: =IF(ISBLANK('FULL COST BUDGET'!N40),"",'FULL COST BUDGET'!N40) ->  | O43: =IF(ISBLANK('FULL COST BUDGET'!O40),"",'FULL COST BUDGET'!O40) ->  | P43: 0 | Q43: =IF(ISBLANK('FULL COST BUDGET'!Q40),"",'FULL COST BUDGET'!Q40) ->  | R43: =IF(ISBLANK('FULL COST BUDGET'!R40),"",'FULL COST BUDGET'!R40) ->  | S43: 0 | T43: 0
B44: 3.12 | C44: =IF(ISBLANK('FULL COST BUDGET'!C41),"",'FULL COST BUDGET'!C41) -> Printing | E44: =IF(ISBLANK('FULL COST BUDGET'!E41),"",'FULL COST BUDGET'!E41) ->  | F44: =IF(ISBLANK('FULL COST BUDGET'!F41),"",'FULL COST BUDGET'!F41) ->  | G44: 0 | H44: =IF(ISBLANK('FULL COST BUDGET'!H41),"",'FULL COST BUDGET'!H41) ->  | I44: =IF(ISBLANK('FULL COST BUDGET'!I41),"",'FULL COST BUDGET'!I41) ->  | J44: 0 | K44: =IF(ISBLANK('FULL COST BUDGET'!K41),"",'FULL COST BUDGET'!K41) ->  | L44: =IF(ISBLANK('FULL COST BUDGET'!L41),"",'FULL COST BUDGET'!L41) ->  | M44: 0 | N44: =IF(ISBLANK('FULL COST BUDGET'!N41),"",'FULL COST BUDGET'!N41) ->  | O44: =IF(ISBLANK('FULL COST BUDGET'!O41),"",'FULL COST BUDGET'!O41) ->  | P44: 0 | Q44: =IF(ISBLANK('FULL COST BUDGET'!Q41),"",'FULL COST BUDGET'!Q41) ->  | R44: =IF(ISBLANK('FULL COST BUDGET'!R41),"",'FULL COST BUDGET'!R41) ->  | S44: 0 | T44: 0
B45: 3.13 | C45: =IF(ISBLANK('FULL COST BUDGET'!C42),"",'FULL COST BUDGET'!C42) ->  | E45: =IF(ISBLANK('FULL COST BUDGET'!E42),"",'FULL COST BUDGET'!E42) ->  | F45: =IF(ISBLANK('FULL COST BUDGET'!F42),"",'FULL COST BUDGET'!F42) ->  | G45: 0 | H45: =IF(ISBLANK('FULL COST BUDGET'!H42),"",'FULL COST BUDGET'!H42) ->  | I45: =IF(ISBLANK('FULL COST BUDGET'!I42),"",'FULL COST BUDGET'!I42) ->  | J45: 0 | K45: =IF(ISBLANK('FULL COST BUDGET'!K42),"",'FULL COST BUDGET'!K42) ->  | L45: =IF(ISBLANK('FULL COST BUDGET'!L42),"",'FULL COST BUDGET'!L42) ->  | M45: 0 | N45: =IF(ISBLANK('FULL COST BUDGET'!N42),"",'FULL COST BUDGET'!N42) ->  | O45: =IF(ISBLANK('FULL COST BUDGET'!O42),"",'FULL COST BUDGET'!O42) ->  | P45: 0 | Q45: =IF(ISBLANK('FULL COST BUDGET'!Q42),"",'FULL COST BUDGET'!Q42) ->  | R45: =IF(ISBLANK('FULL COST BUDGET'!R42),"",'FULL COST BUDGET'!R42) ->  | S45: 0 | T45: 0
B46: 3.14 | C46: =IF(ISBLANK('FULL COST BUDGET'!C43),"",'FULL COST BUDGET'!C43) ->  | E46: =IF(ISBLANK('FULL COST BUDGET'!E43),"",'FULL COST BUDGET'!E43) ->  | F46: =IF(ISBLANK('FULL COST BUDGET'!F43),"",'FULL COST BUDGET'!F43) ->  | G46: 0 | H46: =IF(ISBLANK('FULL COST BUDGET'!H43),"",'FULL COST BUDGET'!H43) ->  | I46: =IF(ISBLANK('FULL COST BUDGET'!I43),"",'FULL COST BUDGET'!I43) ->  | J46: 0 | K46: =IF(ISBLANK('FULL COST BUDGET'!K43),"",'FULL COST BUDGET'!K43) ->  | L46: =IF(ISBLANK('FULL COST BUDGET'!L43),"",'FULL COST BUDGET'!L43) ->  | M46: 0 | N46: =IF(ISBLANK('FULL COST BUDGET'!N43),"",'FULL COST BUDGET'!N43) ->  | O46: =IF(ISBLANK('FULL COST BUDGET'!O43),"",'FULL COST BUDGET'!O43) ->  | P46: 0 | Q46: =IF(ISBLANK('FULL COST BUDGET'!Q43),"",'FULL COST BUDGET'!Q43) ->  | R46: =IF(ISBLANK('FULL COST BUDGET'!R43),"",'FULL COST BUDGET'!R43) ->  | S46: 0 | T46: 0
B47: 3.15 | C47: =IF(ISBLANK('FULL COST BUDGET'!C44),"",'FULL COST BUDGET'!C44) ->  | E47: =IF(ISBLANK('FULL COST BUDGET'!E44),"",'FULL COST BUDGET'!E44) ->  | F47: =IF(ISBLANK('FULL COST BUDGET'!F44),"",'FULL COST BUDGET'!F44) ->  | G47: 0 | H47: =IF(ISBLANK('FULL COST BUDGET'!H44),"",'FULL COST BUDGET'!H44) ->  | I47: =IF(ISBLANK('FULL COST BUDGET'!I44),"",'FULL COST BUDGET'!I44) ->  | J47: 0 | K47: =IF(ISBLANK('FULL COST BUDGET'!K44),"",'FULL COST BUDGET'!K44) ->  | L47: =IF(ISBLANK('FULL COST BUDGET'!L44),"",'FULL COST BUDGET'!L44) ->  | M47: 0 | N47: =IF(ISBLANK('FULL COST BUDGET'!N44),"",'FULL COST BUDGET'!N44) ->  | O47: =IF(ISBLANK('FULL COST BUDGET'!O44),"",'FULL COST BUDGET'!O44) ->  | P47: 0 | Q47: =IF(ISBLANK('FULL COST BUDGET'!Q44),"",'FULL COST BUDGET'!Q44) ->  | R47: =IF(ISBLANK('FULL COST BUDGET'!R44),"",'FULL COST BUDGET'!R44) ->  | S47: 0 | T47: 0
B48: 3.16 | C48: =IF(ISBLANK('FULL COST BUDGET'!C45),"",'FULL COST BUDGET'!C45) ->  | E48: =IF(ISBLANK('FULL COST BUDGET'!E45),"",'FULL COST BUDGET'!E45) ->  | F48: =IF(ISBLANK('FULL COST BUDGET'!F45),"",'FULL COST BUDGET'!F45) ->  | G48: 0 | H48: =IF(ISBLANK('FULL COST BUDGET'!H45),"",'FULL COST BUDGET'!H45) ->  | I48: =IF(ISBLANK('FULL COST BUDGET'!I45),"",'FULL COST BUDGET'!I45) ->  | J48: 0 | K48: =IF(ISBLANK('FULL COST BUDGET'!K45),"",'FULL COST BUDGET'!K45) ->  | L48: =IF(ISBLANK('FULL COST BUDGET'!L45),"",'FULL COST BUDGET'!L45) ->  | M48: 0 | N48: =IF(ISBLANK('FULL COST BUDGET'!N45),"",'FULL COST BUDGET'!N45) ->  | O48: =IF(ISBLANK('FULL COST BUDGET'!O45),"",'FULL COST BUDGET'!O45) ->  | P48: 0 | Q48: =IF(ISBLANK('FULL COST BUDGET'!Q45),"",'FULL COST BUDGET'!Q45) ->  | R48: =IF(ISBLANK('FULL COST BUDGET'!R45),"",'FULL COST BUDGET'!R45) ->  | S48: 0 | T48: 0
B49: 3.17 | C49: =IF(ISBLANK('FULL COST BUDGET'!C46),"",'FULL COST BUDGET'!C46) ->  | E49: =IF(ISBLANK('FULL COST BUDGET'!E46),"",'FULL COST BUDGET'!E46) ->  | F49: =IF(ISBLANK('FULL COST BUDGET'!F46),"",'FULL COST BUDGET'!F46) ->  | G49: 0 | H49: =IF(ISBLANK('FULL COST BUDGET'!H46),"",'FULL COST BUDGET'!H46) ->  | I49: =IF(ISBLANK('FULL COST BUDGET'!I46),"",'FULL COST BUDGET'!I46) ->  | J49: 0 | K49: =IF(ISBLANK('FULL COST BUDGET'!K46),"",'FULL COST BUDGET'!K46) ->  | L49: =IF(ISBLANK('FULL COST BUDGET'!L46),"",'FULL COST BUDGET'!L46) ->  | M49: 0 | N49: =IF(ISBLANK('FULL COST BUDGET'!N46),"",'FULL COST BUDGET'!N46) ->  | O49: =IF(ISBLANK('FULL COST BUDGET'!O46),"",'FULL COST BUDGET'!O46) ->  | P49: 0 | Q49: =IF(ISBLANK('FULL COST BUDGET'!Q46),"",'FULL COST BUDGET'!Q46) ->  | R49: =IF(ISBLANK('FULL COST BUDGET'!R46),"",'FULL COST BUDGET'!R46) ->  | S49: 0 | T49: 0
C50: Total running costs | G50: =SUM(G33:G49) -> 0 | J50: =SUM(J33:J49) -> 0 | M50: =SUM(M33:M49) -> 0 | P50: =SUM(P33:P49) -> 0 | S50: =SUM(S33:S49) -> 0 | T50: =SUM(T33:T49) -> 0
A52: 4. Audit fees (if additional audit is requested from client) | E52: Units | F52: Price/unit | G52: Amount | H52: Units | I52: Price/unit | J52: Amount | K52: Units | L52: Price/unit | M52: Amount | N52: Units | O52: Price/unit | P52: Amount | Q52: Units | R52: Price/unit | S52: Amount | T52: Total Amount
C53: ='FULL COST BUDGET'!C50 -> Audit fees | E53: =IF(ISBLANK('FULL COST BUDGET'!E50),"",'FULL COST BUDGET'!E50) ->  | F53: =IF(ISBLANK('FULL COST BUDGET'!F50),"",'FULL COST BUDGET'!F50) ->  | G53: =IFERROR(F53*E53,0) -> 0 | H53: =IF(ISBLANK('FULL COST BUDGET'!H50),"",'FULL COST BUDGET'!H50) ->  | I53: =IF(ISBLANK('FULL COST BUDGET'!I50),"",'FULL COST BUDGET'!I50) ->  | J53: =IFERROR(I53*H53,0) -> 0 | K53: =IF(ISBLANK('FULL COST BUDGET'!K50),"",'FULL COST BUDGET'!K50) ->  | L53: =IF(ISBLANK('FULL COST BUDGET'!L50),"",'FULL COST BUDGET'!L50) ->  | M53: =IFERROR(L53*K53,0) -> 0 | N53: =IF(ISBLANK('FULL COST BUDGET'!N50),"",'FULL COST BUDGET'!N50) ->  | O53: =IF(ISBLANK('FULL COST BUDGET'!O50),"",'FULL COST BUDGET'!O50) ->  | P53: =IFERROR(O53*N53,0) -> 0 | Q53: =IF(ISBLANK('FULL COST BUDGET'!Q50),"",'FULL COST BUDGET'!Q50) ->  | R53: =IF(ISBLANK('FULL COST BUDGET'!R50),"",'FULL COST BUDGET'!R50) ->  | S53: =IFERROR(R53*Q53,0) -> 0 | T53: =SUM(G53,J53,M53,P53,S53) -> 0
A55: 5. Travel costs, conferences, workshops & seminars | E55: Units | F55: Price/unit | G55: Amount | H55: Units | I55: Price/unit | J55: Amount | K55: Units | L55: Price/unit | M55: Amount | N55: Units | O55: Price/unit | P55: Amount | Q55: Units | R55: Price/unit | S55: Amount | T55: Total Amount
B56: 5.1 | C56: =IF(ISBLANK('FULL COST BUDGET'!C53),"",'FULL COST BUDGET'!C53) -> Domestic travel to workshops / conferences | E56: =IF(ISBLANK('FULL COST BUDGET'!E53),"",'FULL COST BUDGET'!E53) ->  | F56: =IF(ISBLANK('FULL COST BUDGET'!F53),"",'FULL COST BUDGET'!F53) ->  | G56: =IFERROR(F56*E56,0) -> 0 | H56: =IF(ISBLANK('FULL COST BUDGET'!H53),"",'FULL COST BUDGET'!H53) ->  | I56: =IF(ISBLANK('FULL COST BUDGET'!I53),"",'FULL COST BUDGET'!I53) ->  | J56: =IFERROR(I56*H56,0) -> 0 | K56: =IF(ISBLANK('FULL COST BUDGET'!K53),"",'FULL COST BUDGET'!K53) ->  | L56: =IF(ISBLANK('FULL COST BUDGET'!L53),"",'FULL COST BUDGET'!L53) ->  | M56: =IFERROR(L56*K56,0) -> 0 | N56: =IF(ISBLANK('FULL COST BUDGET'!N53),"",'FULL COST BUDGET'!N53) ->  | O56: =IF(ISBLANK('FULL COST BUDGET'!O53),"",'FULL COST BUDGET'!O53) ->  | P56: =IFERROR(O56*N56,0) -> 0 | Q56: =IF(ISBLANK('FULL COST BUDGET'!Q53),"",'FULL COST BUDGET'!Q53) ->  | R56: =IF(ISBLANK('FULL COST BUDGET'!R53),"",'FULL COST BUDGET'!R53) ->  | S56: =IFERROR(R56*Q56,0) -> 0 | T56: =SUM(G56,J56,M56,P56,S56) -> 0
B57: 5.2 | C57: =IF(ISBLANK('FULL COST BUDGET'!C54),"",'FULL COST BUDGET'!C54) -> International travel to workshops / conferences | E57: =IF(ISBLANK('FULL COST BUDGET'!E54),"",'FULL COST BUDGET'!E54) ->  | F57: =IF(ISBLANK('FULL COST BUDGET'!F54),"",'FULL COST BUDGET'!F54) ->  | G57: 0 | H57: =IF(ISBLANK('FULL COST BUDGET'!H54),"",'FULL COST BUDGET'!H54) ->  | I57: =IF(ISBLANK('FULL COST BUDGET'!I54),"",'FULL COST BUDGET'!I54) ->  | J57: 0 | K57: =IF(ISBLANK('FULL COST BUDGET'!K54),"",'FULL COST BUDGET'!K54) ->  | L57: =IF(ISBLANK('FULL COST BUDGET'!L54),"",'FULL COST BUDGET'!L54) ->  | M57: 0 | N57: =IF(ISBLANK('FULL COST BUDGET'!N54),"",'FULL COST BUDGET'!N54) ->  | O57: =IF(ISBLANK('FULL COST BUDGET'!O54),"",'FULL COST BUDGET'!O54) ->  | P57: 0 | Q57: =IF(ISBLANK('FULL COST BUDGET'!Q54),"",'FULL COST BUDGET'!Q54) ->  | R57: =IF(ISBLANK('FULL COST BUDGET'!R54),"",'FULL COST BUDGET'!R54) ->  | S57: 0 | T57: 0
B58: 5.3 | C58: =IF(ISBLANK('FULL COST BUDGET'!C55),"",'FULL COST BUDGET'!C55) -> Accommodation | E58: =IF(ISBLANK('FULL COST BUDGET'!E55),"",'FULL COST BUDGET'!E55) ->  | F58: =IF(ISBLANK('FULL COST BUDGET'!F55),"",'FULL COST BUDGET'!F55) ->  | G58: 0 | H58: =IF(ISBLANK('FULL COST BUDGET'!H55),"",'FULL COST BUDGET'!H55) ->  | I58: =IF(ISBLANK('FULL COST BUDGET'!I55),"",'FULL COST BUDGET'!I55) ->  | J58: 0 | K58: =IF(ISBLANK('FULL COST BUDGET'!K55),"",'FULL COST BUDGET'!K55) ->  | L58: =IF(ISBLANK('FULL COST BUDGET'!L55),"",'FULL COST BUDGET'!L55) ->  | M58: 0 | N58: =IF(ISBLANK('FULL COST BUDGET'!N55),"",'FULL COST BUDGET'!N55) ->  | O58: =IF(ISBLANK('FULL COST BUDGET'!O55),"",'FULL COST BUDGET'!O55) ->  | P58: 0 | Q58: =IF(ISBLANK('FULL COST BUDGET'!Q55),"",'FULL COST BUDGET'!Q55) ->  | R58: =IF(ISBLANK('FULL COST BUDGET'!R55),"",'FULL COST BUDGET'!R55) ->  | S58: 0 | T58: 0
B59: 5.4 | C59: =IF(ISBLANK('FULL COST BUDGET'!C56),"",'FULL COST BUDGET'!C56) -> Registration cost | E59: =IF(ISBLANK('FULL COST BUDGET'!E56),"",'FULL COST BUDGET'!E56) ->  | F59: =IF(ISBLANK('FULL COST BUDGET'!F56),"",'FULL COST BUDGET'!F56) ->  | G59: 0 | H59: =IF(ISBLANK('FULL COST BUDGET'!H56),"",'FULL COST BUDGET'!H56) ->  | I59: =IF(ISBLANK('FULL COST BUDGET'!I56),"",'FULL COST BUDGET'!I56) ->  | J59: 0 | K59: =IF(ISBLANK('FULL COST BUDGET'!K56),"",'FULL COST BUDGET'!K56) ->  | L59: =IF(ISBLANK('FULL COST BUDGET'!L56),"",'FULL COST BUDGET'!L56) ->  | M59: 0 | N59: =IF(ISBLANK('FULL COST BUDGET'!N56),"",'FULL COST BUDGET'!N56) ->  | O59: =IF(ISBLANK('FULL COST BUDGET'!O56),"",'FULL COST BUDGET'!O56) ->  | P59: 0 | Q59: =IF(ISBLANK('FULL COST BUDGET'!Q56),"",'FULL COST BUDGET'!Q56) ->  | R59: =IF(ISBLANK('FULL COST BUDGET'!R56),"",'FULL COST BUDGET'!R56) ->  | S59: 0 | T59: 0
B60: 5.5 | C60: =IF(ISBLANK('FULL COST BUDGET'!C57),"",'FULL COST BUDGET'!C57) -> Per diems (daily allowances) | E60: =IF(ISBLANK('FULL COST BUDGET'!E57),"",'FULL COST BUDGET'!E57) ->  | F60: =IF(ISBLANK('FULL COST BUDGET'!F57),"",'FULL COST BUDGET'!F57) ->  | G60: 0 | H60: =IF(ISBLANK('FULL COST BUDGET'!H57),"",'FULL COST BUDGET'!H57) ->  | I60: =IF(ISBLANK('FULL COST BUDGET'!I57),"",'FULL COST BUDGET'!I57) ->  | J60: 0 | K60: =IF(ISBLANK('FULL COST BUDGET'!K57),"",'FULL COST BUDGET'!K57) ->  | L60: =IF(ISBLANK('FULL COST BUDGET'!L57),"",'FULL COST BUDGET'!L57) ->  | M60: 0 | N60: =IF(ISBLANK('FULL COST BUDGET'!N57),"",'FULL COST BUDGET'!N57) ->  | O60: =IF(ISBLANK('FULL COST BUDGET'!O57),"",'FULL COST BUDGET'!O57) ->  | P60: 0 | Q60: =IF(ISBLANK('FULL COST BUDGET'!Q57),"",'FULL COST BUDGET'!Q57) ->  | R60: =IF(ISBLANK('FULL COST BUDGET'!R57),"",'FULL COST BUDGET'!R57) ->  | S60: 0 | T60: 0
B61: 5.6 | C61: =IF(ISBLANK('FULL COST BUDGET'!C58),"",'FULL COST BUDGET'!C58) -> Other travel costs | E61: =IF(ISBLANK('FULL COST BUDGET'!E58),"",'FULL COST BUDGET'!E58) ->  | F61: =IF(ISBLANK('FULL COST BUDGET'!F58),"",'FULL COST BUDGET'!F58) ->  | G61: 0 | H61: =IF(ISBLANK('FULL COST BUDGET'!H58),"",'FULL COST BUDGET'!H58) ->  | I61: =IF(ISBLANK('FULL COST BUDGET'!I58),"",'FULL COST BUDGET'!I58) ->  | J61: 0 | K61: =IF(ISBLANK('FULL COST BUDGET'!K58),"",'FULL COST BUDGET'!K58) ->  | L61: =IF(ISBLANK('FULL COST BUDGET'!L58),"",'FULL COST BUDGET'!L58) ->  | M61: 0 | N61: =IF(ISBLANK('FULL COST BUDGET'!N58),"",'FULL COST BUDGET'!N58) ->  | O61: =IF(ISBLANK('FULL COST BUDGET'!O58),"",'FULL COST BUDGET'!O58) ->  | P61: 0 | Q61: =IF(ISBLANK('FULL COST BUDGET'!Q58),"",'FULL COST BUDGET'!Q58) ->  | R61: =IF(ISBLANK('FULL COST BUDGET'!R58),"",'FULL COST BUDGET'!R58) ->  | S61: 0 | T61: 0
C62: Total travel cost, conferences etc | G62: =SUM(G56:G61) -> 0 | J62: =SUM(J56:J61) -> 0 | M62: =SUM(M56:M61) -> 0 | P62: =SUM(P56:P61) -> 0 | S62: =SUM(S56:S61) -> 0 | T62: =SUM(T56:T61) -> 0
A64: 6. Any other expenses directly related to the research project | E64: Units | F64: Price/unit | G64: Amount | H64: Units | I64: Price/unit | J64: Amount | K64: Units | L64: Price/unit | M64: Amount | N64: Units | O64: Price/unit | P64: Amount | Q64: Units | R64: Price/unit | S64: Amount | T64: Total Amount
B65: 6.1 | C65: =IF(ISBLANK('FULL COST BUDGET'!C62),"",'FULL COST BUDGET'!C62) -> Research Data Management | E65: =IF(ISBLANK('FULL COST BUDGET'!E62),"",'FULL COST BUDGET'!E62) ->  | F65: =IF(ISBLANK('FULL COST BUDGET'!F62),"",'FULL COST BUDGET'!F62) ->  | G65: =IFERROR(F65*E65,0) -> 0 | H65: =IF(ISBLANK('FULL COST BUDGET'!H62),"",'FULL COST BUDGET'!H62) ->  | I65: =IF(ISBLANK('FULL COST BUDGET'!I62),"",'FULL COST BUDGET'!I62) ->  | J65: =IFERROR(I65*H65,0) -> 0 | K65: 1 | L65: =IF(ISBLANK('FULL COST BUDGET'!L62),"",'FULL COST BUDGET'!L62) ->  | M65: =IFERROR(L65*K65,0) -> 0 | N65: =IF(ISBLANK('FULL COST BUDGET'!N62),"",'FULL COST BUDGET'!N62) ->  | O65: =IF(ISBLANK('FULL COST BUDGET'!O62),"",'FULL COST BUDGET'!O62) ->  | P65: =IFERROR(O65*N65,0) -> 0 | Q65: =IF(ISBLANK('FULL COST BUDGET'!Q62),"",'FULL COST BUDGET'!Q62) ->  | R65: =IF(ISBLANK('FULL COST BUDGET'!R62),"",'FULL COST BUDGET'!R62) ->  | S65: =IFERROR(R65*Q65,0) -> 0 | T65: =SUM(G65,J65,M65,P65,S65) -> 0
B66: 6.2 | C66: =IF(ISBLANK('FULL COST BUDGET'!C63),"",'FULL COST BUDGET'!C63) -> Grant Management Office | E66: =IF(ISBLANK('FULL COST BUDGET'!E63),"",'FULL COST BUDGET'!E63) ->  | F66: =IF(ISBLANK('FULL COST BUDGET'!F63),"",'FULL COST BUDGET'!F63) ->  | G66: =IFERROR(F66*E66,0) -> 0 | H66: =IF(ISBLANK('FULL COST BUDGET'!H63),"",'FULL COST BUDGET'!H63) ->  | I66: =IF(ISBLANK('FULL COST BUDGET'!I63),"",'FULL COST BUDGET'!I63) ->  | J66: =IFERROR(I66*H66,0) -> 0 | K66: =IF(ISBLANK('FULL COST BUDGET'!K62),"",'FULL COST BUDGET'!K62) ->  | L66: =IF(ISBLANK('FULL COST BUDGET'!L63),"",'FULL COST BUDGET'!L63) ->  | M66: =IFERROR(L66*K66,0) -> 0 | N66: =IF(ISBLANK('FULL COST BUDGET'!N63),"",'FULL COST BUDGET'!N63) ->  | O66: =IF(ISBLANK('FULL COST BUDGET'!O63),"",'FULL COST BUDGET'!O63) ->  | P66: =IFERROR(O66*N66,0) -> 0 | Q66: =IF(ISBLANK('FULL COST BUDGET'!Q63),"",'FULL COST BUDGET'!Q63) ->  | R66: =IF(ISBLANK('FULL COST BUDGET'!R63),"",'FULL COST BUDGET'!R63) ->  | S66: =IFERROR(R66*Q66,0) -> 0 | T66: =SUM(G66,J66,M66,P66,S66) -> 0
B67: 6.3 | C67: =IF(ISBLANK('FULL COST BUDGET'!C64),"",'FULL COST BUDGET'!C64) ->  | E67: =IF(ISBLANK('FULL COST BUDGET'!E64),"",'FULL COST BUDGET'!E64) ->  | F67: =IF(ISBLANK('FULL COST BUDGET'!F64),"",'FULL COST BUDGET'!F64) ->  | G67: =IFERROR(F67*E67,0) -> 0 | H67: =IF(ISBLANK('FULL COST BUDGET'!H64),"",'FULL COST BUDGET'!H64) ->  | I67: =IF(ISBLANK('FULL COST BUDGET'!I64),"",'FULL COST BUDGET'!I64) ->  | J67: =IFERROR(I67*H67,0) -> 0 | K67: =IF(ISBLANK('FULL COST BUDGET'!K63),"",'FULL COST BUDGET'!K63) ->  | L67: =IF(ISBLANK('FULL COST BUDGET'!L64),"",'FULL COST BUDGET'!L64) ->  | M67: =IFERROR(L67*K67,0) -> 0 | N67: =IF(ISBLANK('FULL COST BUDGET'!N64),"",'FULL COST BUDGET'!N64) ->  | O67: =IF(ISBLANK('FULL COST BUDGET'!O64),"",'FULL COST BUDGET'!O64) ->  | P67: =IFERROR(O67*N67,0) -> 0 | Q67: =IF(ISBLANK('FULL COST BUDGET'!Q64),"",'FULL COST BUDGET'!Q64) ->  | R67: =IF(ISBLANK('FULL COST BUDGET'!R64),"",'FULL COST BUDGET'!R64) ->  | S67: =IFERROR(R67*Q67,0) -> 0 | T67: =SUM(G67,J67,M67,P67,S67) -> 0
C68: Total other expenses | G68: =SUM(G65:G67) -> 0 | J68: =SUM(J65:J67) -> 0 | M68: =SUM(M65:M67) -> 0 | P68: =SUM(P65:P67) -> 0 | S68: =SUM(S65:S67) -> 0 | T68: =SUM(T65:T67) -> 0
A70: SUBTOTAL A (TOTAL DIRECT COST excluding Bursaries, Levies and Indirect Costs) | G70: =SUM(G68,G62,G53,G50,G29,G23) -> 0 | J70: =SUM(J68,J62,J53,J50,J29,J23) -> 0 | M70: =SUM(M68,M62,M53,M50,M29,M23) -> 0 | P70: =SUM(P68,P62,P53,P50,P29,P23) -> 0 | S70: =SUM(S68,S62,S53,S50,S29,S23) -> 0 | T70: =SUM(G70,J70,M70,P70,S70) -> 0
C71: Subtotal A, excluding equipment amount exempted from ICRR | G71: =G70-G30 -> 0 | J71: =J70-J30 -> 0 | M71: =M70-M30 -> 0 | P71: =P70-P30 -> 0 | S71: =S70-S30 -> 0 | T71: =T70-T30 -> 0
C73: Departmental levy | D73: =IF(IsDeptLevy="YES",DeptLevy,0) -> 0
C74: Faculty levy | D74: =IF(IsFactLevy="YES",FacultyLevy,0) -> 0
C75: ICRR | D75: =IF(IsIndirectRestricted="Yes",Hide1,ICRR) -> 0.2 | G75: This should reflect adjusted % if such is authorised & applied for on Cover page
C76: Total Overhead charges | D76: =SUM(D73:D75) -> 0.2 | G76: Amount | J76: Amount | M76: Amount | P76: Amount | S76: Amount | T76: Total Amount
C77: Overheads total charge (Subtotal A excl exempted equipment) | G77: =ROUND(G71/(1-$D$76)-G71,2) -> 0 | J77: =ROUND(J71/(1-$D$76)-J71,2) -> 0 | M77: =ROUND(M71/(1-$D$76)-M71,2) -> 0 | P77: =ROUND(P71/(1-$D$76)-P71,2) -> 0 | S77: =ROUND(S71/(1-$D$76)-S71,2) -> 0 | T77: =G77+J77+M77+P77+S77 -> 0
C78: Overheads total charge (Exempted equipment) | G78: =ROUND(G30/(1-($D$73+$D$74))-G30,2) -> 0 | J78: =ROUND(J30/(1-($D$73+$D$74))-J30,2) -> 0 | M78: =ROUND(M30/(1-($D$73+$D$74))-M30,2) -> 0 | P78: =ROUND(P30/(1-($D$73+$D$74))-P30,2) -> 0 | S78: =ROUND(S30/(1-($D$73+$D$74))-S30,2) -> 0 | T78: =G78+J78+M78+P78+S78 -> 0
A80: 7. Departmental / Faculty Indirect Cost | G80: Amount | J80: Amount | M80: Amount | P80: Amount | S80: Amount | T80: Total Amount
B81: 7.1 | C81: Departmental levy (Support cost within department) | G81: =ROUND(G77/$D$76*$D$73+IFERROR(G78/SUM($D$73:$D$74)*$D$73,0),2) -> 0 | J81: =ROUND(J77/$D$76*$D$73+IFERROR(J78/SUM($D$73:$D$74)*$D$73,0),2) -> 0 | M81: =ROUND(M77/$D$76*$D$73+IFERROR(M78/SUM($D$73:$D$74)*$D$73,0),2) -> 0 | P81: =ROUND(P77/$D$76*$D$73+IFERROR(P78/SUM($D$73:$D$74)*$D$73,0),2) -> 0 | S81: =ROUND(S77/$D$76*$D$73+IFERROR(S78/SUM($D$73:$D$74)*$D$73,0),2) -> 0 | T81: =SUM(G81,J81,M81,P81,S81) -> 0
B82: 7.2 | C82: Faculty levy (if academic footprint is not sufficient) | G82: =ROUND(G77/$D$76*$D$74+IFERROR(G78*$D$74/SUM($D$73:$D$74),0),2) -> 0 | J82: =ROUND(J77/$D$76*$D$74+IFERROR(J78*$D$74/SUM($D$73:$D$74),0),2) -> 0 | M82: =ROUND(M77/$D$76*$D$74+IFERROR(M78*$D$74/SUM($D$73:$D$74),0),2) -> 0 | P82: =ROUND(P77/$D$76*$D$74+IFERROR(P78*$D$74/SUM($D$73:$D$74),0),2) -> 0 | S82: =ROUND(S77/$D$76*$D$74+IFERROR(S78*$D$74/SUM($D$73:$D$74),0),2) -> 0 | T82: =SUM(G82,J82,M82,P82,S82) -> 0
C83: Total faculty & departmental indirect cost | G83: =SUM(G81:G82) -> 0 | J83: =SUM(J81:J82) -> 0 | M83: =SUM(M81:M82) -> 0 | P83: =SUM(P81:P82) -> 0 | S83: =SUM(S81:S82) -> 0 | T83: =SUM(T81:T82) -> 0
A85: SUBTOTAL B (TOTAL COST excluding ICRR and Bursaries) | G85: =G70+G83 -> 0 | J85: =J70+J83 -> 0 | M85: =M70+M83 -> 0 | P85: =P70+P83 -> 0 | S85: =S70+S83 -> 0 | T85: =T70+T83 -> 0
A87: 8. ICRR (Indirect Cost Recovery Rate) | G87: Amount | J87: Amount | M87: Amount | P87: Amount | S87: Amount | T87: Total Amount
C88: ICRR as per Cover Page (excluding IP Transfer Fee and Bursaries) | G88: =G77/$D$76*$D$75 -> 0 | J88: =J77/$D$76*$D$75 -> 0 | M88: =M77/$D$76*$D$75 -> 0 | P88: =P77/$D$76*$D$75 -> 0 | S88: =S77/$D$76*$D$75 -> 0 | T88: =SUM(G88,J88,M88,P88,S88) -> 0
A90: SUBTOTAL C (TOTAL COST excluding Bursaries) | G90: =SUM(G77:G78,G70) -> 0 | J90: =SUM(J77:J78,J70) -> 0 | M90: =SUM(M77:M78,M70) -> 0 | P90: =SUM(P77:P78,P70) -> 0 | S90: =SUM(S77:S78,S70) -> 0 | T90: =SUM(G90,J90,M90,P90,S90) -> 0
A92: 9. IP Transfer Fee | C92: LINK to IP PRICING TOOL | D92: 0 | G92: Amount | J92: Amount | M92: Amount | P92: Amount | S92: Amount | T92: Total Amount
C93: =TEXT(D92,"0%")&" of Subtotal C (only applicable if clients want to own the IP)" -> 0% of Subtotal C (only applicable if clients want to own the IP) | G93: =G90*$D$92 -> 0 | J93: =J90*$D$92 -> 0 | M93: =M90*$D$92 -> 0 | P93: =P90*$D$92 -> 0 | S93: =S90*$D$92 -> 0 | T93: =SUM(G93,J93,M93,P93,S93) -> 0
A95: SUBTOTAL D | G95: =G90+G93 -> 0 | J95: =J90+J93 -> 0 | M95: =M90+M93 -> 0 | P95: =P90+P93 -> 0 | S95: =S90+S93 -> 0 | T95: =T90+T93 -> 0
A97: 10. VAT | C97: If Foreign payment, then VAT = zero. | G97: Amount | J97: Amount | M97: Amount | P97: Amount | S97: Amount | T97: Total Amount
C98: =TEXT(VAT,"0%") & " of Subtotal D" -> 16% of Subtotal D | G98: =VAT*G95 -> 0 | J98: =VAT*J95 -> 0 | M98: =VAT*M95 -> 0 | P98: =VAT*P95 -> 0 | S98: =VAT*S95 -> 0 | T98: =SUM(G98,J98,M98,P98,S98) -> 0
A100: 11. Bursaries | E100: Units | F100: Price/unit | G100: Amount | H100: Units | I100: Price/unit | J100: Amount | K100: Units | L100: Price/unit | M100: Amount | N100: Units | O100: Price/unit | P100: Amount | Q100: Units | R100: Price/unit | S100: Amount | T100: Total Amount
B101: 11.1 | C101: ='FULL COST BUDGET'!C98 -> Undergraduate Bursaries | G101: ='FULL COST BUDGET'!G98 -> 0 | H101: =IF(ISBLANK('FULL COST BUDGET'!H98),"",'FULL COST BUDGET'!H98) ->  | I101: =IF(ISBLANK('FULL COST BUDGET'!I98),"",'FULL COST BUDGET'!I98) ->  | J101: ='FULL COST BUDGET'!J98 -> 0 | K101: =IF(ISBLANK('FULL COST BUDGET'!K98),"",'FULL COST BUDGET'!K98) ->  | L101: =IF(ISBLANK('FULL COST BUDGET'!L98),"",'FULL COST BUDGET'!L98) ->  | M101: ='FULL COST BUDGET'!M98 -> 0 | N101: =IF(ISBLANK('FULL COST BUDGET'!N98),"",'FULL COST BUDGET'!N98) ->  | O101: =IF(ISBLANK('FULL COST BUDGET'!O98),"",'FULL COST BUDGET'!O98) ->  | P101: ='FULL COST BUDGET'!P98 -> 0 | Q101: =IF(ISBLANK('FULL COST BUDGET'!Q98),"",'FULL COST BUDGET'!Q98) ->  | R101: =IF(ISBLANK('FULL COST BUDGET'!R98),"",'FULL COST BUDGET'!R98) ->  | S101: ='FULL COST BUDGET'!S98 -> 0 | T101: ='FULL COST BUDGET'!T98 -> 0
B102: 11.2 | C102: ='FULL COST BUDGET'!C99 -> Postgraduate Bursaries | E102: =IF(ISBLANK('FULL COST BUDGET'!E99),"",'FULL COST BUDGET'!E99) ->  | F102: =IF(ISBLANK('FULL COST BUDGET'!F99),"",'FULL COST BUDGET'!F99) ->  | G102: ='FULL COST BUDGET'!G99 -> 0 | H102: =IF(ISBLANK('FULL COST BUDGET'!H99),"",'FULL COST BUDGET'!H99) ->  | I102: =IF(ISBLANK('FULL COST BUDGET'!I99),"",'FULL COST BUDGET'!I99) ->  | J102: ='FULL COST BUDGET'!J99 -> 0 | K102: =IF(ISBLANK('FULL COST BUDGET'!K99),"",'FULL COST BUDGET'!K99) ->  | L102: =IF(ISBLANK('FULL COST BUDGET'!L99),"",'FULL COST BUDGET'!L99) ->  | M102: ='FULL COST BUDGET'!M99 -> 0 | N102: =IF(ISBLANK('FULL COST BUDGET'!N99),"",'FULL COST BUDGET'!N99) ->  | O102: =IF(ISBLANK('FULL COST BUDGET'!O99),"",'FULL COST BUDGET'!O99) ->  | P102: ='FULL COST BUDGET'!P99 -> 0 | Q102: =IF(ISBLANK('FULL COST BUDGET'!Q99),"",'FULL COST BUDGET'!Q99) ->  | R102: =IF(ISBLANK('FULL COST BUDGET'!R99),"",'FULL COST BUDGET'!R99) ->  | S102: ='FULL COST BUDGET'!S99 -> 0 | T102: ='FULL COST BUDGET'!T99 -> 0
C103: Total bursaries | G103: =SUM(G101:G102) -> 0 | J103: =SUM(J101:J102) -> 0 | M103: =SUM(M101:M102) -> 0 | P103: =SUM(P101:P102) -> 0 | S103: =SUM(S101:S102) -> 0 | T103: =SUM(T101:T102) -> 0
A105: TOTAL CONTRACT BUDGET | G105: =SUM(G103,G98,G95) -> 0 | J105: =SUM(J103,J98,J95) -> 0 | M105: =SUM(M103,M98,M95) -> 0 | P105: =SUM(P103,P98,P95) -> 0 | S105: =SUM(S103,S98,S95) -> 0 | T105: =SUM(T103,T98,T95) -> 0
A107: Quick links:
A108: Introduction
A109: Deviation Report
A110: Contract Price FOREX
A111: Standard Quote for Client
A112: Summarised Quote for Client
A113: Detailed Quote for Client

Sheet CONTRACT PRICE FOREX
B1: CONTRACT BUDGET: RESEARCH BUDGET
B2: ="PROJECT NAME: "&ProjectName -> PROJECT NAME: Enter NAME
B3: ="FACULTY: "&IF(ISBLANK(Faculty),"",Faculty) -> FACULTY: | G3: FOREIGN CURRENCY selected | I3: =IF(IsForeignClient="YES",IF(ISBLANK('COVER PAGE'!B23),ForeignCurr,'COVER PAGE'!B23)) -> FALSE
G4: ='COVER PAGE'!B24 -> 0
A5: DIRECT COST
C6: Year 1 | E6: Year 2 | G6: Year 3 | I6: Year 4 | K6: Year 5 | M6: TOTAL FULL COST
A7: 1. Personnel | C7: 2023 | E7: =C7+1 -> 2024 | G7: =E7+1 -> 2025 | I7: =G7+1 -> 2026 | K7: =I7+1 -> 2027
A8: 1.1 | B8: US Professional personnel and US research support personnel (e.g. Researchers, assistants, technicians and consultants) | C8: Amount ZAR | D8: Amount Forex | E8: Amount ZAR | F8: Amount Forex | G8: Amount ZAR | H8: Amount Forex | I8: Amount ZAR | J8: Amount Forex | K8: Amount ZAR | L8: Amount Forex | M8: Total Amount Forex
B9: =IF(ISBLANK('FULL COST BUDGET'!C8),"",'FULL COST BUDGET'!C8) -> Professor P5 | C9: =VALUE('CONTRACT PRICE ZAR'!G11) -> 0 | D9: =C9/$G$4 ->  | E9: =VALUE('CONTRACT PRICE ZAR'!J11) -> 0 | F9: =E9/$G$4 ->  | G9: =VALUE('CONTRACT PRICE ZAR'!M11) -> 0 | H9: =G9/$G$4 ->  | I9: =VALUE('CONTRACT PRICE ZAR'!P11) -> 0 | J9: =I9/$G$4 ->  | K9: =VALUE('CONTRACT PRICE ZAR'!S11) -> 0 | L9: =K9/$G$4 ->  | M9: =D9+F9+H9+J9+L9 -> 
B10: =IF(ISBLANK('FULL COST BUDGET'!C9),"",'FULL COST BUDGET'!C9) -> Senior Lecturer P7 | C10: =VALUE('CONTRACT PRICE ZAR'!G12) -> 0 | E10: =VALUE('CONTRACT PRICE ZAR'!J12) -> 0 | G10: =VALUE('CONTRACT PRICE ZAR'!M12) -> 0 | I10: =VALUE('CONTRACT PRICE ZAR'!P12) -> 0 | K10: =VALUE('CONTRACT PRICE ZAR'!S12) -> 0
B11: =IF(ISBLANK('FULL COST BUDGET'!C10),"",'FULL COST BUDGET'!C10) -> Lecturer P8 | C11: =VALUE('CONTRACT PRICE ZAR'!G13) -> 0 | E11: =VALUE('CONTRACT PRICE ZAR'!J13) -> 0 | G11: =VALUE('CONTRACT PRICE ZAR'!M13) -> 0 | I11: =VALUE('CONTRACT PRICE ZAR'!P13) -> 0 | K11: =VALUE('CONTRACT PRICE ZAR'!S13) -> 0
B12: =IF(ISBLANK('FULL COST BUDGET'!C11),"",'FULL COST BUDGET'!C11) -> Lecturer P8 | C12: =VALUE('CONTRACT PRICE ZAR'!G14) -> 0 | E12: =VALUE('CONTRACT PRICE ZAR'!J14) -> 0 | G12: =VALUE('CONTRACT PRICE ZAR'!M14) -> 0 | I12: =VALUE('CONTRACT PRICE ZAR'!P14) -> 0 | K12: =VALUE('CONTRACT PRICE ZAR'!S14) -> 0
B13: =IF(ISBLANK('FULL COST BUDGET'!C12),"",'FULL COST BUDGET'!C12) -> Post Level 9 | C13: =VALUE('CONTRACT PRICE ZAR'!G15) -> 0 | E13: =VALUE('CONTRACT PRICE ZAR'!J15) -> 0 | G13: =VALUE('CONTRACT PRICE ZAR'!M15) -> 0 | K13: =VALUE('CONTRACT PRICE ZAR'!S15) -> 0
B14: =IF(ISBLANK('FULL COST BUDGET'!C13),"",'FULL COST BUDGET'!C13) -> Post Level 12 | C14: =VALUE('CONTRACT PRICE ZAR'!G16) -> 0 | E14: =VALUE('CONTRACT PRICE ZAR'!J16) -> 0 | G14: =VALUE('CONTRACT PRICE ZAR'!M16) -> 0 | I14: =VALUE('CONTRACT PRICE ZAR'!P16) -> 0 | K14: =VALUE('CONTRACT PRICE ZAR'!S16) -> 0
B15: Total US personnel | C15: =SUM(C9:C14) -> 0 | E15: 0 | G15: 0 | I15: 0 | K15: 0
A16: 1.2 | B16: External personnel (e.g. Consultants that does not work at SU, but work on the project)
B17: =IF(ISBLANK('FULL COST BUDGET'!C16),"",'FULL COST BUDGET'!C16) ->  | C17: =VALUE('CONTRACT PRICE ZAR'!G19) -> 0 | D17: =C17/$G$4 ->  | E17: =VALUE('CONTRACT PRICE ZAR'!J19) -> 0 | G17: =VALUE('CONTRACT PRICE ZAR'!M19) -> 0 | I17: =VALUE('CONTRACT PRICE ZAR'!P19) -> 0 | K17: =VALUE('CONTRACT PRICE ZAR'!S19) -> 0 | M17: =D17+F17+H17+J17+L17 -> 
B18: =IF(ISBLANK('FULL COST BUDGET'!C17),"",'FULL COST BUDGET'!C17) ->  | C18: =VALUE('CONTRACT PRICE ZAR'!G20) -> 0 | D18: =C18/$G$4 ->  | E18: =VALUE('CONTRACT PRICE ZAR'!J20) -> 0 | F18: =E18/$G$4 ->  | G18: =VALUE('CONTRACT PRICE ZAR'!M20) -> 0 | H18: =G18/$G$4 ->  | I18: =VALUE('CONTRACT PRICE ZAR'!P20) -> 0 | J18: =I18/$G$4 ->  | K18: =VALUE('CONTRACT PRICE ZAR'!S20) -> 0 | L18: =K18/$G$4 ->  | M18: =D18+F18+H18+J18+L18 -> 
B19: =IF(ISBLANK('FULL COST BUDGET'!C18),"",'FULL COST BUDGET'!C18) ->  | C19: =VALUE('CONTRACT PRICE ZAR'!G21) -> 0 | D19: =C19/$G$4 ->  | E19: =VALUE('CONTRACT PRICE ZAR'!J21) -> 0 | F19: =E19/$G$4 ->  | G19: =VALUE('CONTRACT PRICE ZAR'!M21) -> 0 | H19: =G19/$G$4 ->  | I19: =VALUE('CONTRACT PRICE ZAR'!P21) -> 0 | J19: =I19/$G$4 ->  | K19: =VALUE('CONTRACT PRICE ZAR'!S21) -> 0 | L19: =K19/$G$4 ->  | M19: =D19+F19+H19+J19+L19 -> 
B20: Total external personnel | C20: =SUM(C17:C19) -> 0 | D20: =SUM(D17:D19) ->  | E20: 0 | G20: 0 | I20: 0 | K20: 0
B21: Total personnel | C21: =SUM(C20,C15) -> 0 | D21: =SUM(D15+D20) ->  | E21: =SUM(E20,E15) -> 0 | F21: =SUM(F15+F20) ->  | G21: =SUM(G20,G15) -> 0 | H21: =SUM(H15+H20) ->  | I21: =SUM(I20,I15) -> 0 | J21: =SUM(J15+J20) ->  | K21: =SUM(K20,K15) -> 0 | L21: =SUM(L15+L20) ->  | M21: =SUM(M15,M20) -> 
A23: 2. Equipment | C23: Amount ZAR | D23: Amount Forex | E23: Amount ZAR | F23: Amount Forex | G23: Amount ZAR | H23: Amount Forex | I23: Amount ZAR | J23: Amount Forex | K23: Amount ZAR | L23: Amount Forex | M23: Total Amount Forex
A24: 2.1 | B24: =IF(ISBLANK('FULL COST BUDGET'!C23),"",'FULL COST BUDGET'!C23) -> Computers & hardware | C24: =VALUE('CONTRACT PRICE ZAR'!G26) -> 0 | D24: =C24/$G$4 ->  | E24: =VALUE('CONTRACT PRICE ZAR'!J26) -> 0 | G24: =VALUE('CONTRACT PRICE ZAR'!M26) -> 0 | I24: =VALUE('CONTRACT PRICE ZAR'!P26) -> 0 | K24: =VALUE('CONTRACT PRICE ZAR'!S26) -> 0 | M24: =D24+F24+H24+J24+L24 -> 
A25: 2.2 | B25: =IF(ISBLANK('FULL COST BUDGET'!C24),"",'FULL COST BUDGET'!C24) -> Other | C25: =VALUE('CONTRACT PRICE ZAR'!G27) -> 0 | D25: =C25/$G$4 ->  | E25: =VALUE('CONTRACT PRICE ZAR'!J27) -> 0 | F25: =E25/$G$4 ->  | G25: =VALUE('CONTRACT PRICE ZAR'!M27) -> 0 | H25: =G25/$G$4 ->  | I25: =VALUE('CONTRACT PRICE ZAR'!P27) -> 0 | J25: =I25/$G$4 ->  | K25: =VALUE('CONTRACT PRICE ZAR'!S27) -> 0 | L25: =K25/$G$4 ->  | M25: =D25+F25+H25+J25+L25 -> 
A26: 2.3 | B26: =IF(ISBLANK('FULL COST BUDGET'!C25),"",'FULL COST BUDGET'!C25) ->  | C26: =VALUE('CONTRACT PRICE ZAR'!G28) -> 0 | D26: =C26/$G$4 ->  | E26: =VALUE('CONTRACT PRICE ZAR'!J28) -> 0 | F26: =E26/$G$4 ->  | G26: =VALUE('CONTRACT PRICE ZAR'!M28) -> 0 | H26: =G26/$G$4 ->  | I26: =VALUE('CONTRACT PRICE ZAR'!P28) -> 0 | J26: =I26/$G$4 ->  | K26: =VALUE('CONTRACT PRICE ZAR'!S28) -> 0 | L26: =K26/$G$4 ->  | M26: =D26+F26+H26+J26+L26 -> 
B27: Total equipment | C27: =SUM(C24:C26) -> 0 | D27: =SUM(D24:D26) ->  | E27: =SUM(E24:E26) -> 0 | G27: =SUM(G24:G26) -> 0 | I27: =SUM(I24:I26) -> 0 | K27: =SUM(K24:K26) -> 0 | M27: =SUM(M24:M26) -> 
B28: Equipment exempted from ICRR | D28: =IFERROR(ROUND(D27*$M$28/$M$27,2),0) -> 0 | F28: =IFERROR(ROUND(F27*$M$28/$M$27,2),0) -> 0 | H28: =IFERROR(ROUND(H27*$M$28/$M$27,2),0) -> 0 | J28: =IFERROR(ROUND(J27*$M$28/$M$27,2),0) -> 0 | L28: =IFERROR(ROUND(L27*$M$28/$M$27,2),0) -> 0 | M28: =MAX(0,M27-SUM(ICRRExempt/G4)) -> 
A30: 3. Running costs | C30: Amount ZAR | D30: Amount Forex | E30: Amount ZAR | F30: Amount Forex | G30: Amount ZAR | H30: Amount Forex | I30: Amount ZAR | J30: Amount Forex | K30: Amount ZAR | L30: Amount Forex | M30: Total Amount Forex
A31: 3.1 | B31: =IF(ISBLANK('FULL COST BUDGET'!C30),"",'FULL COST BUDGET'!C30) -> Material (e.g. Reagents, electronic components) | C31: =VALUE('CONTRACT PRICE ZAR'!G33) -> 0 | D31: =C31/$G$4 ->  | E31: =VALUE('CONTRACT PRICE ZAR'!J33) -> 0 | G31: =VALUE('CONTRACT PRICE ZAR'!M33) -> 0 | I31: =VALUE('CONTRACT PRICE ZAR'!P33) -> 0 | K31: =VALUE('CONTRACT PRICE ZAR'!S33) -> 0 | M31: =D31+F31+H31+J31+L31 -> 
A32: 3.2 | B32: =IF(ISBLANK('FULL COST BUDGET'!C31),"",'FULL COST BUDGET'!C31) -> Stationery and printing | C32: =VALUE('CONTRACT PRICE ZAR'!G34) -> 0 | E32: =VALUE('CONTRACT PRICE ZAR'!J34) -> 0 | G32: =VALUE('CONTRACT PRICE ZAR'!M34) -> 0 | I32: =VALUE('CONTRACT PRICE ZAR'!P34) -> 0 | K32: =VALUE('CONTRACT PRICE ZAR'!S34) -> 0
A33: 3.3 | B33: =IF(ISBLANK('FULL COST BUDGET'!C32),"",'FULL COST BUDGET'!C32) -> Services | C33: =VALUE('CONTRACT PRICE ZAR'!G35) -> 0 | E33: =VALUE('CONTRACT PRICE ZAR'!J35) -> 0 | G33: =VALUE('CONTRACT PRICE ZAR'!M35) -> 0 | I33: =VALUE('CONTRACT PRICE ZAR'!P35) -> 0 | K33: =VALUE('CONTRACT PRICE ZAR'!S35) -> 0
A34: 3.4 | B34: =IF(ISBLANK('FULL COST BUDGET'!C33),"",'FULL COST BUDGET'!C33) -> Consumable material (e.g. Pipette, petri dishes) | C34: =VALUE('CONTRACT PRICE ZAR'!G36) -> 0 | E34: =VALUE('CONTRACT PRICE ZAR'!J36) -> 0 | G34: =VALUE('CONTRACT PRICE ZAR'!M36) -> 0 | I34: =VALUE('CONTRACT PRICE ZAR'!P36) -> 0 | K34: =VALUE('CONTRACT PRICE ZAR'!S36) -> 0
A35: 3.5 | B35: =IF(ISBLANK('FULL COST BUDGET'!C34),"",'FULL COST BUDGET'!C34) -> Analysis of samples | C35: =VALUE('CONTRACT PRICE ZAR'!G37) -> 0 | E35: =VALUE('CONTRACT PRICE ZAR'!J37) -> 0 | G35: =VALUE('CONTRACT PRICE ZAR'!M37) -> 0 | I35: =VALUE('CONTRACT PRICE ZAR'!P37) -> 0 | K35: =VALUE('CONTRACT PRICE ZAR'!S37) -> 0
A36: 3.6 | B36: =IF(ISBLANK('FULL COST BUDGET'!C35),"",'FULL COST BUDGET'!C35) -> Use of equipment | C36: =VALUE('CONTRACT PRICE ZAR'!G38) -> 0 | E36: =VALUE('CONTRACT PRICE ZAR'!J38) -> 0 | G36: =VALUE('CONTRACT PRICE ZAR'!M38) -> 0 | I36: =VALUE('CONTRACT PRICE ZAR'!P38) -> 0 | K36: =VALUE('CONTRACT PRICE ZAR'!S38) -> 0
A37: 3.7 | B37: =IF(ISBLANK('FULL COST BUDGET'!C36),"",'FULL COST BUDGET'!C36) -> Maintenance of equipment | C37: =VALUE('CONTRACT PRICE ZAR'!G39) -> 0 | E37: =VALUE('CONTRACT PRICE ZAR'!J39) -> 0 | G37: =VALUE('CONTRACT PRICE ZAR'!M39) -> 0 | I37: =VALUE('CONTRACT PRICE ZAR'!P39) -> 0 | K37: =VALUE('CONTRACT PRICE ZAR'!S39) -> 0
A38: 3.8 | B38: =IF(ISBLANK('FULL COST BUDGET'!C37),"",'FULL COST BUDGET'!C37) -> Sundry expenses | C38: =VALUE('CONTRACT PRICE ZAR'!G40) -> 0 | E38: =VALUE('CONTRACT PRICE ZAR'!J40) -> 0 | G38: =VALUE('CONTRACT PRICE ZAR'!M40) -> 0 | I38: =VALUE('CONTRACT PRICE ZAR'!P40) -> 0 | K38: =VALUE('CONTRACT PRICE ZAR'!S40) -> 0
A39: 3.9 | B39: =IF(ISBLANK('FULL COST BUDGET'!C38),"",'FULL COST BUDGET'!C38) -> Project specific insurance | C39: =VALUE('CONTRACT PRICE ZAR'!G41) -> 0 | E39: =VALUE('CONTRACT PRICE ZAR'!J41) -> 0 | G39: =VALUE('CONTRACT PRICE ZAR'!M41) -> 0 | I39: =VALUE('CONTRACT PRICE ZAR'!P41) -> 0 | K39: =VALUE('CONTRACT PRICE ZAR'!S41) -> 0
A40: 3.1 | B40: =IF(ISBLANK('FULL COST BUDGET'!C39),"",'FULL COST BUDGET'!C39) -> Software | C40: =VALUE('CONTRACT PRICE ZAR'!G42) -> 0 | E40: =VALUE('CONTRACT PRICE ZAR'!J42) -> 0 | G40: =VALUE('CONTRACT PRICE ZAR'!M42) -> 0 | I40: =VALUE('CONTRACT PRICE ZAR'!P42) -> 0 | K40: =VALUE('CONTRACT PRICE ZAR'!S42) -> 0
A41: 3.11 | B41: =IF(ISBLANK('FULL COST BUDGET'!C40),"",'FULL COST BUDGET'!C40) -> Communication and data costs | C41: =VALUE('CONTRACT PRICE ZAR'!G43) -> 0 | E41: =VALUE('CONTRACT PRICE ZAR'!J43) -> 0 | G41: =VALUE('CONTRACT PRICE ZAR'!M43) -> 0 | I41: =VALUE('CONTRACT PRICE ZAR'!P43) -> 0 | K41: =VALUE('CONTRACT PRICE ZAR'!S43) -> 0
A42: 3.12 | B42: =IF(ISBLANK('FULL COST BUDGET'!C41),"",'FULL COST BUDGET'!C41) -> Printing | C42: =VALUE('CONTRACT PRICE ZAR'!G44) -> 0 | E42: =VALUE('CONTRACT PRICE ZAR'!J44) -> 0 | G42: =VALUE('CONTRACT PRICE ZAR'!M44) -> 0 | I42: =VALUE('CONTRACT PRICE ZAR'!P44) -> 0 | K42: =VALUE('CONTRACT PRICE ZAR'!S44) -> 0
A43: 3.13 | B43: =IF(ISBLANK('FULL COST BUDGET'!C42),"",'FULL COST BUDGET'!C42) ->  | C43: =VALUE('CONTRACT PRICE ZAR'!G45) -> 0 | E43: =VALUE('CONTRACT PRICE ZAR'!J45) -> 0 | G43: =VALUE('CONTRACT PRICE ZAR'!M45) -> 0 | I43: =VALUE('CONTRACT PRICE ZAR'!P45) -> 0 | K43: =VALUE('CONTRACT PRICE ZAR'!S45) -> 0
A44: 3.14 | B44: =IF(ISBLANK('FULL COST BUDGET'!C43),"",'FULL COST BUDGET'!C43) ->  | C44: =VALUE('CONTRACT PRICE ZAR'!G46) -> 0 | E44: =VALUE('CONTRACT PRICE ZAR'!J46) -> 0 | G44: =VALUE('CONTRACT PRICE ZAR'!M46) -> 0 | I44: =VALUE('CONTRACT PRICE ZAR'!P46) -> 0 | K44: =VALUE('CONTRACT PRICE ZAR'!S46) -> 0
A45: 3.15 | B45: =IF(ISBLANK('FULL COST BUDGET'!C44),"",'FULL COST BUDGET'!C44) ->  | C45: =VALUE('CONTRACT PRICE ZAR'!G47) -> 0 | E45: =VALUE('CONTRACT PRICE ZAR'!J47) -> 0 | G45: =VALUE('CONTRACT PRICE ZAR'!M47) -> 0 | I45: =VALUE('CONTRACT PRICE ZAR'!P47) -> 0 | K45: =VALUE('CONTRACT PRICE ZAR'!S47) -> 0
A46: 3.16 | B46: =IF(ISBLANK('FULL COST BUDGET'!C45),"",'FULL COST BUDGET'!C45) ->  | C46: =VALUE('CONTRACT PRICE ZAR'!G48) -> 0 | E46: =VALUE('CONTRACT PRICE ZAR'!J48) -> 0 | G46: =VALUE('CONTRACT PRICE ZAR'!M48) -> 0 | I46: =VALUE('CONTRACT PRICE ZAR'!P48) -> 0 | K46: =VALUE('CONTRACT PRICE ZAR'!S48) -> 0
A47: 3.17 | B47: =IF(ISBLANK('FULL COST BUDGET'!C46),"",'FULL COST BUDGET'!C46) ->  | C47: =VALUE('CONTRACT PRICE ZAR'!G49) -> 0 | D47: =C47/$G$4 ->  | E47: =VALUE('CONTRACT PRICE ZAR'!J49) -> 0 | F47: =E47/$G$4 ->  | G47: =VALUE('CONTRACT PRICE ZAR'!M49) -> 0 | H47: =G47/$G$4 ->  | I47: =VALUE('CONTRACT PRICE ZAR'!P49) -> 0 | J47: =I47/$G$4 ->  | K47: =VALUE('CONTRACT PRICE ZAR'!S49) -> 0 | L47: =K47/$G$4 -> 
B48: Total running costs | C48: =SUM(C31:C47) -> 0 | D48: =SUM(D31:D47) ->  | E48: 0 | G48: 0 | I48: 0 | K48: 0 | M48: =SUM(M31:M47) -> 
A50: 4. Audit fees | C50: Amount ZAR | D50: Amount Forex | E50: Amount ZAR | F50: Amount Forex | G50: Amount ZAR | H50: Amount Forex | I50: Amount ZAR | J50: Amount Forex | K50: Amount ZAR | L50: Amount Forex | M50: Total Amount Forex
B51: Total Audit fees | C51: =VALUE('CONTRACT PRICE ZAR'!G53) -> 0 | D51: =C51/$G$4 ->  | E51: =VALUE('CONTRACT PRICE ZAR'!J53) -> 0 | F51: =E51/$G$4 ->  | G51: =VALUE('CONTRACT PRICE ZAR'!M53) -> 0 | H51: =G51/$G$4 ->  | I51: =VALUE('CONTRACT PRICE ZAR'!P53) -> 0 | J51: =I51/$G$4 ->  | K51: =VALUE('CONTRACT PRICE ZAR'!S53) -> 0 | L51: =K51/$G$4 ->  | M51: =D51+F51+H51+J51+L51 -> 
A53: 5. Travel costs, conferences, workshops & seminars | C53: Amount ZAR | D53: Amount Forex | E53: Amount ZAR | F53: Amount Forex | G53: Amount ZAR | H53: Amount Forex | I53: Amount ZAR | J53: Amount Forex | K53: Amount ZAR | L53: Amount Forex | M53: Total Amount Forex
A54: 5.1 | B54: =IF(ISBLANK('FULL COST BUDGET'!C53),"",'FULL COST BUDGET'!C53) -> Domestic travel to workshops / conferences | C54: =VALUE('CONTRACT PRICE ZAR'!G56) -> 0 | D54: =C54/$G$4 ->  | E54: =VALUE('CONTRACT PRICE ZAR'!J56) -> 0 | F54: =E54/$G$4 ->  | G54: =VALUE('CONTRACT PRICE ZAR'!M56) -> 0 | H54: =G54/$G$4 ->  | I54: =VALUE('CONTRACT PRICE ZAR'!P56) -> 0 | J54: =I54/$G$4 ->  | K54: =VALUE('CONTRACT PRICE ZAR'!S56) -> 0 | L54: =K54/$G$4 ->  | M54: =D54+F54+H54+J54+L54 -> 
A55: 5.2 | B55: =IF(ISBLANK('FULL COST BUDGET'!C54),"",'FULL COST BUDGET'!C54) -> International travel to workshops / conferences | C55: =VALUE('CONTRACT PRICE ZAR'!G57) -> 0 | E55: =VALUE('CONTRACT PRICE ZAR'!J57) -> 0 | G55: =VALUE('CONTRACT PRICE ZAR'!M57) -> 0 | I55: =VALUE('CONTRACT PRICE ZAR'!P57) -> 0 | K55: =VALUE('CONTRACT PRICE ZAR'!S57) -> 0
A56: 5.3 | B56: =IF(ISBLANK('FULL COST BUDGET'!C55),"",'FULL COST BUDGET'!C55) -> Accommodation | C56: =VALUE('CONTRACT PRICE ZAR'!G58) -> 0 | E56: =VALUE('CONTRACT PRICE ZAR'!J58) -> 0 | G56: =VALUE('CONTRACT PRICE ZAR'!M58) -> 0 | I56: =VALUE('CONTRACT PRICE ZAR'!P58) -> 0 | K56: =VALUE('CONTRACT PRICE ZAR'!S58) -> 0
A57: 5.4 | B57: =IF(ISBLANK('FULL COST BUDGET'!C56),"",'FULL COST BUDGET'!C56) -> Registration cost | C57: =VALUE('CONTRACT PRICE ZAR'!G59) -> 0 | E57: =VALUE('CONTRACT PRICE ZAR'!J59) -> 0 | G57: =VALUE('CONTRACT PRICE ZAR'!M59) -> 0 | I57: =VALUE('CONTRACT PRICE ZAR'!P59) -> 0 | K57: =VALUE('CONTRACT PRICE ZAR'!S59) -> 0
A58: 5.5 | B58: =IF(ISBLANK('FULL COST BUDGET'!C57),"",'FULL COST BUDGET'!C57) -> Per diems (daily allowances) | C58: =VALUE('CONTRACT PRICE ZAR'!G60) -> 0 | E58: =VALUE('CONTRACT PRICE ZAR'!J60) -> 0 | G58: =VALUE('CONTRACT PRICE ZAR'!M60) -> 0 | I58: =VALUE('CONTRACT PRICE ZAR'!P60) -> 0 | K58: =VALUE('CONTRACT PRICE ZAR'!S60) -> 0
A59: 5.6 | B59: =IF(ISBLANK('FULL COST BUDGET'!C58),"",'FULL COST BUDGET'!C58) -> Other travel costs | C59: =VALUE('CONTRACT PRICE ZAR'!G61) -> 0 | E59: =VALUE('CONTRACT PRICE ZAR'!J61) -> 0 | G59: =VALUE('CONTRACT PRICE ZAR'!M61) -> 0 | I59: =VALUE('CONTRACT PRICE ZAR'!P61) -> 0 | K59: =VALUE('CONTRACT PRICE ZAR'!S61) -> 0
B60: Total travel costs, conferences etc | C60: =SUM(C54:C59) -> 0 | D60: =SUM(D54:D59) ->  | E60: 0 | G60: 0 | I60: 0 | K60: 0 | M60: =SUM(M54:M59) -> 
A62: 6. Any other expenses directly related to the research project | C62: Amount ZAR | D62: Amount Forex | E62: Amount ZAR | F62: Amount Forex | G62: Amount ZAR | H62: Amount Forex | I62: Amount ZAR | J62: Amount Forex | K62: Amount ZAR | L62: Amount Forex | M62: Total Amount Forex
A63: 6.1 | B63: ='CONTRACT PRICE ZAR'!C65 -> Research Data Management | C63: =VALUE('CONTRACT PRICE ZAR'!G65) -> 0 | D63: =C63/$G$4 ->  | E63: =VALUE('CONTRACT PRICE ZAR'!J65) -> 0 | F63: =E63/$G$4 ->  | G63: =VALUE('CONTRACT PRICE ZAR'!M65) -> 0 | H63: =G63/$G$4 ->  | I63: =VALUE('CONTRACT PRICE ZAR'!P65) -> 0 | J63: =I63/$G$4 ->  | K63: =VALUE('CONTRACT PRICE ZAR'!S65) -> 0 | L63: =K63/$G$4 ->  | M63: =D63+F63+H63+J63+L63 -> 
A64: 6.2 | B64: ='CONTRACT PRICE ZAR'!C66 -> Grant Management Office | C64: =VALUE('CONTRACT PRICE ZAR'!G66) -> 0 | D64: =C64/$G$4 ->  | E64: =VALUE('CONTRACT PRICE ZAR'!J66) -> 0 | F64: =E64/$G$4 ->  | G64: =VALUE('CONTRACT PRICE ZAR'!M66) -> 0 | H64: =G64/$G$4 ->  | I64: =VALUE('CONTRACT PRICE ZAR'!P66) -> 0 | J64: =I64/$G$4 ->  | K64: =VALUE('CONTRACT PRICE ZAR'!S66) -> 0 | L64: =K64/$G$4 ->  | M64: =D64+F64+H64+J64+L64 -> 
A65: 6.3 | B65: ='CONTRACT PRICE ZAR'!C67 ->  | C65: =VALUE('CONTRACT PRICE ZAR'!G67) -> 0 | D65: =C65/$G$4 ->  | E65: =VALUE('CONTRACT PRICE ZAR'!J67) -> 0 | F65: =E65/$G$4 ->  | G65: =VALUE('CONTRACT PRICE ZAR'!M67) -> 0 | H65: =G65/$G$4 ->  | I65: =VALUE('CONTRACT PRICE ZAR'!P67) -> 0 | J65: =I65/$G$4 ->  | K65: =VALUE('CONTRACT PRICE ZAR'!S67) -> 0 | L65: =K65/$G$4 ->  | M65: =D65+F65+H65+J65+L65 -> 
B66: Total other expences | C66: =SUM(C63:C65) -> 0 | D66: =SUM(D63:D65) ->  | E66: 0 | G66: 0 | I66: 0 | K66: 0 | M66: =SUM(M63:M65) -> 
A68: SUBTOTAL A (TOTAL DIRECT COST excluding Bursaries, Levies and Indirect Costs) | C68: =C21+C27+C48+C51+C60+C66 -> 0 | E68: 0 | G68: 0 | I68: 0 | K68: 0
A70: 7. Departmental / Faculty Indirect Cost | C70: Amount ZAR | D70: Amount Forex | E70: Amount ZAR | F70: Amount Forex | G70: Amount ZAR | H70: Amount Forex | I70: Amount ZAR | J70: Amount Forex | K70: Amount ZAR | L70: Amount Forex | M70: Total Amount Forex
A71: 7.1 | B71: ='CONTRACT PRICE ZAR'!C81 -> Departmental levy (Support cost within department) | C71: =VALUE('CONTRACT PRICE ZAR'!G81) -> 0 | D71: =C71/$G$4 ->  | E71: =VALUE('CONTRACT PRICE ZAR'!J81) -> 0 | F71: =E71/$G$4 ->  | G71: =VALUE('CONTRACT PRICE ZAR'!M81) -> 0 | H71: =G71/$G$4 ->  | I71: =VALUE('CONTRACT PRICE ZAR'!P81) -> 0 | J71: =I71/$G$4 ->  | K71: =VALUE('CONTRACT PRICE ZAR'!S81) -> 0 | L71: =K71/$G$4 ->  | M71: =D71+F71+H71+J71+L71 -> 
A72: 7.2 | B72: =IF(ISBLANK('FULL COST BUDGET'!C79),"",'FULL COST BUDGET'!C79) -> Faculty levy | C72: =VALUE('CONTRACT PRICE ZAR'!G82) -> 0 | D72: =C72/$G$4 ->  | E72: =VALUE('CONTRACT PRICE ZAR'!J82) -> 0 | F72: =E72/$G$4 ->  | G72: =VALUE('CONTRACT PRICE ZAR'!M82) -> 0 | H72: =G72/$G$4 ->  | I72: =VALUE('CONTRACT PRICE ZAR'!P82) -> 0 | J72: =I72/$G$4 ->  | K72: =VALUE('CONTRACT PRICE ZAR'!S82) -> 0 | L72: =K72/$G$4 ->  | M72: =D72+F72+H72+J72+L72 -> 
B73: Total departmental indirect cost | C73: =SUM(C70:C72) -> 0 | D73: =SUM(D70:D72) ->  | E73: 0 | G73: 0 | I73: 0 | K73: 0 | M73: =SUM(M71:M72) -> 
A75: SUBTOTAL B (TOTAL COST excluding ICRR and Bursaries) | C75: =C68+C73 -> 0 | E75: 0 | G75: 0 | I75: 0 | K75: 0
F76: `
A77: 8. ICRR (Indirect Cost Recovery Rate) | C77: Amount ZAR | D77: Amount Forex | E77: Amount ZAR | F77: Amount Forex | G77: Amount ZAR | H77: Amount Forex | I77: Amount ZAR | J77: Amount Forex | K77: Amount ZAR | L77: Amount Forex | M77: Total Amount Forex
B78: ICRR as per Cover Page (excluding IP Transfer Fee and Bursaries) | C78: =VALUE('CONTRACT PRICE ZAR'!G88) -> 0 | D78: =C78/$G$4 ->  | E78: =VALUE('CONTRACT PRICE ZAR'!J88) -> 0 | F78: =E78/$G$4 ->  | G78: =VALUE('CONTRACT PRICE ZAR'!M88) -> 0 | H78: =G78/$G$4 ->  | I78: =VALUE('CONTRACT PRICE ZAR'!P88) -> 0 | J78: =I78/$G$4 ->  | K78: =VALUE('CONTRACT PRICE ZAR'!S88) -> 0 | L78: =K78/$G$4 ->  | M78: =D78+F78+H78+J78+L78 -> 
A80: SUBTOTAL C (TOTAL COST excluding Bursaries) | C80: =C75+C78 -> 0 | D80: =D75+D78 ->  | E80: 0 | G80: 0 | I80: 0 | K80: 0 | M80: =D80+F80+H80+J80+L80 -> 
A82: 9. IP Transfer Fee | C82: Amount ZAR | D82: Amount Forex | E82: Amount ZAR | F82: Amount Forex | G82: Amount ZAR | H82: Amount Forex | I82: Amount ZAR | J82: Amount Forex | K82: Amount ZAR | L82: Amount Forex | M82: Total Amount Forex
B83: X% of Subtotal C (only applicable if clients want to own the IP) | C83: =VALUE('CONTRACT PRICE ZAR'!G93) -> 0 | D83: =C83/$G$4 ->  | E83: =VALUE('CONTRACT PRICE ZAR'!J93) -> 0 | F83: =E83/$G$4 ->  | G83: =VALUE('CONTRACT PRICE ZAR'!M93) -> 0 | H83: =G83/$G$4 ->  | I83: =VALUE('CONTRACT PRICE ZAR'!P93) -> 0 | J83: =I83/$G$4 ->  | K83: =VALUE('CONTRACT PRICE ZAR'!S93) -> 0 | L83: =K83/$G$4 ->  | M83: =D83+F83+H83+J83+L83 -> 
A85: SUBTOTAL D | C85: =C80+C83 -> 0 | D85: =D80+D83 ->  | E85: 0 | G85: 0 | I85: 0 | K85: 0
A87: 10. VAT | C87: Amount ZAR | D87: Amount Forex | E87: Amount ZAR | F87: Amount Forex | G87: Amount ZAR | H87: Amount Forex | I87: Amount ZAR | J87: Amount Forex | K87: Amount ZAR | L87: Amount Forex | M87: Total Amount Forex
B88: 15% of Subtotal D (ZERO when paid from Foreign bank account) | C88: ='CONTRACT PRICE ZAR'!G98 -> 0 | D88: =C88/$G$4 ->  | E88: ='CONTRACT PRICE ZAR'!J98 -> 0 | F88: =E88/$G$4 ->  | G88: ='CONTRACT PRICE ZAR'!M98 -> 0 | H88: =G88/$G$4 ->  | I88: ='CONTRACT PRICE ZAR'!P98 -> 0 | J88: =I88/$G$4 ->  | K88: ='CONTRACT PRICE ZAR'!S98 -> 0 | L88: =K88/$G$4 ->  | M88: =D88+F88+H88+J88+L88 -> 
A90: 11. Bursaries | C90: Amount ZAR | D90: Amount Forex | E90: Amount ZAR | F90: Amount Forex | G90: Amount ZAR | H90: Amount Forex | I90: Amount ZAR | J90: Amount Forex | K90: Amount ZAR | L90: Amount Forex | M90: Total Amount Forex
A91: 11.1 | B91: =IF(ISBLANK('FULL COST BUDGET'!C98),"",'FULL COST BUDGET'!C98) -> Undergraduate Bursaries | C91: =VALUE('CONTRACT PRICE ZAR'!G101) -> 0 | D91: =C91/$G$4 ->  | E91: =VALUE('CONTRACT PRICE ZAR'!J101) -> 0 | F91: =E91/$G$4 ->  | G91: =VALUE('CONTRACT PRICE ZAR'!M101) -> 0 | H91: =G91/$G$4 ->  | I91: =VALUE('CONTRACT PRICE ZAR'!P101) -> 0 | J91: =I91/$G$4 ->  | K91: =VALUE('CONTRACT PRICE ZAR'!S101) -> 0 | L91: =K91/$G$4 ->  | M91: =D91+F91+H91+J91+L91 -> 
A92: 11.2 | B92: =IF(ISBLANK('FULL COST BUDGET'!C99),"",'FULL COST BUDGET'!C99) -> Postgraduate Bursaries | C92: =VALUE('CONTRACT PRICE ZAR'!G102) -> 0 | D92: =C92/$G$4 ->  | E92: =VALUE('CONTRACT PRICE ZAR'!J102) -> 0 | F92: =E92/$G$4 ->  | G92: =VALUE('CONTRACT PRICE ZAR'!M102) -> 0 | H92: =G92/$G$4 ->  | I92: =VALUE('CONTRACT PRICE ZAR'!P102) -> 0 | J92: =I92/$G$4 ->  | K92: =VALUE('CONTRACT PRICE ZAR'!S102) -> 0 | L92: =K92/$G$4 ->  | M92: =D92+F92+H92+J92+L92 -> 
B93: Total bursaries | C93: =SUM(C91:C92) -> 0 | D93: =SUM(D91:D92) ->  | E93: 0 | G93: 0 | I93: 0 | K93: 0 | M93: =SUM(M91:M92) -> 
A95: TOTAL CONTRACT BUDGET | C95: =SUM(C93,C88,C85) -> 0 | D95: =SUM(D93,D88,D85) ->  | E95: 0 | G95: 0 | I95: 0 | K95: 0 | M95: =D95+F95+H95+J95+L95 -> 
A96: If the total amounts reflected on this worksheet do not comply with your contract requirements please revert to CONTRACT BUDGET ZAR to make adjustments | M96: =SUM(M85,M88,M93) -> 
A98: Hyperlinks | M98: ='CONTRACT PRICE ZAR'!T105- (C95+E95+G95+I95+K95) -> 0
A99: Cover page
A100: Introduction
A101: Deviation Report
A102: Quotation
A103: IP pricing tool

Sheet DEVIATION REPORT
C1: DEVIATION REPORT: RESEARCH BUDGET
C2: PROJECT NAME: | D2: =ProjectName -> Enter NAME
C3: FACULTY: | D3: =IF(ISBLANK(Faculty),"",Faculty) -> 
C5: The total deviation from column P-U indicates your profit/loss at this stage of the budgeting process.
C6: This discrepancy may be used to adjust the CONTRACT BUDGET ZAR to ensure efficient profit.
C7: Revise this DEVIATION REPORT once adjustments have been made to CONTRACT BUDGET ZAR.
C8: Upon finalisation of this process kindly proceed to QUOTATION FOR CLIENT for the amounts to be reflected in your contract or quote.
C9: FULL COST BUDGET | I9: CONTRACT BUDGET | O9: DEVIATION
A11: DIRECT COST | C11: Year 1 | D11: Year 2 | E11: Year 3 | F11: Year 4 | G11: Year 5 | H11: TOTAL FULL COST | I11: Year 1 | J11: Year 2 | K11: Year 3 | L11: Year 4 | M11: Year 5 | N11: TOTAL CONTRACT | O11: Year 1 | P11: Year 2 | Q11: Year 3 | R11: Year 4 | S11: Year 5 | T11: TOTAL Surplus / Shortage
A12: 1. Personnel | C12: =Year1 -> 2025 | D12: =C12+1 -> 2026 | E12: =D12+1 -> 2027 | F12: =E12+1 -> 2028 | G12: =F12+1 -> 2029 | I12: =Year1 -> 2025 | J12: =I12+1 -> 2026 | K12: =J12+1 -> 2027 | L12: =K12+1 -> 2028 | M12: =L12+1 -> 2029 | O12: =Year1 -> 2025 | P12: =O12+1 -> 2026 | Q12: =P12+1 -> 2027 | R12: =Q12+1 -> 2028 | S12: =R12+1 -> 2029
A13: 1.1 | B13: US Professional personnel and US research support personnel (e.g. Researchers, assistants, technicians and consultants) | C13: Amount | D13: Amount | E13: Amount | F13: Amount | G13: Amount | H13: Total Amount | I13: Amount | J13: Amount | K13: Amount | L13: Amount | M13: Amount | N13: Total Amount | O13: Amount | P13: Amount | Q13: Amount | R13: Amount | S13: Amount | T13: Total Amount
B14: =IF(ISBLANK('FULL COST BUDGET'!C8),"",'FULL COST BUDGET'!C8) -> Professor P5 | C14: ='FULL COST BUDGET'!G8 -> 0 | D14: ='FULL COST BUDGET'!J8 -> 0 | E14: ='FULL COST BUDGET'!M8 -> 0 | F14: ='FULL COST BUDGET'!P8 -> 0 | G14: ='FULL COST BUDGET'!S8 -> 0 | H14: =SUM(C14:G14) -> 0 | I14: ='CONTRACT PRICE ZAR'!G11 -> 0 | J14: ='CONTRACT PRICE ZAR'!J11 -> 0 | K14: ='CONTRACT PRICE ZAR'!M11 -> 0 | L14: ='CONTRACT PRICE ZAR'!P11 -> 0 | M14: ='CONTRACT PRICE ZAR'!S11 -> 0 | N14: =SUM(I14:M14) -> 0 | O14: =I14-C14 -> 0 | P14: 0 | Q14: 0 | R14: 0 | S14: 0 | T14: =SUM(O14:S14) -> 0
B15: =IF(ISBLANK('FULL COST BUDGET'!C9),"",'FULL COST BUDGET'!C9) -> Senior Lecturer P7 | C15: ='FULL COST BUDGET'!G9 -> 0 | D15: ='FULL COST BUDGET'!J9 -> 0 | E15: ='FULL COST BUDGET'!M9 -> 0 | F15: ='FULL COST BUDGET'!P9 -> 0 | G15: ='FULL COST BUDGET'!S9 -> 0 | H15: 0 | I15: ='CONTRACT PRICE ZAR'!G12 -> 0 | J15: ='CONTRACT PRICE ZAR'!J12 -> 0 | K15: ='CONTRACT PRICE ZAR'!M12 -> 0 | L15: ='CONTRACT PRICE ZAR'!P12 -> 0 | M15: ='CONTRACT PRICE ZAR'!S12 -> 0 | N15: 0 | O15: 0 | P15: 0 | Q15: 0 | R15: 0 | S15: 0 | T15: 0
B16: =IF(ISBLANK('FULL COST BUDGET'!C10),"",'FULL COST BUDGET'!C10) -> Lecturer P8 | C16: ='FULL COST BUDGET'!G10 -> 0 | D16: ='FULL COST BUDGET'!J10 -> 0 | E16: ='FULL COST BUDGET'!M10 -> 0 | F16: ='FULL COST BUDGET'!P10 -> 0 | G16: ='FULL COST BUDGET'!S10 -> 0 | H16: 0 | I16: ='CONTRACT PRICE ZAR'!G13 -> 0 | J16: ='CONTRACT PRICE ZAR'!J13 -> 0 | K16: ='CONTRACT PRICE ZAR'!M13 -> 0 | L16: ='CONTRACT PRICE ZAR'!P13 -> 0 | M16: ='CONTRACT PRICE ZAR'!S13 -> 0 | N16: 0 | O16: 0 | P16: 0 | Q16: 0 | R16: 0 | S16: 0 | T16: 0
B17: =IF(ISBLANK('FULL COST BUDGET'!C11),"",'FULL COST BUDGET'!C11) -> Lecturer P8 | C17: ='FULL COST BUDGET'!G11 -> 0 | D17: ='FULL COST BUDGET'!J11 -> 0 | E17: ='FULL COST BUDGET'!M11 -> 0 | F17: ='FULL COST BUDGET'!P11 -> 0 | G17: ='FULL COST BUDGET'!S11 -> 0 | H17: 0 | I17: ='CONTRACT PRICE ZAR'!G14 -> 0 | J17: ='CONTRACT PRICE ZAR'!J14 -> 0 | K17: ='CONTRACT PRICE ZAR'!M14 -> 0 | L17: ='CONTRACT PRICE ZAR'!P14 -> 0 | M17: ='CONTRACT PRICE ZAR'!S14 -> 0 | N17: 0 | O17: 0 | P17: 0 | Q17: 0 | R17: 0 | S17: 0 | T17: 0
B18: =IF(ISBLANK('FULL COST BUDGET'!C12),"",'FULL COST BUDGET'!C12) -> Post Level 9 | C18: ='FULL COST BUDGET'!G12 -> 0 | D18: ='FULL COST BUDGET'!J12 -> 0 | E18: ='FULL COST BUDGET'!M12 -> 0 | F18: ='FULL COST BUDGET'!P12 -> 0 | G18: ='FULL COST BUDGET'!S12 -> 0 | H18: 0 | I18: ='CONTRACT PRICE ZAR'!G15 -> 0 | J18: ='CONTRACT PRICE ZAR'!J15 -> 0 | K18: ='CONTRACT PRICE ZAR'!M15 -> 0 | L18: ='CONTRACT PRICE ZAR'!P15 -> 0 | M18: ='CONTRACT PRICE ZAR'!S15 -> 0 | N18: 0 | O18: 0 | P18: 0 | Q18: 0 | R18: 0 | S18: 0 | T18: 0
B19: =IF(ISBLANK('FULL COST BUDGET'!C13),"",'FULL COST BUDGET'!C13) -> Post Level 12 | C19: ='FULL COST BUDGET'!G13 -> 0 | D19: ='FULL COST BUDGET'!J13 -> 0 | E19: ='FULL COST BUDGET'!M13 -> 0 | F19: ='FULL COST BUDGET'!P13 -> 0 | G19: ='FULL COST BUDGET'!S13 -> 0 | H19: 0 | I19: ='CONTRACT PRICE ZAR'!G16 -> 0 | J19: ='CONTRACT PRICE ZAR'!J16 -> 0 | K19: ='CONTRACT PRICE ZAR'!M16 -> 0 | L19: ='CONTRACT PRICE ZAR'!P16 -> 0 | M19: ='CONTRACT PRICE ZAR'!S16 -> 0 | N19: 0 | O19: 0 | P19: 0 | Q19: 0 | R19: 0 | S19: 0 | T19: 0
B20: Total US personnel | C20: =SUM(C14:C19) -> 0 | D20: =SUM(D14:D19) -> 0 | E20: 0 | F20: 0 | G20: 0 | H20: =SUM(H14:H19) -> 0 | I20: 0 | J20: =SUM(J14:J19) -> 0 | K20: 0 | L20: 0 | M20: 0 | N20: 0 | O20: 0 | P20: 0 | Q20: 0 | R20: 0 | S20: 0 | T20: 0
A21: 1.2 | B21: External personnel (e.g. Consultants that do not work at SU, but work on the project)
B22: =IF(ISBLANK('FULL COST BUDGET'!C16),"",'FULL COST BUDGET'!C16) ->  | C22: ='FULL COST BUDGET'!G16 -> 0 | D22: ='FULL COST BUDGET'!J16 -> 0 | E22: ='FULL COST BUDGET'!M16 -> 0 | F22: ='FULL COST BUDGET'!P16 -> 0 | G22: ='FULL COST BUDGET'!S16 -> 0 | H22: =SUM(C22:G22) -> 0 | I22: ='CONTRACT PRICE ZAR'!G19 -> 0 | J22: ='CONTRACT PRICE ZAR'!J19 -> 0 | K22: ='CONTRACT PRICE ZAR'!M19 -> 0 | L22: ='CONTRACT PRICE ZAR'!P19 -> 0 | M22: ='CONTRACT PRICE ZAR'!S19 -> 0 | N22: =SUM(I22:M22) -> 0 | O22: =I22-C22 -> 0 | P22: 0 | Q22: 0 | R22: 0 | S22: 0 | T22: =SUM(O22:S22) -> 0
B23: =IF(ISBLANK('FULL COST BUDGET'!C17),"",'FULL COST BUDGET'!C17) ->  | C23: ='FULL COST BUDGET'!G17 -> 0 | D23: ='FULL COST BUDGET'!J17 -> 0 | E23: ='FULL COST BUDGET'!M17 -> 0 | F23: ='FULL COST BUDGET'!P17 -> 0 | G23: ='FULL COST BUDGET'!S17 -> 0 | H23: =SUM(C23:G23) -> 0 | I23: ='CONTRACT PRICE ZAR'!G20 -> 0 | J23: ='CONTRACT PRICE ZAR'!J20 -> 0 | K23: ='CONTRACT PRICE ZAR'!M20 -> 0 | L23: ='CONTRACT PRICE ZAR'!P20 -> 0 | M23: ='CONTRACT PRICE ZAR'!S20 -> 0 | N23: =SUM(I23:M23) -> 0 | O23: 0 | P23: 0 | Q23: 0 | R23: 0 | S23: 0 | T23: =SUM(O23:S23) -> 0
B24: =IF(ISBLANK('FULL COST BUDGET'!C18),"",'FULL COST BUDGET'!C18) ->  | C24: ='FULL COST BUDGET'!G18 -> 0 | D24: ='FULL COST BUDGET'!J18 -> 0 | E24: ='FULL COST BUDGET'!M18 -> 0 | F24: ='FULL COST BUDGET'!P18 -> 0 | G24: ='FULL COST BUDGET'!S18 -> 0 | H24: =SUM(C24:G24) -> 0 | I24: ='CONTRACT PRICE ZAR'!G21 -> 0 | J24: ='CONTRACT PRICE ZAR'!J21 -> 0 | K24: ='CONTRACT PRICE ZAR'!M21 -> 0 | L24: ='CONTRACT PRICE ZAR'!P21 -> 0 | M24: ='CONTRACT PRICE ZAR'!S21 -> 0 | N24: =SUM(I24:M24) -> 0 | O24: 0 | P24: 0 | Q24: 0 | R24: 0 | S24: 0 | T24: =SUM(O24:S24) -> 0
B25: Total external personnel | C25: =SUM(C22:C24) -> 0 | D25: 0 | E25: 0 | F25: 0 | G25: 0 | H25: 0 | I25: 0 | J25: 0 | K25: 0 | L25: 0 | M25: 0 | N25: 0 | O25: 0 | P25: 0 | Q25: 0 | R25: 0 | S25: 0 | T25: 0
B26: Total personnel | C26: =SUM(C25,C20) -> 0 | D26: 0 | E26: 0 | F26: 0 | G26: 0 | H26: 0 | I26: 0 | J26: =SUM(J25,J20) -> 0 | K26: 0 | L26: 0 | M26: 0 | N26: 0 | O26: 0 | P26: =SUM(P25,P20) -> 0 | Q26: =SUM(Q25,Q20) -> 0 | R26: =SUM(R25,R20) -> 0 | S26: =SUM(S25,S20) -> 0 | T26: =O26+P26+Q26+R26+S26 -> 0
A28: 2. Equipment | C28: Amount | D28: Amount | E28: Amount | F28: Amount | G28: Amount | H28: Total Amount | I28: Amount | J28: Amount | K28: Amount | L28: Amount | M28: Amount | N28: Total Amount | O28: Amount | P28: Amount | Q28: Amount | R28: Amount | S28: Amount | T28: Total Amount
A29: 2.1 | B29: =IF(ISBLANK('FULL COST BUDGET'!C23),"",'FULL COST BUDGET'!C23) -> Computers & hardware | C29: ='FULL COST BUDGET'!G23 -> 0 | D29: ='FULL COST BUDGET'!J23 -> 0 | E29: ='FULL COST BUDGET'!M23 -> 0 | F29: ='FULL COST BUDGET'!P23 -> 0 | G29: ='FULL COST BUDGET'!S23 -> 0 | H29: =SUM(C29:G29) -> 0 | I29: ='CONTRACT PRICE ZAR'!G26 -> 0 | J29: ='CONTRACT PRICE ZAR'!J26 -> 0 | K29: ='CONTRACT PRICE ZAR'!M26 -> 0 | L29: ='CONTRACT PRICE ZAR'!P26 -> 0 | M29: ='CONTRACT PRICE ZAR'!S26 -> 0 | N29: =SUM(I29:M29) -> 0 | O29: =I29-C29 -> 0 | P29: 0 | Q29: 0 | R29: 0 | S29: 0 | T29: =SUM(O29:S29) -> 0
A30: 2.2 | B30: =IF(ISBLANK('FULL COST BUDGET'!C24),"",'FULL COST BUDGET'!C24) -> Other | C30: ='FULL COST BUDGET'!G24 -> 0 | D30: ='FULL COST BUDGET'!J24 -> 0 | E30: ='FULL COST BUDGET'!M24 -> 0 | F30: ='FULL COST BUDGET'!P24 -> 0 | G30: ='FULL COST BUDGET'!S24 -> 0 | H30: =SUM(C30:G30) -> 0 | I30: ='CONTRACT PRICE ZAR'!G27 -> 0 | J30: ='CONTRACT PRICE ZAR'!J27 -> 0 | K30: ='CONTRACT PRICE ZAR'!M27 -> 0 | L30: ='CONTRACT PRICE ZAR'!P27 -> 0 | M30: ='CONTRACT PRICE ZAR'!S27 -> 0 | N30: =SUM(I30:M30) -> 0 | O30: 0 | P30: 0 | Q30: 0 | R30: 0 | S30: 0 | T30: =SUM(O30:S30) -> 0
A31: 2.3 | B31: =IF(ISBLANK('FULL COST BUDGET'!C25),"",'FULL COST BUDGET'!C25) ->  | C31: ='FULL COST BUDGET'!G25 -> 0 | D31: ='FULL COST BUDGET'!J25 -> 0 | E31: ='FULL COST BUDGET'!M25 -> 0 | F31: ='FULL COST BUDGET'!P25 -> 0 | G31: ='FULL COST BUDGET'!S25 -> 0 | H31: =SUM(C31:G31) -> 0 | I31: ='CONTRACT PRICE ZAR'!G28 -> 0 | J31: ='CONTRACT PRICE ZAR'!J28 -> 0 | K31: ='CONTRACT PRICE ZAR'!M28 -> 0 | L31: ='CONTRACT PRICE ZAR'!P28 -> 0 | M31: ='CONTRACT PRICE ZAR'!S28 -> 0 | N31: =SUM(I31:M31) -> 0 | O31: 0 | P31: 0 | Q31: 0 | R31: 0 | S31: 0 | T31: =SUM(O31:S31) -> 0
B32: Total equipment | C32: =SUM(C29:C31) -> 0 | D32: 0 | E32: 0 | F32: 0 | G32: 0 | H32: 0 | I32: 0 | J32: 0 | K32: 0 | L32: 0 | M32: 0 | N32: 0 | O32: 0 | P32: 0 | Q32: 0 | R32: 0 | S32: 0 | T32: 0
A34: 3. Running costs | C34: Amount | D34: Amount | E34: Amount | F34: Amount | G34: Amount | H34: Total Amount | I34: Amount | J34: Amount | K34: Amount | L34: Amount | M34: Amount | N34: Total Amount | O34: Amount | P34: Amount | Q34: Amount | R34: Amount | S34: Amount | T34: Total Amount
A35: 3.1 | B35: =IF(ISBLANK('FULL COST BUDGET'!C30),"",'FULL COST BUDGET'!C30) -> Material (e.g. Reagents, electronic components) | C35: ='FULL COST BUDGET'!G30 -> 0 | D35: ='FULL COST BUDGET'!J30 -> 0 | E35: ='FULL COST BUDGET'!M30 -> 0 | F35: ='FULL COST BUDGET'!P30 -> 0 | G35: ='FULL COST BUDGET'!S30 -> 0 | H35: =IF(ISBLANK('FULL COST BUDGET'!T30),"",'FULL COST BUDGET'!T30) -> 0 | I35: ='CONTRACT PRICE ZAR'!G33 -> 0 | J35: ='CONTRACT PRICE ZAR'!J33 -> 0 | K35: ='CONTRACT PRICE ZAR'!M33 -> 0 | L35: ='CONTRACT PRICE ZAR'!P33 -> 0 | M35: ='CONTRACT PRICE ZAR'!S33 -> 0 | N35: =SUM(I35:M35) -> 0 | O35: =I35-C35 -> 0 | P35: =J35-D35 -> 0 | Q35: =K35-E35 -> 0 | R35: =L35-F35 -> 0 | S35: =M35-G35 -> 0 | T35: =SUM(O35:S35) -> 0
A36: 3.2 | B36: =IF(ISBLANK('FULL COST BUDGET'!C31),"",'FULL COST BUDGET'!C31) -> Stationery and printing | C36: ='FULL COST BUDGET'!G31 -> 0 | D36: ='FULL COST BUDGET'!J31 -> 0 | E36: ='FULL COST BUDGET'!M31 -> 0 | F36: ='FULL COST BUDGET'!P31 -> 0 | G36: ='FULL COST BUDGET'!S31 -> 0 | H36: =IF(ISBLANK('FULL COST BUDGET'!T31),"",'FULL COST BUDGET'!T31) -> 0 | I36: ='CONTRACT PRICE ZAR'!G34 -> 0 | J36: ='CONTRACT PRICE ZAR'!J34 -> 0 | K36: ='CONTRACT PRICE ZAR'!M34 -> 0 | L36: ='CONTRACT PRICE ZAR'!P34 -> 0 | M36: ='CONTRACT PRICE ZAR'!S34 -> 0 | N36: =SUM(I36:M36) -> 0 | O36: =I36-C36 -> 0 | P36: =J36-D36 -> 0 | Q36: =K36-E36 -> 0 | R36: =L36-F36 -> 0 | S36: =M36-G36 -> 0 | T36: 0
A37: 3.3 | B37: =IF(ISBLANK('FULL COST BUDGET'!C32),"",'FULL COST BUDGET'!C32) -> Services | C37: ='FULL COST BUDGET'!G32 -> 0 | D37: ='FULL COST BUDGET'!J32 -> 0 | E37: ='FULL COST BUDGET'!M32 -> 0 | F37: ='FULL COST BUDGET'!P32 -> 0 | G37: ='FULL COST BUDGET'!S32 -> 0 | H37: =IF(ISBLANK('FULL COST BUDGET'!T32),"",'FULL COST BUDGET'!T32) -> 0 | I37: ='CONTRACT PRICE ZAR'!G35 -> 0 | J37: ='CONTRACT PRICE ZAR'!J35 -> 0 | K37: ='CONTRACT PRICE ZAR'!M35 -> 0 | L37: ='CONTRACT PRICE ZAR'!P35 -> 0 | M37: ='CONTRACT PRICE ZAR'!S35 -> 0 | N37: 0 | O37: 0 | P37: 0 | Q37: 0 | R37: 0 | S37: 0 | T37: 0
A38: 3.4 | B38: =IF(ISBLANK('FULL COST BUDGET'!C33),"",'FULL COST BUDGET'!C33) -> Consumable material (e.g. Pipette, petri dishes) | C38: ='FULL COST BUDGET'!G33 -> 0 | D38: ='FULL COST BUDGET'!J33 -> 0 | E38: ='FULL COST BUDGET'!M33 -> 0 | F38: ='FULL COST BUDGET'!P33 -> 0 | G38: ='FULL COST BUDGET'!S33 -> 0 | H38: =IF(ISBLANK('FULL COST BUDGET'!T33),"",'FULL COST BUDGET'!T33) -> 0 | I38: ='CONTRACT PRICE ZAR'!G36 -> 0 | J38: ='CONTRACT PRICE ZAR'!J36 -> 0 | K38: ='CONTRACT PRICE ZAR'!M36 -> 0 | L38: ='CONTRACT PRICE ZAR'!P36 -> 0 | M38: ='CONTRACT PRICE ZAR'!S36 -> 0 | N38: 0 | O38: 0 | P38: 0 | Q38: 0 | R38: 0 | S38: 0 | T38: 0
A39: 3.5 | B39: =IF(ISBLANK('FULL COST BUDGET'!C34),"",'FULL COST BUDGET'!C34) -> Analysis of samples | C39: ='FULL COST BUDGET'!G34 -> 0 | D39: ='FULL COST BUDGET'!J34 -> 0 | E39: ='FULL COST BUDGET'!M34 -> 0 | F39: ='FULL COST BUDGET'!P34 -> 0 | G39: ='FULL COST BUDGET'!S34 -> 0 | H39: =IF(ISBLANK('FULL COST BUDGET'!T34),"",'FULL COST BUDGET'!T34) -> 0 | I39: ='CONTRACT PRICE ZAR'!G37 -> 0 | J39: ='CONTRACT PRICE ZAR'!J37 -> 0 | K39: ='CONTRACT PRICE ZAR'!M37 -> 0 | L39: ='CONTRACT PRICE ZAR'!P37 -> 0 | M39: ='CONTRACT PRICE ZAR'!S37 -> 0 | N39: 0 | O39: 0 | P39: 0 | Q39: 0 | R39: 0 | S39: 0 | T39: 0
A40: 3.6 | B40: =IF(ISBLANK('FULL COST BUDGET'!C35),"",'FULL COST BUDGET'!C35) -> Use of equipment | C40: ='FULL COST BUDGET'!G35 -> 0 | D40: ='FULL COST BUDGET'!J35 -> 0 | E40: ='FULL COST BUDGET'!M35 -> 0 | F40: ='FULL COST BUDGET'!P35 -> 0 | G40: ='FULL COST BUDGET'!S35 -> 0 | H40: =IF(ISBLANK('FULL COST BUDGET'!T35),"",'FULL COST BUDGET'!T35) -> 0 | I40: ='CONTRACT PRICE ZAR'!G38 -> 0 | J40: ='CONTRACT PRICE ZAR'!J38 -> 0 | K40: ='CONTRACT PRICE ZAR'!M38 -> 0 | L40: ='CONTRACT PRICE ZAR'!P38 -> 0 | M40: ='CONTRACT PRICE ZAR'!S38 -> 0 | N40: 0 | O40: 0 | P40: 0 | Q40: 0 | R40: 0 | S40: 0 | T40: 0
A41: 3.7 | B41: =IF(ISBLANK('FULL COST BUDGET'!C36),"",'FULL COST BUDGET'!C36) -> Maintenance of equipment | C41: ='FULL COST BUDGET'!G36 -> 0 | D41: ='FULL COST BUDGET'!J36 -> 0 | E41: ='FULL COST BUDGET'!M36 -> 0 | F41: ='FULL COST BUDGET'!P36 -> 0 | G41: ='FULL COST BUDGET'!S36 -> 0 | H41: =IF(ISBLANK('FULL COST BUDGET'!T36),"",'FULL COST BUDGET'!T36) -> 0 | I41: ='CONTRACT PRICE ZAR'!G39 -> 0 | J41: ='CONTRACT PRICE ZAR'!J39 -> 0 | K41: ='CONTRACT PRICE ZAR'!M39 -> 0 | L41: ='CONTRACT PRICE ZAR'!P39 -> 0 | M41: ='CONTRACT PRICE ZAR'!S39 -> 0 | N41: 0 | O41: 0 | P41: 0 | Q41: 0 | R41: 0 | S41: 0 | T41: 0
A42: 3.8 | B42: =IF(ISBLANK('FULL COST BUDGET'!C37),"",'FULL COST BUDGET'!C37) -> Sundry expenses | C42: ='FULL COST BUDGET'!G37 -> 0 | D42: ='FULL COST BUDGET'!J37 -> 0 | E42: ='FULL COST BUDGET'!M37 -> 0 | F42: ='FULL COST BUDGET'!P37 -> 0 | G42: ='FULL COST BUDGET'!S37 -> 0 | H42: =IF(ISBLANK('FULL COST BUDGET'!T37),"",'FULL COST BUDGET'!T37) -> 0 | I42: ='CONTRACT PRICE ZAR'!G40 -> 0 | J42: ='CONTRACT PRICE ZAR'!J40 -> 0 | K42: ='CONTRACT PRICE ZAR'!M40 -> 0 | L42: ='CONTRACT PRICE ZAR'!P40 -> 0 | M42: ='CONTRACT PRICE ZAR'!S40 -> 0 | N42: 0 | O42: 0 | P42: 0 | Q42: 0 | R42: 0 | S42: 0 | T42: 0
A43: 3.9 | B43: =IF(ISBLANK('FULL COST BUDGET'!C38),"",'FULL COST BUDGET'!C38) -> Project specific insurance | C43: ='FULL COST BUDGET'!G38 -> 0 | D43: ='FULL COST BUDGET'!J38 -> 0 | E43: ='FULL COST BUDGET'!M38 -> 0 | F43: ='FULL COST BUDGET'!P38 -> 0 | G43: ='FULL COST BUDGET'!S38 -> 0 | H43: =IF(ISBLANK('FULL COST BUDGET'!T38),"",'FULL COST BUDGET'!T38) -> 0 | I43: ='CONTRACT PRICE ZAR'!G41 -> 0 | J43: ='CONTRACT PRICE ZAR'!J41 -> 0 | K43: ='CONTRACT PRICE ZAR'!M41 -> 0 | L43: ='CONTRACT PRICE ZAR'!P41 -> 0 | M43: ='CONTRACT PRICE ZAR'!S41 -> 0 | N43: 0 | O43: 0 | P43: 0 | Q43: 0 | R43: 0 | S43: 0 | T43: 0
A44: 3.1 | B44: =IF(ISBLANK('FULL COST BUDGET'!C39),"",'FULL COST BUDGET'!C39) -> Software | C44: ='FULL COST BUDGET'!G39 -> 0 | D44: ='FULL COST BUDGET'!J39 -> 0 | E44: ='FULL COST BUDGET'!M39 -> 0 | F44: ='FULL COST BUDGET'!P39 -> 0 | G44: ='FULL COST BUDGET'!S39 -> 0 | H44: =IF(ISBLANK('FULL COST BUDGET'!T39),"",'FULL COST BUDGET'!T39) -> 0 | I44: ='CONTRACT PRICE ZAR'!G42 -> 0 | J44: ='CONTRACT PRICE ZAR'!J42 -> 0 | K44: ='CONTRACT PRICE ZAR'!M42 -> 0 | L44: ='CONTRACT PRICE ZAR'!P42 -> 0 | M44: ='CONTRACT PRICE ZAR'!S42 -> 0 | N44: 0 | O44: 0 | P44: 0 | Q44: 0 | R44: 0 | S44: 0 | T44: 0
A45: 3.11 | B45: =IF(ISBLANK('FULL COST BUDGET'!C40),"",'FULL COST BUDGET'!C40) -> Communication and data costs | C45: ='FULL COST BUDGET'!G40 -> 0 | D45: ='FULL COST BUDGET'!J40 -> 0 | E45: ='FULL COST BUDGET'!M40 -> 0 | F45: ='FULL COST BUDGET'!P40 -> 0 | G45: ='FULL COST BUDGET'!S40 -> 0 | H45: =IF(ISBLANK('FULL COST BUDGET'!T40),"",'FULL COST BUDGET'!T40) -> 0 | I45: ='CONTRACT PRICE ZAR'!G43 -> 0 | J45: ='CONTRACT PRICE ZAR'!J43 -> 0 | K45: ='CONTRACT PRICE ZAR'!M43 -> 0 | L45: ='CONTRACT PRICE ZAR'!P43 -> 0 | M45: ='CONTRACT PRICE ZAR'!S43 -> 0 | N45: 0 | O45: 0 | P45: 0 | Q45: 0 | R45: 0 | S45: 0 | T45: 0
A46: 3.12 | B46: =IF(ISBLANK('FULL COST BUDGET'!C41),"",'FULL COST BUDGET'!C41) -> Printing | C46: ='FULL COST BUDGET'!G41 -> 0 | D46: ='FULL COST BUDGET'!J41 -> 0 | E46: ='FULL COST BUDGET'!M41 -> 0 | F46: ='FULL COST BUDGET'!P41 -> 0 | G46: ='FULL COST BUDGET'!S41 -> 0 | H46: =IF(ISBLANK('FULL COST BUDGET'!T41),"",'FULL COST BUDGET'!T41) -> 0 | I46: ='CONTRACT PRICE ZAR'!G44 -> 0 | J46: ='CONTRACT PRICE ZAR'!J44 -> 0 | K46: ='CONTRACT PRICE ZAR'!M44 -> 0 | L46: ='CONTRACT PRICE ZAR'!P44 -> 0 | M46: ='CONTRACT PRICE ZAR'!S44 -> 0 | N46: 0 | O46: 0 | P46: 0 | Q46: 0 | R46: 0 | S46: 0 | T46: 0
A47: 3.13 | B47: =IF(ISBLANK('FULL COST BUDGET'!C42),"",'FULL COST BUDGET'!C42) ->  | C47: ='FULL COST BUDGET'!G42 -> 0 | D47: ='FULL COST BUDGET'!J42 -> 0 | E47: ='FULL COST BUDGET'!M42 -> 0 | F47: ='FULL COST BUDGET'!P42 -> 0 | G47: ='FULL COST BUDGET'!S42 -> 0 | H47: =IF(ISBLANK('FULL COST BUDGET'!T42),"",'FULL COST BUDGET'!T42) -> 0 | I47: ='CONTRACT PRICE ZAR'!G45 -> 0 | J47: ='CONTRACT PRICE ZAR'!J45 -> 0 | K47: ='CONTRACT PRICE ZAR'!M45 -> 0 | L47: ='CONTRACT PRICE ZAR'!P45 -> 0 | M47: ='CONTRACT PRICE ZAR'!S45 -> 0 | N47: =SUM(I47:M47) -> 0 | O47: =I47-C47 -> 0 | P47: 0 | Q47: 0 | R47: 0 | S47: 0 | T47: =SUM(O47:S47) -> 0
A48: 3.14 | B48: =IF(ISBLANK('FULL COST BUDGET'!C43),"",'FULL COST BUDGET'!C43) ->  | C48: ='FULL COST BUDGET'!G43 -> 0 | D48: ='FULL COST BUDGET'!J43 -> 0 | E48: ='FULL COST BUDGET'!M43 -> 0 | F48: ='FULL COST BUDGET'!P43 -> 0 | G48: ='FULL COST BUDGET'!S43 -> 0 | H48: =IF(ISBLANK('FULL COST BUDGET'!T43),"",'FULL COST BUDGET'!T43) -> 0 | I48: ='CONTRACT PRICE ZAR'!G46 -> 0 | J48: ='CONTRACT PRICE ZAR'!J46 -> 0 | K48: ='CONTRACT PRICE ZAR'!M46 -> 0 | L48: ='CONTRACT PRICE ZAR'!P46 -> 0 | M48: ='CONTRACT PRICE ZAR'!S46 -> 0 | N48: 0 | O48: 0 | P48: 0 | Q48: 0 | R48: 0 | S48: 0 | T48: =SUM(O48:S48) -> 0
A49: 3.15 | B49: =IF(ISBLANK('FULL COST BUDGET'!C44),"",'FULL COST BUDGET'!C44) ->  | C49: ='FULL COST BUDGET'!G44 -> 0 | D49: ='FULL COST BUDGET'!J44 -> 0 | E49: ='FULL COST BUDGET'!M44 -> 0 | F49: ='FULL COST BUDGET'!P44 -> 0 | G49: ='FULL COST BUDGET'!S44 -> 0 | H49: =IF(ISBLANK('FULL COST BUDGET'!T44),"",'FULL COST BUDGET'!T44) -> 0 | I49: ='CONTRACT PRICE ZAR'!G47 -> 0 | J49: ='CONTRACT PRICE ZAR'!J47 -> 0 | K49: ='CONTRACT PRICE ZAR'!M47 -> 0 | L49: ='CONTRACT PRICE ZAR'!P47 -> 0 | M49: ='CONTRACT PRICE ZAR'!S47 -> 0 | N49: 0 | O49: 0 | P49: 0 | Q49: 0 | R49: 0 | S49: 0 | T49: =SUM(O49:S49) -> 0
A50: 3.16 | B50: =IF(ISBLANK('FULL COST BUDGET'!C45),"",'FULL COST BUDGET'!C45) ->  | C50: ='FULL COST BUDGET'!G45 -> 0 | D50: ='FULL COST BUDGET'!J45 -> 0 | E50: ='FULL COST BUDGET'!M45 -> 0 | F50: ='FULL COST BUDGET'!P45 -> 0 | G50: ='FULL COST BUDGET'!S45 -> 0 | H50: =IF(ISBLANK('FULL COST BUDGET'!T45),"",'FULL COST BUDGET'!T45) -> 0 | I50: ='CONTRACT PRICE ZAR'!G48 -> 0 | J50: ='CONTRACT PRICE ZAR'!J48 -> 0 | K50: ='CONTRACT PRICE ZAR'!M48 -> 0 | L50: ='CONTRACT PRICE ZAR'!P48 -> 0 | M50: ='CONTRACT PRICE ZAR'!S48 -> 0 | N50: 0 | O50: 0 | P50: 0 | Q50: 0 | R50: 0 | S50: 0 | T50: =SUM(O50:S50) -> 0
A51: 3.17 | B51: =IF(ISBLANK('FULL COST BUDGET'!C46),"",'FULL COST BUDGET'!C46) ->  | C51: ='FULL COST BUDGET'!G46 -> 0 | D51: ='FULL COST BUDGET'!J46 -> 0 | E51: ='FULL COST BUDGET'!M46 -> 0 | F51: ='FULL COST BUDGET'!P46 -> 0 | G51: ='FULL COST BUDGET'!S46 -> 0 | H51: =IF(ISBLANK('FULL COST BUDGET'!T46),"",'FULL COST BUDGET'!T46) -> 0 | I51: ='CONTRACT PRICE ZAR'!G49 -> 0 | J51: ='CONTRACT PRICE ZAR'!J49 -> 0 | K51: ='CONTRACT PRICE ZAR'!M49 -> 0 | L51: ='CONTRACT PRICE ZAR'!P49 -> 0 | M51: ='CONTRACT PRICE ZAR'!S49 -> 0 | N51: 0 | O51: 0 | P51: 0 | Q51: 0 | R51: 0 | S51: 0 | T51: =SUM(O51:S51) -> 0
B52: Total running costs | C52: ='FULL COST BUDGET'!G47 -> 0 | D52: ='FULL COST BUDGET'!J47 -> 0 | E52: ='FULL COST BUDGET'!M47 -> 0 | F52: ='FULL COST BUDGET'!P47 -> 0 | G52: ='FULL COST BUDGET'!S47 -> 0 | H52: =IF(ISBLANK('FULL COST BUDGET'!T47),"",'FULL COST BUDGET'!T47) -> 0 | I52: ='CONTRACT PRICE ZAR'!G50 -> 0 | J52: ='CONTRACT PRICE ZAR'!J50 -> 0 | K52: ='CONTRACT PRICE ZAR'!M50 -> 0 | L52: ='CONTRACT PRICE ZAR'!P50 -> 0 | M52: ='CONTRACT PRICE ZAR'!S50 -> 0 | N52: 0 | O52: =SUM(O35:O51) -> 0 | P52: 0 | Q52: 0 | R52: 0 | S52: 0 | T52: 0
A54: 4. Audit fees | C54: Amount | D54: Amount | E54: Amount | F54: Amount | G54: Amount | H54: Total Amount | I54: Amount | J54: Amount | K54: Amount | L54: Amount | M54: Amount | N54: Total Amount | O54: Amount | P54: Amount | Q54: Amount | R54: Amount | S54: Amount | T54: Total Amount
B55: Total Audit fees | C55: ='FULL COST BUDGET'!G50 -> 0 | D55: ='FULL COST BUDGET'!J50 -> 0 | E55: =IF(ISBLANK('FULL COST BUDGET'!M50),"",'FULL COST BUDGET'!M50) -> 0 | F55: =IF(ISBLANK('FULL COST BUDGET'!P50),"",'FULL COST BUDGET'!P50) -> 0 | G55: =IF(ISBLANK('FULL COST BUDGET'!S50),"",'FULL COST BUDGET'!S50) -> 0 | H55: =SUM(C55,D55,E55,F55,G55) -> 0 | I55: ='CONTRACT PRICE ZAR'!G53 -> 0 | J55: ='CONTRACT PRICE ZAR'!J53 -> 0 | K55: ='CONTRACT PRICE ZAR'!M53 -> 0 | L55: ='CONTRACT PRICE ZAR'!S53 -> 0 | M55: ='CONTRACT PRICE ZAR'!S53 -> 0 | N55: =SUM(I55:M55) -> 0 | O55: =I55-C55 -> 0 | P55: =J55-D55 -> 0 | Q55: =K55-E55 -> 0 | R55: =L55-F55 -> 0 | S55: =M55-G55 -> 0 | T55: =SUM(O55:S55) -> 0
A57: 5. Travel costs, conferences, workshops & seminars | C57: Amount | D57: Amount | E57: Amount | F57: Amount | G57: Amount | H57: Total Amount | I57: Amount | J57: Amount | K57: Amount | L57: Amount | M57: Amount | N57: Total Amount | O57: Amount | P57: Amount | Q57: Amount | R57: Amount | S57: Amount | T57: Total Amount
A58: 5.1 | B58: =IF(ISBLANK('FULL COST BUDGET'!C53),"",'FULL COST BUDGET'!C53) -> Domestic travel to workshops / conferences | C58: ='FULL COST BUDGET'!G53 -> 0 | D58: ='FULL COST BUDGET'!J53 -> 0 | E58: ='FULL COST BUDGET'!M53 -> 0 | F58: ='FULL COST BUDGET'!P53 -> 0 | G58: ='FULL COST BUDGET'!S53 -> 0 | H58: ='FULL COST BUDGET'!T53 -> 0 | I58: ='CONTRACT PRICE ZAR'!G56 -> 0 | J58: ='CONTRACT PRICE ZAR'!J56 -> 0 | K58: ='CONTRACT PRICE ZAR'!M56 -> 0 | L58: ='CONTRACT PRICE ZAR'!P56 -> 0 | M58: ='CONTRACT PRICE ZAR'!S56 -> 0 | N58: =SUM(I58:M58) -> 0 | O58: =I58-C58 -> 0 | P58: 0 | Q58: 0 | R58: 0 | S58: 0 | T58: =SUM(O58:S58) -> 0
A59: 5.2 | B59: =IF(ISBLANK('FULL COST BUDGET'!C54),"",'FULL COST BUDGET'!C54) -> International travel to workshops / conferences | C59: ='FULL COST BUDGET'!G54 -> 0 | D59: ='FULL COST BUDGET'!J54 -> 0 | E59: ='FULL COST BUDGET'!M54 -> 0 | F59: ='FULL COST BUDGET'!P54 -> 0 | G59: ='FULL COST BUDGET'!S54 -> 0 | H59: ='FULL COST BUDGET'!T54 -> 0 | I59: ='CONTRACT PRICE ZAR'!G57 -> 0 | J59: ='CONTRACT PRICE ZAR'!J57 -> 0 | K59: ='CONTRACT PRICE ZAR'!M57 -> 0 | L59: ='CONTRACT PRICE ZAR'!P57 -> 0 | M59: ='CONTRACT PRICE ZAR'!S57 -> 0 | N59: 0 | O59: 0 | P59: 0 | Q59: 0 | R59: 0 | S59: 0 | T59: 0
A60: 5.3 | B60: =IF(ISBLANK('FULL COST BUDGET'!C55),"",'FULL COST BUDGET'!C55) -> Accommodation | C60: ='FULL COST BUDGET'!G55 -> 0 | D60: ='FULL COST BUDGET'!J55 -> 0 | E60: ='FULL COST BUDGET'!M55 -> 0 | F60: ='FULL COST BUDGET'!P55 -> 0 | G60: ='FULL COST BUDGET'!S55 -> 0 | H60: ='FULL COST BUDGET'!T55 -> 0 | I60: ='CONTRACT PRICE ZAR'!G58 -> 0 | J60: ='CONTRACT PRICE ZAR'!J58 -> 0 | K60: ='CONTRACT PRICE ZAR'!M58 -> 0 | L60: ='CONTRACT PRICE ZAR'!P58 -> 0 | M60: ='CONTRACT PRICE ZAR'!S58 -> 0 | N60: 0 | O60: 0 | P60: 0 | Q60: 0 | R60: 0 | S60: 0 | T60: 0
A61: 5.4 | B61: =IF(ISBLANK('FULL COST BUDGET'!C56),"",'FULL COST BUDGET'!C56) -> Registration cost | C61: ='FULL COST BUDGET'!G56 -> 0 | D61: ='FULL COST BUDGET'!J56 -> 0 | E61: ='FULL COST BUDGET'!M56 -> 0 | F61: ='FULL COST BUDGET'!P56 -> 0 | G61: ='FULL COST BUDGET'!S56 -> 0 | H61: ='FULL COST BUDGET'!T56 -> 0 | I61: ='CONTRACT PRICE ZAR'!G59 -> 0 | J61: ='CONTRACT PRICE ZAR'!J59 -> 0 | K61: ='CONTRACT PRICE ZAR'!M59 -> 0 | L61: ='CONTRACT PRICE ZAR'!P59 -> 0 | M61: ='CONTRACT PRICE ZAR'!S59 -> 0 | N61: 0 | O61: 0 | P61: 0 | Q61: 0 | R61: 0 | S61: 0 | T61: 0
A62: 5.5 | B62: =IF(ISBLANK('FULL COST BUDGET'!C57),"",'FULL COST BUDGET'!C57) -> Per diems (daily allowances) | C62: ='FULL COST BUDGET'!G57 -> 0 | D62: ='FULL COST BUDGET'!J57 -> 0 | E62: ='FULL COST BUDGET'!M57 -> 0 | F62: ='FULL COST BUDGET'!P57 -> 0 | G62: ='FULL COST BUDGET'!S57 -> 0 | H62: ='FULL COST BUDGET'!T57 -> 0 | I62: ='CONTRACT PRICE ZAR'!G60 -> 0 | J62: ='CONTRACT PRICE ZAR'!J60 -> 0 | K62: ='CONTRACT PRICE ZAR'!M60 -> 0 | L62: ='CONTRACT PRICE ZAR'!P60 -> 0 | M62: ='CONTRACT PRICE ZAR'!S60 -> 0 | N62: 0 | O62: =I62-C62 -> 0 | P62: 0 | Q62: 0 | R62: 0 | S62: 0 | T62: 0
A63: 5.6 | B63: =IF(ISBLANK('FULL COST BUDGET'!C58),"",'FULL COST BUDGET'!C58) -> Other travel costs | C63: ='FULL COST BUDGET'!G58 -> 0 | D63: ='FULL COST BUDGET'!J58 -> 0 | E63: ='FULL COST BUDGET'!M58 -> 0 | F63: ='FULL COST BUDGET'!P58 -> 0 | G63: ='FULL COST BUDGET'!S58 -> 0 | H63: ='FULL COST BUDGET'!T58 -> 0 | I63: ='CONTRACT PRICE ZAR'!G61 -> 0 | J63: ='CONTRACT PRICE ZAR'!J61 -> 0 | K63: ='CONTRACT PRICE ZAR'!M61 -> 0 | L63: ='CONTRACT PRICE ZAR'!P61 -> 0 | M63: ='CONTRACT PRICE ZAR'!S61 -> 0 | N63: 0 | O63: 0 | P63: 0 | Q63: 0 | R63: 0 | S63: 0 | T63: 0
B64: =IF(ISBLANK('FULL COST BUDGET'!C59),"",'FULL COST BUDGET'!C59) -> Total travel cost, conferences etc | C64: ='FULL COST BUDGET'!G59 -> 0 | D64: ='FULL COST BUDGET'!J59 -> 0 | E64: ='FULL COST BUDGET'!M59 -> 0 | F64: ='FULL COST BUDGET'!P59 -> 0 | G64: ='FULL COST BUDGET'!S59 -> 0 | H64: ='FULL COST BUDGET'!T59 -> 0 | I64: ='CONTRACT PRICE ZAR'!G62 -> 0 | J64: ='CONTRACT PRICE ZAR'!J62 -> 0 | K64: ='CONTRACT PRICE ZAR'!M62 -> 0 | L64: ='CONTRACT PRICE ZAR'!P62 -> 0 | M64: ='CONTRACT PRICE ZAR'!S62 -> 0 | N64: 0 | O64: 0 | P64: 0 | Q64: 0 | R64: 0 | S64: 0 | T64: 0
A66: 6. Any other expenses directly related to the research project | C66: Amount | D66: Amount | E66: Amount | F66: Amount | G66: Amount | H66: Total Amount | I66: Amount | J66: Amount | K66: Amount | L66: Amount | M66: Amount | N66: Total Amount | O66: Amount | P66: Amount | Q66: Amount | R66: Amount | S66: Amount | T66: Total Amount
A67: 6.1 | B67: =IF(ISBLANK('FULL COST BUDGET'!C62),"",'FULL COST BUDGET'!C62) -> Research Data Management | C67: ='FULL COST BUDGET'!G62 -> 0 | D67: ='FULL COST BUDGET'!J62 -> 0 | E67: ='FULL COST BUDGET'!M62 -> 0 | F67: ='FULL COST BUDGET'!P62 -> 0 | G67: ='FULL COST BUDGET'!S62 -> 0 | H67: =SUM(C67,D67,E67,F67,G67) -> 0 | I67: ='CONTRACT PRICE ZAR'!G65 -> 0 | J67: ='CONTRACT PRICE ZAR'!J65 -> 0 | K67: ='CONTRACT PRICE ZAR'!M65 -> 0 | L67: ='CONTRACT PRICE ZAR'!P65 -> 0 | M67: ='CONTRACT PRICE ZAR'!S65 -> 0 | N67: =SUM(I67:M67) -> 0 | O67: =I67-C67 -> 0 | P67: 0 | Q67: 0 | R67: 0 | S67: 0 | T67: =SUM(O67:S67) -> 0
A68: 6.2 | B68: =IF(ISBLANK('FULL COST BUDGET'!C63),"",'FULL COST BUDGET'!C63) -> Grant Management Office | C68: ='FULL COST BUDGET'!G63 -> 0 | D68: ='FULL COST BUDGET'!J63 -> 0 | E68: ='FULL COST BUDGET'!M63 -> 0 | F68: ='FULL COST BUDGET'!P63 -> 0 | G68: ='FULL COST BUDGET'!S63 -> 0 | H68: =SUM(C68,D68,E68,F68,G68) -> 0 | I68: ='CONTRACT PRICE ZAR'!G66 -> 0 | J68: ='CONTRACT PRICE ZAR'!J66 -> 0 | K68: ='CONTRACT PRICE ZAR'!M66 -> 0 | L68: ='CONTRACT PRICE ZAR'!P66 -> 0 | M68: ='CONTRACT PRICE ZAR'!S66 -> 0 | N68: 0 | O68: 0 | P68: 0 | Q68: 0 | R68: 0 | S68: 0 | T68: =SUM(O68:S68) -> 0
A69: 6.3 | B69: ='CONTRACT PRICE ZAR'!C67 ->  | C69: ='FULL COST BUDGET'!G64 -> 0 | D69: ='FULL COST BUDGET'!J64 -> 0 | E69: ='FULL COST BUDGET'!M64 -> 0 | F69: ='FULL COST BUDGET'!P64 -> 0 | G69: ='FULL COST BUDGET'!S64 -> 0 | H69: =SUM(C69,D69,E69,F69,G69) -> 0 | I69: ='CONTRACT PRICE ZAR'!G67 -> 0 | J69: ='CONTRACT PRICE ZAR'!J67 -> 0 | K69: ='CONTRACT PRICE ZAR'!M67 -> 0 | L69: ='CONTRACT PRICE ZAR'!P67 -> 0 | M69: ='CONTRACT PRICE ZAR'!S67 -> 0 | N69: 0 | O69: 0 | P69: 0 | Q69: 0 | R69: 0 | S69: 0 | T69: =SUM(O69:S69) -> 0
B70: Total other expenses | C70: =SUM(C67:C69) -> 0 | D70: 0 | E70: 0 | F70: 0 | G70: 0 | H70: 0 | I70: 0 | J70: 0 | K70: 0 | L70: 0 | M70: 0 | N70: 0 | O70: =SUM(O67:O69) -> 0 | P70: =SUM(P67:P69) -> 0 | Q70: =SUM(Q67:Q69) -> 0 | R70: =SUM(R67:R69) -> 0 | S70: =SUM(S67:S69) -> 0 | T70: =SUM(O70:S70) -> 0
A72: SUBTOTAL A (TOTAL DIRECT COST) | C72: =C26+C32+C52+C55+C64+C70 -> 0 | D72: 0 | E72: 0 | F72: 0 | G72: 0 | H72: 0 | I72: 0 | J72: 0 | K72: 0 | L72: 0 | M72: 0 | N72: 0 | O72: =O26+O32+O52+O55+O64+O70 -> 0 | P72: 0 | Q72: 0 | R72: 0 | S72: 0 | T72: 0
A74: 7. Departmental / Faculty Indirect Cost | C74: Amount | D74: Amount | E74: Amount | F74: Amount | G74: Amount | H74: Total Amount | I74: Amount | J74: Amount | K74: Amount | L74: Amount | M74: Amount | N74: Total Amount | O74: Amount | P74: Amount | Q74: Amount | R74: Amount | S74: Amount | T74: Total Amount
A75: 7.1 | B75: ='CONTRACT PRICE ZAR'!C81 -> Departmental levy (Support cost within department) | C75: ='FULL COST BUDGET'!G78 -> 0 | D75: ='FULL COST BUDGET'!J78 -> 0 | E75: ='FULL COST BUDGET'!M78 -> 0 | F75: ='FULL COST BUDGET'!P78 -> 0 | G75: ='FULL COST BUDGET'!S78 -> 0 | H75: ='FULL COST BUDGET'!T78 -> 0 | I75: ='CONTRACT PRICE ZAR'!G81 -> 0 | J75: ='CONTRACT PRICE ZAR'!J81 -> 0 | K75: ='CONTRACT PRICE ZAR'!M81 -> 0 | L75: ='CONTRACT PRICE ZAR'!P81 -> 0 | M75: ='CONTRACT PRICE ZAR'!S81 -> 0 | N75: =SUM(I75:M75) -> 0 | O75: =I75-C75 -> 0 | P75: 0 | Q75: 0 | R75: 0 | S75: 0 | T75: =SUM(O75:S75) -> 0
A76: 7.2 | B76: =IF(ISBLANK('FULL COST BUDGET'!C79),"",'FULL COST BUDGET'!C79) -> Faculty levy | C76: ='FULL COST BUDGET'!G79 -> 0 | D76: ='FULL COST BUDGET'!J79 -> 0 | E76: ='FULL COST BUDGET'!M79 -> 0 | F76: ='FULL COST BUDGET'!P79 -> 0 | G76: ='FULL COST BUDGET'!S79 -> 0 | H76: ='FULL COST BUDGET'!T79 -> 0 | I76: ='CONTRACT PRICE ZAR'!G82 -> 0 | J76: ='CONTRACT PRICE ZAR'!J82 -> 0 | K76: ='CONTRACT PRICE ZAR'!M82 -> 0 | L76: ='CONTRACT PRICE ZAR'!P82 -> 0 | M76: ='CONTRACT PRICE ZAR'!S82 -> 0 | N76: =SUM(I76:M76) -> 0 | O76: 0 | P76: 0 | Q76: 0 | R76: 0 | S76: 0 | T76: =SUM(O76:S76) -> 0
B77: Total departmental indirect cost | C77: =SUM(C75:C76) -> 0 | D77: 0 | E77: 0 | F77: 0 | G77: 0 | H77: 0 | I77: 0 | J77: 0 | K77: 0 | L77: 0 | M77: 0 | N77: 0 | O77: 0 | P77: 0 | Q77: 0 | R77: 0 | S77: 0 | T77: 0
A79: SUBTOTAL B (TOTAL COST excluding Bursaries) | C79: =C72+C77 -> 0 | D79: 0 | E79: 0 | F79: 0 | G79: 0 | H79: 0 | I79: 0 | J79: 0 | K79: 0 | L79: 0 | M79: 0 | N79: 0 | O79: 0 | P79: 0 | Q79: 0 | R79: 0 | S79: 0 | T79: 0
A81: 8. ICRR (Indirect Cost Recovery Rate) | C81: Amount | D81: Amount | E81: Amount | F81: Amount | G81: Amount | H81: Total Amount | I81: Amount | J81: Amount | K81: Amount | L81: Amount | M81: Amount | N81: Total Amount | O81: Amount | P81: Amount | Q81: Amount | R81: Amount | S81: Amount | T81: Total Amount
B82: ICRR as per Cover Page (excluding IP Transfer Fee and Bursaries) | C82: ='FULL COST BUDGET'!G85 -> 0 | D82: ='FULL COST BUDGET'!J85 -> 0 | E82: ='FULL COST BUDGET'!M85 -> 0 | F82: ='FULL COST BUDGET'!P85 -> 0 | G82: ='FULL COST BUDGET'!S85 -> 0 | H82: =SUM(C82:G82) -> 0 | I82: ='CONTRACT PRICE ZAR'!G88 -> 0 | J82: ='CONTRACT PRICE ZAR'!J88 -> 0 | K82: ='CONTRACT PRICE ZAR'!M88 -> 0 | L82: ='CONTRACT PRICE ZAR'!P88 -> 0 | M82: ='CONTRACT PRICE ZAR'!S88 -> 0 | N82: =SUM(I82:M82) -> 0 | O82: =I82-C82 -> 0 | P82: 0 | Q82: 0 | R82: 0 | S82: 0 | T82: 0
A84: SUBTOTAL C | C84: =C79+C82 -> 0 | D84: 0 | E84: 0 | F84: 0 | G84: 0 | H84: 0 | I84: 0 | J84: 0 | K84: 0 | L84: 0 | M84: 0 | N84: 0 | O84: 0 | P84: 0 | Q84: 0 | R84: 0 | S84: 0 | T84: 0
A86: 9. IP Transfer Fee | C86: Amount | D86: Amount | E86: Amount | F86: Amount | G86: Amount | H86: Total Amount | I86: Amount | J86: Amount | K86: Amount | L86: Amount | M86: Amount | N86: Total Amount | O86: Amount | P86: Amount | Q86: Amount | R86: Amount | S86: Amount | T86: Total Amount
B87: =TEXT(IPPercentage,"0%")&" of Subtotal C (only applicable if clients want to own the IP)" -> 0% of Subtotal C (only applicable if clients want to own the IP) | C87: 0 | D87: 0 | E87: 0 | F87: 0 | G87: 0 | H87: =SUM(C87:G87) -> 0 | I87: ='CONTRACT PRICE ZAR'!G93 -> 0 | J87: ='CONTRACT PRICE ZAR'!J93 -> 0 | K87: ='CONTRACT PRICE ZAR'!M93 -> 0 | L87: ='CONTRACT PRICE ZAR'!P93 -> 0 | M87: ='CONTRACT PRICE ZAR'!S93 -> 0 | N87: =I87+J87+K87+L87+M87 -> 0 | O87: =I87-C87 -> 0 | P87: =J87-D87 -> 0 | Q87: =K87-E87 -> 0 | R87: =L87-F87 -> 0 | S87: =M87-G87 -> 0 | T87: =O87+P87+Q87+R87+S87 -> 0
A89: SUBTOTAL D | C89: =C84+C87 -> 0 | D89: 0 | E89: 0 | F89: 0 | G89: 0 | H89: 0 | I89: 0 | J89: 0 | K89: 0 | L89: 0 | M89: 0 | N89: 0 | O89: 0 | P89: 0 | Q89: 0 | R89: 0 | S89: 0 | T89: 0
A91: 10. VAT | C91: Amount | D91: Amount | E91: Amount | F91: Amount | G91: Amount | H91: Total Amount | I91: Amount | J91: Amount | K91: Amount | L91: Amount | M91: Amount | N91: Total Amount | O91: Amount | P91: Amount | Q91: Amount | R91: Amount | S91: Amount | T91: Total Amount
B92: 15% of Subtotal D | C92: ='FULL COST BUDGET'!G94 -> 0 | D92: ='FULL COST BUDGET'!J94 -> 0 | E92: ='FULL COST BUDGET'!M94 -> 0 | F92: ='FULL COST BUDGET'!P94 -> 0 | G92: ='FULL COST BUDGET'!S94 -> 0 | H92: =C92+D92+E92+F92+G92 -> 0 | I92: ='CONTRACT PRICE ZAR'!G98 -> 0 | J92: ='CONTRACT PRICE ZAR'!J98 -> 0 | K92: ='CONTRACT PRICE ZAR'!M98 -> 0 | L92: ='CONTRACT PRICE ZAR'!P98 -> 0 | M92: ='CONTRACT PRICE ZAR'!S98 -> 0 | N92: =I92+J92+K92+L92+M92 -> 0 | O92: =I92-C92 -> 0 | P92: =J92-D92 -> 0 | Q92: =K92-E92 -> 0 | R92: =L92-F92 -> 0 | S92: =M92-G92 -> 0 | T92: =O92+P92+Q92+R92+S92 -> 0
A94: 11. Bursaries | C94: Amount | D94: Amount | E94: Amount | F94: Amount | G94: Amount | H94: Total Amount | I94: Amount | J94: Amount | K94: Amount | L94: Amount | M94: Amount | N94: Total Amount | O94: Amount | P94: Amount | Q94: Amount | R94: Amount | S94: Amount | T94: Total Amount
A95: 11.1 | B95: =IF(ISBLANK('FULL COST BUDGET'!C98),"",'FULL COST BUDGET'!C98) -> Undergraduate Bursaries | C95: ='FULL COST BUDGET'!G98 -> 0 | D95: ='FULL COST BUDGET'!J98 -> 0 | E95: ='FULL COST BUDGET'!M98 -> 0 | F95: ='FULL COST BUDGET'!P98 -> 0 | G95: ='FULL COST BUDGET'!S98 -> 0 | H95: ='FULL COST BUDGET'!T98 -> 0 | I95: ='CONTRACT PRICE ZAR'!G101 -> 0 | J95: ='CONTRACT PRICE ZAR'!J101 -> 0 | K95: ='CONTRACT PRICE ZAR'!M101 -> 0 | L95: ='CONTRACT PRICE ZAR'!P101 -> 0 | M95: ='CONTRACT PRICE ZAR'!S101 -> 0 | N95: =SUM(I95:M95) -> 0 | O95: =I95-C95 -> 0 | P95: 0 | Q95: 0 | R95: 0 | S95: 0 | T95: =SUM(O95:S95) -> 0
A96: 11.2 | B96: =IF(ISBLANK('FULL COST BUDGET'!C99),"",'FULL COST BUDGET'!C99) -> Postgraduate Bursaries | C96: ='FULL COST BUDGET'!G99 -> 0 | D96: ='FULL COST BUDGET'!J99 -> 0 | E96: ='FULL COST BUDGET'!M99 -> 0 | F96: ='FULL COST BUDGET'!P99 -> 0 | G96: ='FULL COST BUDGET'!S99 -> 0 | H96: ='FULL COST BUDGET'!T99 -> 0 | I96: ='CONTRACT PRICE ZAR'!G102 -> 0 | J96: ='CONTRACT PRICE ZAR'!J102 -> 0 | K96: ='CONTRACT PRICE ZAR'!M102 -> 0 | L96: ='CONTRACT PRICE ZAR'!P102 -> 0 | M96: ='CONTRACT PRICE ZAR'!S102 -> 0 | N96: =SUM(I96:M96) -> 0 | O96: 0 | P96: 0 | Q96: 0 | R96: 0 | S96: 0 | T96: =SUM(O96:S96) -> 0
B97: Total bursaries | C97: =SUM(C95:C96) -> 0 | D97: 0 | E97: 0 | F97: 0 | G97: 0 | H97: 0 | I97: 0 | J97: 0 | K97: 0 | L97: 0 | M97: 0 | N97: 0 | O97: 0 | P97: 0 | Q97: 0 | R97: 0 | S97: 0 | T97: 0
A99: DEVIATION REPORT | C99: =SUM(C97,C92,C89) -> 0 | D99: 0 | E99: 0 | F99: 0 | G99: 0 | H99: 0 | I99: 0 | J99: 0 | K99: 0 | L99: 0 | M99: 0 | N99: 0 | O99: 0 | P99: 0 | Q99: 0 | R99: 0 | S99: 0 | T99: 0
A101: Surplus / Shortage | G101: =T99 -> 0
A103: HYPERLINK TO IP PRICING TOOL
A104: HYPERLINK TO CONTRACT PRICE

Sheet Detailed Quote for Client
A1: CONTRACT BUDGET: RESEARCH BUDGET
A3: PROJECT NAME: | C3: =ProjectName -> Enter NAME | E3: CONTRACT NUMBER (S-number) | G3: =ContractNumber -> Enter S-number
A4: FACULTY: | C4: =IF(ISBLANK(Faculty),"",Faculty) ->  | E4: PRINCIPAL INVESTIGATOR | G4: =PrincipalInvestigator -> Enter PI name
A5: DEPARTMENT | C5: =IF(ISBLANK(Department),"",Department) ->  | E5: FUNDER / CLIENT NAME | G5: =Client -> Enter funder
D7: Year 1 | E7: Year 2 | F7: Year 3 | G7: Year 4 | H7: Year 5 | I7: CONTRACT TOTAL
A8: DIRECT COST | D8: =Year1 -> 2025 | E8: =D8+1 -> 2026 | F8: =E8+1 -> 2027 | G8: =F8+1 -> 2028 | H8: =G8+1 -> 2029
A9: 1. Personnel | B9: 1.1 | C9: ='FULL COST BUDGET'!C7 -> US Professional personnel and US research support personnel | D9: Amount | E9: Amount | F9: Amount | G9: Amount | H9: Amount | I9: Total Amount
C10: =IF(ISBLANK('FULL COST BUDGET'!C8),"",'FULL COST BUDGET'!C8) -> Professor P5 | D10: ='CONTRACT PRICE ZAR'!G11 -> 0 | E10: ='CONTRACT PRICE ZAR'!J11 -> 0 | F10: ='CONTRACT PRICE ZAR'!M11 -> 0 | G10: ='CONTRACT PRICE ZAR'!P11 -> 0 | H10: ='CONTRACT PRICE ZAR'!S11 -> 0 | I10: =SUM(D10:H10) -> 0
C11: =IF(ISBLANK('FULL COST BUDGET'!C9),"",'FULL COST BUDGET'!C9) -> Senior Lecturer P7 | D11: ='CONTRACT PRICE ZAR'!G12 -> 0 | E11: ='CONTRACT PRICE ZAR'!J12 -> 0 | F11: ='CONTRACT PRICE ZAR'!M12 -> 0 | G11: ='CONTRACT PRICE ZAR'!P12 -> 0 | H11: ='CONTRACT PRICE ZAR'!S12 -> 0 | I11: 0
C12: =IF(ISBLANK('FULL COST BUDGET'!C10),"",'FULL COST BUDGET'!C10) -> Lecturer P8 | D12: ='CONTRACT PRICE ZAR'!G13 -> 0 | E12: ='CONTRACT PRICE ZAR'!J13 -> 0 | F12: ='CONTRACT PRICE ZAR'!M13 -> 0 | G12: ='CONTRACT PRICE ZAR'!P13 -> 0 | H12: ='CONTRACT PRICE ZAR'!S13 -> 0 | I12: 0
C13: =IF(ISBLANK('FULL COST BUDGET'!C11),"",'FULL COST BUDGET'!C11) -> Lecturer P8 | D13: ='CONTRACT PRICE ZAR'!G14 -> 0 | E13: ='CONTRACT PRICE ZAR'!J14 -> 0 | F13: ='CONTRACT PRICE ZAR'!M14 -> 0 | G13: ='CONTRACT PRICE ZAR'!P14 -> 0 | H13: ='CONTRACT PRICE ZAR'!S14 -> 0 | I13: 0
C14: =IF(ISBLANK('FULL COST BUDGET'!C12),"",'FULL COST BUDGET'!C12) -> Post Level 9 | D14: ='CONTRACT PRICE ZAR'!G15 -> 0 | E14: ='CONTRACT PRICE ZAR'!J15 -> 0 | F14: ='CONTRACT PRICE ZAR'!M15 -> 0 | G14: ='CONTRACT PRICE ZAR'!P15 -> 0 | H14: ='CONTRACT PRICE ZAR'!S15 -> 0 | I14: 0
C15: =IF(ISBLANK('FULL COST BUDGET'!C13),"",'FULL COST BUDGET'!C13) -> Post Level 12 | D15: ='CONTRACT PRICE ZAR'!G16 -> 0 | E15: ='CONTRACT PRICE ZAR'!J16 -> 0 | F15: ='CONTRACT PRICE ZAR'!M16 -> 0 | G15: ='CONTRACT PRICE ZAR'!P16 -> 0 | H15: ='CONTRACT PRICE ZAR'!S16 -> 0 | I15: 0
C16: Total US personnel | D16: =SUM(D10:D15) -> 0 | E16: 0 | F16: 0 | G16: 0 | H16: 0 | I16: 0
B17: 1.2 | C17: ='FULL COST BUDGET'!C15 -> External personnel (e.g. Consultants)
C18: =IF(ISBLANK('FULL COST BUDGET'!C16),"",'FULL COST BUDGET'!C16) ->  | D18: ='CONTRACT PRICE ZAR'!G19 -> 0 | E18: ='CONTRACT PRICE ZAR'!J19 -> 0 | F18: ='CONTRACT PRICE ZAR'!M19 -> 0 | G18: ='CONTRACT PRICE ZAR'!P19 -> 0 | H18: ='CONTRACT PRICE ZAR'!S19 -> 0 | I18: =SUM(D18:H18) -> 0
C19: =IF(ISBLANK('FULL COST BUDGET'!C17),"",'FULL COST BUDGET'!C17) ->  | D19: ='CONTRACT PRICE ZAR'!G20 -> 0 | E19: ='CONTRACT PRICE ZAR'!J20 -> 0 | F19: ='CONTRACT PRICE ZAR'!M20 -> 0 | G19: ='CONTRACT PRICE ZAR'!P20 -> 0 | H19: ='CONTRACT PRICE ZAR'!S20 -> 0 | I19: =SUM(D19:H19) -> 0
C20: =IF(ISBLANK('FULL COST BUDGET'!C18),"",'FULL COST BUDGET'!C18) ->  | D20: ='CONTRACT PRICE ZAR'!G21 -> 0 | E20: ='CONTRACT PRICE ZAR'!J21 -> 0 | F20: ='CONTRACT PRICE ZAR'!M21 -> 0 | G20: ='CONTRACT PRICE ZAR'!P21 -> 0 | H20: ='CONTRACT PRICE ZAR'!S21 -> 0 | I20: =SUM(D20:H20) -> 0
C21: Total external personnel | D21: =SUM(D18:D20) -> 0 | E21: =SUM(E18:E20) -> 0 | F21: ='FULL COST BUDGET'!M19 -> 0 | G21: ='FULL COST BUDGET'!P19 -> 0 | H21: ='FULL COST BUDGET'!S19 -> 0 | I21: =SUM(I18:I20) -> 0
C22: Total personnel | D22: =SUM(D16,D21) -> 0 | E22: 0 | F22: 0 | G22: 0 | H22: 0 | I22: 0
A24: 2. Equipment | D24: Amount | E24: Amount | F24: Amount | G24: Amount | H24: Amount | I24: Total Amount
B25: 2.1 | C25: =IF(ISBLANK('FULL COST BUDGET'!C23),"",'FULL COST BUDGET'!C23) -> Computers & hardware | D25: ='CONTRACT PRICE ZAR'!G26 -> 0 | E25: ='CONTRACT PRICE ZAR'!J26 -> 0 | F25: ='CONTRACT PRICE ZAR'!M26 -> 0 | G25: ='CONTRACT PRICE ZAR'!P26 -> 0 | H25: ='CONTRACT PRICE ZAR'!S26 -> 0 | I25: =SUM(D25:H25) -> 0
B26: 2.2 | C26: =IF(ISBLANK('FULL COST BUDGET'!C24),"",'FULL COST BUDGET'!C24) -> Other | D26: ='CONTRACT PRICE ZAR'!G27 -> 0 | E26: ='CONTRACT PRICE ZAR'!J27 -> 0 | F26: ='CONTRACT PRICE ZAR'!M27 -> 0 | G26: ='CONTRACT PRICE ZAR'!P27 -> 0 | H26: ='CONTRACT PRICE ZAR'!S27 -> 0 | I26: =SUM(D26:H26) -> 0
B27: 2.3 | C27: =IF(ISBLANK('FULL COST BUDGET'!C25),"",'FULL COST BUDGET'!C25) ->  | D27: ='CONTRACT PRICE ZAR'!G28 -> 0 | E27: ='CONTRACT PRICE ZAR'!J28 -> 0 | F27: ='CONTRACT PRICE ZAR'!M28 -> 0 | G27: ='CONTRACT PRICE ZAR'!P28 -> 0 | H27: ='CONTRACT PRICE ZAR'!S28 -> 0 | I27: =SUM(D27:H27) -> 0
C28: Total equipment | D28: =SUM(D25:D27) -> 0 | E28: 0 | F28: 0 | G28: 0 | H28: 0 | I28: 0
A30: 3. Running costs | D30: Amount | E30: Amount | F30: Amount | G30: Amount | H30: Amount | I30: Total Amount
C31: Total running costs | D31: ='CONTRACT PRICE ZAR'!G50 -> 0 | E31: ='CONTRACT PRICE ZAR'!J50 -> 0 | F31: ='CONTRACT PRICE ZAR'!M50 -> 0 | G31: ='CONTRACT PRICE ZAR'!P50 -> 0 | H31: ='CONTRACT PRICE ZAR'!S50 -> 0 | I31: =SUM(D31,E31,F31,G31,H31) -> 0
A33: 4. Audit fees (if additional audit is requested from client) | D33: Amount | E33: Amount | F33: Amount | G33: Amount | H33: Amount | I33: Total Amount
C34: ='FULL COST BUDGET'!C50 -> Audit fees | D34: =IFERROR('CONTRACT PRICE ZAR'!G53,0) -> 0 | E34: =IFERROR('CONTRACT PRICE ZAR'!J53,0) -> 0 | F34: =IFERROR('CONTRACT PRICE ZAR'!M53,0) -> 0 | G34: =IFERROR('CONTRACT PRICE ZAR'!P53,0) -> 0 | H34: =IFERROR('CONTRACT PRICE ZAR'!S53,0) -> 0 | I34: =SUM(D34,E34,F34,G34,H34) -> 0
A36: 5. Travel costs, conferences, workshops & seminars | D36: Amount | E36: Amount | F36: Amount | G36: Amount | H36: Amount | I36: Total Amount
B37: 5.1 | C37: =IF(ISBLANK('FULL COST BUDGET'!C53),"",'FULL COST BUDGET'!C53) -> Domestic travel to workshops / conferences | D37: ='CONTRACT PRICE ZAR'!G56 -> 0 | E37: ='CONTRACT PRICE ZAR'!J56 -> 0 | F37: ='CONTRACT PRICE ZAR'!M56 -> 0 | G37: ='CONTRACT PRICE ZAR'!P56 -> 0 | H37: ='CONTRACT PRICE ZAR'!S56 -> 0 | I37: =SUM(D37:H37) -> 0
B38: 5.2 | C38: =IF(ISBLANK('FULL COST BUDGET'!C54),"",'FULL COST BUDGET'!C54) -> International travel to workshops / conferences | D38: ='CONTRACT PRICE ZAR'!G57 -> 0 | E38: ='CONTRACT PRICE ZAR'!J57 -> 0 | F38: ='CONTRACT PRICE ZAR'!M57 -> 0 | G38: ='CONTRACT PRICE ZAR'!P57 -> 0 | H38: ='CONTRACT PRICE ZAR'!S57 -> 0 | I38: 0
B39: 5.3 | C39: =IF(ISBLANK('FULL COST BUDGET'!C55),"",'FULL COST BUDGET'!C55) -> Accommodation | D39: ='CONTRACT PRICE ZAR'!G58 -> 0 | E39: ='CONTRACT PRICE ZAR'!J58 -> 0 | F39: ='CONTRACT PRICE ZAR'!M58 -> 0 | G39: ='CONTRACT PRICE ZAR'!P58 -> 0 | H39: ='CONTRACT PRICE ZAR'!S58 -> 0 | I39: 0
B40: 5.4 | C40: =IF(ISBLANK('FULL COST BUDGET'!C56),"",'FULL COST BUDGET'!C56) -> Registration cost | D40: ='CONTRACT PRICE ZAR'!G59 -> 0 | E40: ='CONTRACT PRICE ZAR'!J59 -> 0 | F40: ='CONTRACT PRICE ZAR'!M59 -> 0 | G40: ='CONTRACT PRICE ZAR'!P59 -> 0 | H40: ='CONTRACT PRICE ZAR'!S59 -> 0 | I40: 0
B41: 5.5 | C41: =IF(ISBLANK('FULL COST BUDGET'!C57),"",'FULL COST BUDGET'!C57) -> Per diems (daily allowances) | D41: ='CONTRACT PRICE ZAR'!G60 -> 0 | E41: ='CONTRACT PRICE ZAR'!J60 -> 0 | F41: ='CONTRACT PRICE ZAR'!M60 -> 0 | G41: ='CONTRACT PRICE ZAR'!P60 -> 0 | H41: ='CONTRACT PRICE ZAR'!S60 -> 0 | I41: 0
B42: 5.6 | C42: =IF(ISBLANK('FULL COST BUDGET'!C58),"",'FULL COST BUDGET'!C58) -> Other travel costs | D42: ='CONTRACT PRICE ZAR'!G61 -> 0 | E42: ='CONTRACT PRICE ZAR'!J61 -> 0 | F42: ='CONTRACT PRICE ZAR'!M61 -> 0 | G42: ='CONTRACT PRICE ZAR'!P61 -> 0 | H42: ='CONTRACT PRICE ZAR'!S61 -> 0 | I42: 0
C43: Total travel cost, conferences etc | D43: =SUM(D37:D42) -> 0 | E43: 0 | F43: 0 | G43: 0 | H43: 0 | I43: 0
A45: 6. Any other expenses directly related to the research project | D45: Amount | E45: Amount | F45: Amount | G45: Amount | H45: Amount | I45: Total Amount
B46: 6.1 | C46: =IF(ISBLANK('CONTRACT PRICE ZAR'!C65),"",'CONTRACT PRICE ZAR'!C65) -> Research Data Management | D46: ='CONTRACT PRICE ZAR'!G65 -> 0 | E46: ='CONTRACT PRICE ZAR'!J65 -> 0 | F46: ='CONTRACT PRICE ZAR'!M65 -> 0 | G46: ='CONTRACT PRICE ZAR'!P65 -> 0 | H46: ='CONTRACT PRICE ZAR'!S65 -> 0 | I46: =SUM(D46,E46,F46,G46,H46) -> 0
B47: 6.2 | C47: =IF(ISBLANK('CONTRACT PRICE ZAR'!C66),"",'CONTRACT PRICE ZAR'!C66) -> Grant Management Office | D47: ='CONTRACT PRICE ZAR'!G66 -> 0 | E47: ='CONTRACT PRICE ZAR'!J66 -> 0 | F47: ='CONTRACT PRICE ZAR'!M66 -> 0 | G47: ='CONTRACT PRICE ZAR'!P66 -> 0 | H47: ='CONTRACT PRICE ZAR'!S66 -> 0 | I47: =SUM(D47,E47,F47,G47,H47) -> 0
B48: 6.3 | C48: =IF(ISBLANK('CONTRACT PRICE ZAR'!C67),"",'CONTRACT PRICE ZAR'!C67) ->  | D48: ='CONTRACT PRICE ZAR'!G67 -> 0 | E48: ='CONTRACT PRICE ZAR'!J67 -> 0 | F48: ='CONTRACT PRICE ZAR'!M67 -> 0 | G48: ='CONTRACT PRICE ZAR'!P67 -> 0 | H48: ='CONTRACT PRICE ZAR'!S67 -> 0 | I48: =SUM(D48,E48,F48,G48,H48) -> 0
C49: Total other expenses | D49: =SUM(D46:D48) -> 0 | E49: 0 | F49: 0 | G49: 0 | H49: 0 | I49: 0
A51: SUBTOTAL A (TOTAL DIRECT COST) | D51: =D22+D28+D31+D34+D43+D49 -> 0 | E51: 0 | F51: 0 | G51: 0 | H51: 0 | I51: 0
A53: 7. Departmental / Faculty Indirect Cost | D53: Amount | E53: Amount | F53: Amount | G53: Amount | H53: Amount | I53: Total Amount
C54: Total faculty and departmental support costs | D54: ='CONTRACT PRICE ZAR'!G83 -> 0 | E54: ='CONTRACT PRICE ZAR'!J83 -> 0 | F54: ='CONTRACT PRICE ZAR'!M83 -> 0 | G54: ='CONTRACT PRICE ZAR'!P83 -> 0 | H54: ='CONTRACT PRICE ZAR'!S83 -> 0 | I54: =SUM(D54,E54,F54,G54,H54) -> 0
A56: SUBTOTAL B (TOTAL COST excluding ICRR & Bursaries) | D56: =D51+D54 -> 0 | E56: 0 | F56: 0 | G56: 0 | H56: 0 | I56: 0
A58: 8. ICRR (Indirect Cost Recovery Rate) | D58: Amount | E58: Amount | F58: Amount | G58: Amount | H58: Amount | I58: Total Amount
C59: ICRR as per Cover Page (excluding IP Transfer Fee and Bursaries) | D59: ='CONTRACT PRICE ZAR'!G88 -> 0 | E59: ='CONTRACT PRICE ZAR'!J88 -> 0 | F59: ='CONTRACT PRICE ZAR'!M88 -> 0 | G59: ='CONTRACT PRICE ZAR'!P88 -> 0 | H59: ='CONTRACT PRICE ZAR'!S88 -> 0 | I59: =SUM(D59,E59,F59,G59,H59) -> 0
A61: SUBTOTAL C | D61: =D56+D59 -> 0 | E61: 0 | F61: 0 | G61: 0 | H61: 0 | I61: 0
A63: 9. IP Transfer Fee | D63: Amount | E63: Amount | F63: Amount | G63: Amount | H63: Amount | I63: Total Amount
C64: IP transfer fee, if applicable | D64: ='CONTRACT PRICE ZAR'!G93 -> 0 | E64: ='CONTRACT PRICE ZAR'!J93 -> 0 | F64: ='CONTRACT PRICE ZAR'!M93 -> 0 | G64: ='CONTRACT PRICE ZAR'!P93 -> 0 | H64: ='CONTRACT PRICE ZAR'!S93 -> 0 | I64: =SUM(D64,E64,F64,G64,H64) -> 0
A66: SUBTOTAL D | D66: =D61+D64 -> 0 | E66: 0 | F66: 0 | G66: 0 | H66: 0 | I66: 0
A68: 10. VAT | D68: Amount | E68: Amount | F68: Amount | G68: Amount | H68: Amount | I68: Total Amount
C69: ='FULL COST BUDGET'!C94 -> 16% of Subtotal D | D69: ='CONTRACT PRICE ZAR'!G98 -> 0 | E69: ='CONTRACT PRICE ZAR'!J98 -> 0 | F69: ='CONTRACT PRICE ZAR'!M98 -> 0 | G69: ='CONTRACT PRICE ZAR'!P98 -> 0 | H69: ='CONTRACT PRICE ZAR'!S98 -> 0 | I69: =SUM(D69,E69,F69,G69,H69) -> 0
A71: 11. Bursaries | D71: Amount | E71: Amount | F71: Amount | G71: Amount | H71: Amount | I71: Total Amount
B72: 11.1 | C72: ='FULL COST BUDGET'!C98 -> Undergraduate Bursaries | D72: ='CONTRACT PRICE ZAR'!G101 -> 0 | E72: ='CONTRACT PRICE ZAR'!J101 -> 0 | F72: ='CONTRACT PRICE ZAR'!M101 -> 0 | G72: ='CONTRACT PRICE ZAR'!P101 -> 0 | H72: ='CONTRACT PRICE ZAR'!S101 -> 0 | I72: =SUM(D72,E72,F72,G72,H72) -> 0
B73: 11.2 | C73: ='FULL COST BUDGET'!C99 -> Postgraduate Bursaries | D73: ='CONTRACT PRICE ZAR'!G102 -> 0 | E73: ='CONTRACT PRICE ZAR'!J102 -> 0 | F73: ='CONTRACT PRICE ZAR'!M102 -> 0 | G73: ='CONTRACT PRICE ZAR'!P102 -> 0 | H73: ='CONTRACT PRICE ZAR'!S102 -> 0 | I73: =SUM(D73,E73,F73,G73,H73) -> 0
C74: Total bursaries | D74: =SUM(D72:D73) -> 0 | E74: 0 | F74: 0 | G74: 0 | H74: 0 | I74: 0
A76: TOTAL CONTRACT PRICE | D76: =SUM(D74,D69,D66) -> 0 | E76: 0 | F76: 0 | G76: 0 | H76: 0 | I76: 0

Sheet Standard Quote for Client
A1: CONTRACT BUDGET: RESEARCH BUDGET
A3: PROJECT NAME: | B3: =ProjectName -> Enter NAME | D3: CONTRACT NUMBER (S-number) | F3: =ContractNumber -> Enter S-number
A4: FACULTY: | B4: =IF(ISBLANK(Faculty),"",Faculty) ->  | D4: PRINCIPAL INVESTIGATOR | F4: =PrincipalInvestigator -> Enter PI name
A5: DEPARTMENT | B5: =IF(ISBLANK(Department),"",Department) ->  | D5: FUNDER / CLIENT NAME | F5: =Client -> Enter funder
C7: Year 1 | D7: Year 2 | E7: Year 3 | F7: Year 4 | G7: Year 5 | H7: CONTRACT TOTAL
A8: DIRECT COST | C8: =Year1 -> 2025 | D8: =C8+1 -> 2026 | E8: =D8+1 -> 2027 | F8: =E8+1 -> 2028 | G8: =F8+1 -> 2029
A9: 1. Personnel | C9: Amount | D9: Amount | E9: Amount | F9: Amount | G9: Amount | H9: Total Amount
B10: Total US Professional and support personnel | C10: ='CONTRACT PRICE ZAR'!G17 -> 0 | D10: ='CONTRACT PRICE ZAR'!J17 -> 0 | E10: ='CONTRACT PRICE ZAR'!M17 -> 0 | F10: ='CONTRACT PRICE ZAR'!P17 -> 0 | G10: ='CONTRACT PRICE ZAR'!S17 -> 0 | H10: =SUM(C10,D10,E10,F10,G10) -> 0
B11: Total external personnel (e.g. Consultants) | C11: ='CONTRACT PRICE ZAR'!G22 -> 0 | D11: ='CONTRACT PRICE ZAR'!J22 -> 0 | E11: ='CONTRACT PRICE ZAR'!M22 -> 0 | F11: ='CONTRACT PRICE ZAR'!P22 -> 0 | G11: ='CONTRACT PRICE ZAR'!S22 -> 0 | H11: =SUM(C11,D11,E11,F11,G11) -> 0
B12: Total personnel | C12: =SUM(C10,C11) -> 0 | D12: =SUM(D10,D11) -> 0 | E12: =SUM(E10,E11) -> 0 | F12: =SUM(F10,F11) -> 0 | G12: =SUM(G10,G11) -> 0 | H12: =SUM(C12,D12,E12,F12,G12) -> 0
A14: 2. Equipment | C14: Amount | D14: Amount | E14: Amount | F14: Amount | G14: Amount | H14: Total Amount
B15: Total equipment | C15: ='CONTRACT PRICE ZAR'!G29 -> 0 | D15: ='CONTRACT PRICE ZAR'!J29 -> 0 | E15: ='CONTRACT PRICE ZAR'!M29 -> 0 | F15: ='CONTRACT PRICE ZAR'!P29 -> 0 | G15: ='CONTRACT PRICE ZAR'!S29 -> 0 | H15: =SUM(C15,D15,E15,F15,G15) -> 0
A17: 3. Running costs | C17: Amount | D17: Amount | E17: Amount | F17: Amount | G17: Amount | H17: Total Amount
B18: Total running costs | C18: ='CONTRACT PRICE ZAR'!G50+'CONTRACT PRICE ZAR'!G62+'CONTRACT PRICE ZAR'!G68 -> 0 | D18: ='CONTRACT PRICE ZAR'!J50+'CONTRACT PRICE ZAR'!J62+'CONTRACT PRICE ZAR'!J68 -> 0 | E18: ='CONTRACT PRICE ZAR'!M50+'CONTRACT PRICE ZAR'!M62+'CONTRACT PRICE ZAR'!M68 -> 0 | F18: ='CONTRACT PRICE ZAR'!P50+'CONTRACT PRICE ZAR'!P62+'CONTRACT PRICE ZAR'!P68 -> 0 | G18: ='CONTRACT PRICE ZAR'!S50+'CONTRACT PRICE ZAR'!S62+'CONTRACT PRICE ZAR'!S68 -> 0 | H18: =SUM(C18,D18,E18,F18,G18) -> 0
A20: 4. Audit fees (if additional audit is requested from client) | C20: Amount | D20: Amount | E20: Amount | F20: Amount | G20: Amount | H20: Total Amount
B21: ='FULL COST BUDGET'!C50 -> Audit fees | C21: =IFERROR('CONTRACT PRICE ZAR'!G53,0) -> 0 | D21: =IFERROR('CONTRACT PRICE ZAR'!J53,0) -> 0 | E21: =IFERROR('CONTRACT PRICE ZAR'!M53,0) -> 0 | F21: =IFERROR('CONTRACT PRICE ZAR'!P53,0) -> 0 | G21: =IFERROR('CONTRACT PRICE ZAR'!S53,0) -> 0 | H21: =SUM(C21:G21) -> 0
A24: SUBTOTAL A (TOTAL DIRECT COST) | C24: =C12+C15+C18+C21 -> 0 | D24: =D12+D15+D18+D21 -> 0 | E24: =E12+E15+E18+E21 -> 0 | F24: =F12+F15+F18+F21 -> 0 | G24: =G12+G15+G18+G21 -> 0 | H24: =SUM(C24:G24) -> 0
A26: 5. Departmental / Faculty Indirect Cost | C26: Amount | D26: Amount | E26: Amount | F26: Amount | G26: Amount | H26: Total Amount
B27: Total faculty and departmental support costs | C27: ='CONTRACT PRICE ZAR'!G83 -> 0 | D27: ='CONTRACT PRICE ZAR'!J83 -> 0 | E27: ='CONTRACT PRICE ZAR'!M83 -> 0 | F27: ='CONTRACT PRICE ZAR'!P83 -> 0 | G27: ='CONTRACT PRICE ZAR'!S83 -> 0 | H27: =SUM(C27:G27) -> 0
A29: SUBTOTAL B (TOTAL COST excluding ICRR & Bursaries) | C29: =C24+C27 -> 0 | D29: 0 | E29: 0 | F29: 0 | G29: 0 | H29: 0
A31: 6. ICRR (Indirect Cost Recovery Rate) | C31: Amount | D31: Amount | E31: Amount | F31: Amount | G31: Amount | H31: Total Amount
B32: ICRR as per Cover Page (excluding IP Transfer Fee and Bursaries) | C32: ='CONTRACT PRICE ZAR'!G88 -> 0 | D32: ='CONTRACT PRICE ZAR'!J88 -> 0 | E32: ='CONTRACT PRICE ZAR'!M88 -> 0 | F32: ='CONTRACT PRICE ZAR'!P88 -> 0 | G32: ='CONTRACT PRICE ZAR'!S88 -> 0 | H32: =SUM(C32,D32,E32,F32,G32) -> 0
A34: SUBTOTAL C | C34: =C29+C32 -> 0 | D34: 0 | E34: 0 | F34: 0 | G34: 0 | H34: 0
A36: 7. IP Transfer Fee | C36: Amount | D36: Amount | E36: Amount | F36: Amount | G36: Amount | H36: Total Amount
B37: IP transfer fee, if applicable | C37: ='CONTRACT PRICE ZAR'!G93 -> 0 | D37: ='CONTRACT PRICE ZAR'!J93 -> 0 | E37: ='CONTRACT PRICE ZAR'!M93 -> 0 | F37: ='CONTRACT PRICE ZAR'!P93 -> 0 | G37: ='CONTRACT PRICE ZAR'!S93 -> 0 | H37: =SUM(C37,D37,E37,F37,G37) -> 0
A39: SUBTOTAL D | C39: =C34+C37 -> 0 | D39: 0 | E39: 0 | F39: 0 | G39: 0 | H39: 0
A41: 8. VAT | C41: Amount | D41: Amount | E41: Amount | F41: Amount | G41: Amount | H41: Total Amount
B42: ='FULL COST BUDGET'!C94 -> 16% of Subtotal D | C42: ='CONTRACT PRICE ZAR'!G98 -> 0 | D42: ='CONTRACT PRICE ZAR'!J98 -> 0 | E42: ='CONTRACT PRICE ZAR'!M98 -> 0 | F42: ='CONTRACT PRICE ZAR'!P98 -> 0 | G42: ='CONTRACT PRICE ZAR'!S98 -> 0 | H42: =SUM(C42,D42,E42,F42,G42) -> 0
A44: 9. Bursaries | C44: Amount | D44: Amount | E44: Amount | F44: Amount | G44: Amount | H44: Total Amount
B45: ='FULL COST BUDGET'!C98 -> Undergraduate Bursaries | C45: ='CONTRACT PRICE ZAR'!G101 -> 0 | D45: ='CONTRACT PRICE ZAR'!J101 -> 0 | E45: ='CONTRACT PRICE ZAR'!M101 -> 0 | F45: ='CONTRACT PRICE ZAR'!P101 -> 0 | G45: ='CONTRACT PRICE ZAR'!S101 -> 0 | H45: =SUM(C45,D45,E45,F45,G45) -> 0
B46: ='FULL COST BUDGET'!C99 -> Postgraduate Bursaries | C46: ='CONTRACT PRICE ZAR'!G102 -> 0 | D46: ='CONTRACT PRICE ZAR'!J102 -> 0 | E46: ='CONTRACT PRICE ZAR'!M102 -> 0 | F46: ='CONTRACT PRICE ZAR'!P102 -> 0 | G46: ='CONTRACT PRICE ZAR'!S102 -> 0 | H46: =SUM(C46,D46,E46,F46,G46) -> 0
B47: Total bursaries | C47: =SUM(C45:C46) -> 0 | D47: 0 | E47: 0 | F47: 0 | G47: 0 | H47: 0
A49: TOTAL CONTRACT PRICE | C49: =SUM(C47,C42,C39) -> 0 | D49: 0 | E49: 0 | F49: 0 | G49: 0 | H49: 0

Sheet Summarised Quote for Client
A1: CONTRACT BUDGET: RESEARCH BUDGET
A3: PROJECT NAME: | B3: =ProjectName -> Enter NAME | D3: CONTRACT NUMBER (S-number) | F3: =ContractNumber -> Enter S-number
A4: FACULTY: | B4: =IF(ISBLANK(Faculty),"",Faculty) ->  | D4: PRINCIPAL INVESTIGATOR | F4: =PrincipalInvestigator -> Enter PI name
A5: DEPARTMENT | B5: =IF(ISBLANK(Department),"",Department) ->  | D5: FUNDER / CLIENT NAME | F5: =Client -> Enter funder
C8: Year 1 | D8: Year 2 | E8: Year 3 | F8: Year 4 | G8: Year 5 | H8: CONTRACT TOTAL
A9: DIRECT COST | C9: =Year1 -> 2025 | D9: =C9+1 -> 2026 | E9: =D9+1 -> 2027 | F9: =E9+1 -> 2028 | G9: =F9+1 -> 2029
A10: Personnel | C10: Amount | D10: Amount | E10: Amount | F10: Amount | G10: Amount | H10: Total Amount
B11: Total personnel | C11: ='CONTRACT PRICE ZAR'!G23 -> 0 | D11: ='CONTRACT PRICE ZAR'!J23 -> 0 | E11: ='CONTRACT PRICE ZAR'!M23 -> 0 | F11: ='CONTRACT PRICE ZAR'!P23 -> 0 | G11: ='CONTRACT PRICE ZAR'!S23 -> 0 | H11: =SUM(C11:G11) -> 0
A13: Equipment | C13: Amount | D13: Amount | E13: Amount | F13: Amount | G13: Amount | H13: Total Amount
B14: Total equipment | C14: ='CONTRACT PRICE ZAR'!G29 -> 0 | D14: ='CONTRACT PRICE ZAR'!J29 -> 0 | E14: ='CONTRACT PRICE ZAR'!M29 -> 0 | F14: ='CONTRACT PRICE ZAR'!P29 -> 0 | G14: ='CONTRACT PRICE ZAR'!S29 -> 0 | H14: =SUM(C14:G14) -> 0
A16: Running costs | C16: Amount | D16: Amount | E16: Amount | F16: Amount | G16: Amount | H16: Total Amount
B17: Total running costs | C17: ='CONTRACT PRICE ZAR'!G50+'CONTRACT PRICE ZAR'!G62+'CONTRACT PRICE ZAR'!G68 -> 0 | D17: ='CONTRACT PRICE ZAR'!J50+'CONTRACT PRICE ZAR'!J62+'CONTRACT PRICE ZAR'!J68 -> 0 | E17: ='CONTRACT PRICE ZAR'!M50+'CONTRACT PRICE ZAR'!M62+'CONTRACT PRICE ZAR'!M68 -> 0 | F17: ='CONTRACT PRICE ZAR'!P50+'CONTRACT PRICE ZAR'!P62+'CONTRACT PRICE ZAR'!P68 -> 0 | G17: ='CONTRACT PRICE ZAR'!S50+'CONTRACT PRICE ZAR'!S62+'CONTRACT PRICE ZAR'!S68 -> 0 | H17: =SUM(C17:G17) -> 0
A19: Audit fees (if additional audit is requested from client) | C19: Amount | D19: Amount | E19: Amount | F19: Amount | G19: Amount | H19: Total Amount
B20: ='FULL COST BUDGET'!C50 -> Audit fees | C20: =IFERROR('CONTRACT PRICE ZAR'!G53,0) -> 0 | D20: =IFERROR('CONTRACT PRICE ZAR'!J53,0) -> 0 | E20: =IFERROR('CONTRACT PRICE ZAR'!M53,0) -> 0 | F20: =IFERROR('CONTRACT PRICE ZAR'!P53,0) -> 0 | G20: =IFERROR('CONTRACT PRICE ZAR'!S53,0) -> 0 | H20: =SUM(C20:G20) -> 0
A22: SUBTOTAL A (TOTAL DIRECT COST) | C22: =C11+C14+C17+C20 -> 0 | D22: =D11+D14+D17+D20 -> 0 | E22: =E11+E14+E17+E20 -> 0 | F22: =F11+F14+F17+F20 -> 0 | G22: =G11+G14+G17+G20 -> 0 | H22: =SUM(C22:G22) -> 0
A24: INDIRECT COST
A25: SUBTOTAL B (TOTAL INDIRECT COST) | C25: ='CONTRACT PRICE ZAR'!G83+'CONTRACT PRICE ZAR'!G88+'CONTRACT PRICE ZAR'!G93 -> 0 | D25: ='CONTRACT PRICE ZAR'!J83+'CONTRACT PRICE ZAR'!J88+'CONTRACT PRICE ZAR'!J93 -> 0 | E25: ='CONTRACT PRICE ZAR'!M83+'CONTRACT PRICE ZAR'!M88+'CONTRACT PRICE ZAR'!M93 -> 0 | F25: ='CONTRACT PRICE ZAR'!P83+'CONTRACT PRICE ZAR'!P88+'CONTRACT PRICE ZAR'!P93 -> 0 | G25: ='CONTRACT PRICE ZAR'!S83+'CONTRACT PRICE ZAR'!S88+'CONTRACT PRICE ZAR'!S93 -> 0 | H25: =SUM(C25:G25) -> 0
A27: VAT | C27: Amount | D27: Amount | E27: Amount | F27: Amount | G27: Amount | H27: Total Amount
B28: =TEXT(VAT,"0%") &" of Subtotal B" -> 16% of Subtotal B | C28: ='CONTRACT PRICE ZAR'!G98 -> 0 | D28: ='CONTRACT PRICE ZAR'!J98 -> 0 | E28: ='CONTRACT PRICE ZAR'!M98 -> 0 | F28: ='CONTRACT PRICE ZAR'!P98 -> 0 | G28: ='CONTRACT PRICE ZAR'!S98 -> 0 | H28: =SUM(C27:G28) -> 0
A30: Bursaries | C30: Amount | D30: Amount | E30: Amount | F30: Amount | G30: Amount | H30: Total Amount
B31: Total bursaries | C31: ='CONTRACT PRICE ZAR'!G103 -> 0 | D31: ='CONTRACT PRICE ZAR'!J103 -> 0 | E31: ='CONTRACT PRICE ZAR'!M103 -> 0 | F31: ='CONTRACT PRICE ZAR'!P103 -> 0 | G31: ='CONTRACT PRICE ZAR'!S103 -> 0 | H31: =SUM(C30:G31) -> 0
A33: TOTAL CONTRACT PRICE | C33: =SUM(C22,C31,C28,C25) -> 0 | D33: =SUM(D22,D31,D28,D25) -> 0 | E33: =SUM(E22,E31,E28,E25) -> 0 | F33: =SUM(F22,F31,F28,F25) -> 0 | G33: =SUM(G22,G31,G28,G25) -> 0 | H33: =SUM(C33:G33) -> 0

Sheet BRL
A1: Basic remuneration levels (BRL) for 2025 as approved by the Human Resources
B3: The 2025 BRL tariff per hour as communicated by HR | M3: =Year1 -> 2025 | N3: =M3+1 -> 2026 | O3: =N3+1 -> 2027
A4: Type | B4: POST LEVEL | C4: US BRL | D4: MAX 25% above BRL | E4: 1/8th | F4: 2/8th | G4: 3/8th | H4: 4/8th | I4: 5/8th | J4: 6/8th | K4: 7/8th | L4: Hours for year | M4: R/hour | N4: Added 6% | O4: Added 6%
A5: Academics | B5: Junior Lecturer P9 | C5: 590557 | D5: =C5*1.25 -> 738196.25 | L5: 1950 | M5: =C5/L5 -> 302.8497436 | N5: =M5*1.06 -> 321.0207282 | O5: 340.2819719
B6: Lecturer P8 | C6: 882015 | D6: =C6*1.25 -> 1102518.75 | L6: 1950 | M6: 452.3153846 | N6: 479.4543077 | O6: 508.2215662
B7: Senior Lecturer P7 | C7: 1116049 | D7: 1395061.25 | L7: 1950 | M7: 572.3328205 | N7: 606.6727897 | O7: 643.0731571
B8: Associate Professor P6 | C8: 1343280 | D8: 1679100 | L8: 1950 | M8: 688.8615385 | N8: 730.1932308 | O8: 774.0048246
B9: Professor P5 | C9: 1673796 | D9: 2092245 | L9: 1950 | M9: 858.3569231 | N9: 909.8583385 | O9: 964.4498388
B10: Distinguished Professor P4 | C10: 1706384 | D10: 2132980 | L10: 1950 | M10: 875.0687179 | N10: 927.572841 | O10: 983.2272115
A12: Support Staff | B12: Post Level 19/18 | C12: 89244 | D12: 111555 | L12: 1950 | M12: =C12/L12 -> 45.76615385 | N12: =M12*1.06 -> 48.51212308 | O12: 51.42285046
B13: Post Level 15-17 | C13: 136662 | D13: 170827.5 | L13: 1950 | M13: 70.08307692 | N13: 74.28806154 | O13: 78.74534523
B14: Post Level 14 | C14: 157470 | D14: 196837.5 | L14: 1950 | M14: 80.75384615 | N14: 85.59907692 | O14: 90.73502154
B15: Post Level 13 | C15: 199872 | D15: 249840 | L15: 1950 | M15: 102.4984615 | N15: 108.6483692 | O15: 115.1672714
B16: Post Level 12 | C16: 244056 | D16: 305070 | L16: 1950 | M16: 125.1569231 | N16: 132.6663385 | O16: 140.6263188
B17: Post Level 11 | C17: 335218 | D17: 419022.5 | L17: 1950 | M17: 171.9066667 | N17: 182.2210667 | O17: 193.1543307
B18: Post Level 10 | C18: 414684 | D18: 518355 | L18: 1950 | M18: 212.6584615 | N18: 225.4179692 | O18: 238.9430474
B19: Post Level 9 | C19: 511140 | D19: 638925 | L19: 1950 | M19: 262.1230769 | N19: 277.8504615 | O19: 294.5214892
B20: Post Level 8 | C20: 659394 | D20: 824242.5 | L20: 1950 | M20: 338.1507692 | N20: 358.4398154 | O20: 379.9462043
B21: Post Level 7 | C21: 819458 | D21: 1024322.5 | L21: 1950 | M21: 420.2348718 | N21: 445.4489641 | O21: 472.1759019
B22: Post Level 6 | C22: 1006260 | D22: 1257825 | L22: 1950 | M22: 516.0307692 | N22: 546.9926154 | O22: 579.8121723
B23: Post Level 5 | C23: 1376724 | D23: 1720905 | L23: 1950 | M23: 706.0123077 | N23: 748.3730462 | O23: 793.2754289
B24: Post Level 4 | C24: 1688112 | D24: 2110140 | L24: 1950 | M24: 865.6984615 | N24: 917.6403692 | O24: 972.6987914
B27: Back to Introduction

Sheet SUNFIN - Full Cost Budget
A1: FULL COST ZAR BUDGET: RESEARCH BUDGET
A2: Principal Investigator | B2: ='COVER PAGE'!B2 -> Enter PI name
A3: Contract Number | B3: ='COVER PAGE'!B3 -> Enter S-number
A4: PROJECT NAME: | B4: ='COVER PAGE'!B1 -> Enter NAME
A5: FACULTY: | B5: ='COVER PAGE'!B14 -> 0
A6: Departmental levy | B6: =IF(IsDeptLevy="YES",DeptLevy,0) -> 0
A7: Faculty levy | B7: =IF(IsFactLevy="YES",FacultyLevy,0) -> 0
A8: ICRR | B8: =ICRR -> 0.2
A9: Total Overhead charges | B9: =SUM(B6:B8) -> 0.2
A10: Does the funder restrict/waive the indirect cost percentage? | B10: =IsIndirectRestricted -> NO
A11: Indirect Cost Recovery Rate funder restrictions | B11: =IF(IsIndirectRestricted ="No",0,Hide1) -> 0
A13: Foreign Currency Budget (as per CONTRACT) | B13: Currency | C13: ='COVER PAGE'!B22 -> 0
A15: Exchange Rate at time of Budget (2024) | C15: ='COVER PAGE'!B24 -> 0
A18: Tasks | B18: Currency Code | C18: Total | D18: Total | E18: =Year1 -> 2025 | F18: =Year1 -> 2025 | G18: =E18+1 -> 2026 | H18: =F18+1 -> 2026 | I18: =H18+1 -> 2027 | J18: 2026 | K18: 2027 | L18: 2027 | M18: 2028 | N18: 2028
C19: Raw Cost | D19: Burdened Cost | E19: Raw Cost | F19: Burdened Cost | G19: Raw Cost | H19: Burdened Cost | I19: Raw Cost | J19: Burdened Cost | K19: Raw Cost | L19: Burdened Cost | M19: Raw Cost | N19: Burdened Cost
A20: SU Personnel Costs | B20: ZAR | C20: =E20+G20+I20+K20+M20 -> 0 | D20: =F20+H20+J20+L20+N20 -> 0 | E20: ='FULL COST BUDGET'!G14 -> 0 | F20: =SUM($E20+($E20*($B$8/(1-$B$8)))) -> 0 | G20: ='FULL COST BUDGET'!J14 -> 0 | H20: =SUM($G20+($G20*($B$8/(1-$B$8)))) -> 0 | I20: ='FULL COST BUDGET'!M14 -> 0 | J20: =SUM($I20+($I20*($B$8/(1-$B$8)))) -> 0 | K20: ='FULL COST BUDGET'!P14 -> 0 | L20: =SUM($K20+($K20*($B$8/(1-$B$8)))) -> 0 | M20: ='FULL COST BUDGET'!S14 -> 0 | N20: =SUM($M20+($M20*($B$8/(1-$B$8)))) -> 0
A21: External Personnel Costs | B21: ZAR | C21: =E21+G21+I21+K21+M21 -> 0 | D21: =F21+H21+J21+L21+N21 -> 0 | E21: ='FULL COST BUDGET'!G19 -> 0 | F21: =SUM($E21+($E21*($B$8/(1-$B$8)))) -> 0 | G21: ='FULL COST BUDGET'!J19 -> 0 | H21: =SUM($G21+($G21*($B$8/(1-$B$8)))) -> 0 | I21: ='FULL COST BUDGET'!M19 -> 0 | J21: =SUM($I21+($I21*($B$8/(1-$B$8)))) -> 0 | K21: ='FULL COST BUDGET'!P19 -> 0 | L21: =SUM($K21+($K21*($B$8/(1-$B$8)))) -> 0 | M21: ='FULL COST BUDGET'!S19 -> 0 | N21: =SUM($M21+($M21*($B$8/(1-$B$8)))) -> 0
A22: Total Personnel Costs | B22: ZAR | C22: =SUM(C20:C21) -> 0 | D22: =SUM(D20:D21) -> 0 | E22: =SUM(E20:E21) -> 0 | F22: =SUM(F20:F21) -> 0 | G22: =SUM(G20:G21) -> 0 | H22: 0 | I22: =SUM(I20:I21) -> 0 | J22: 0 | K22: =SUM(K20:K21) -> 0 | L22: 0 | M22: =SUM(M20:M21) -> 0 | N22: 0
A23: Equipment | B23: ZAR | C23: =E23+G23+I23+K23+M23 -> 0 | D23: =F23+H23+J23+L23+N23 -> 0 | E23: ='FULL COST BUDGET'!G26 -> 0 | F23: =IF('FULL COST BUDGET'!G26-'FULL COST BUDGET'!G27,('FULL COST BUDGET'!G26-'FULL COST BUDGET'!G27)*($B$8/(1-$B$8)),0)+('FULL COST BUDGET'!G26) -> 0 | G23: ='FULL COST BUDGET'!J26 -> 0 | H23: =IF('FULL COST BUDGET'!J26-'FULL COST BUDGET'!J27,('FULL COST BUDGET'!J26-'FULL COST BUDGET'!J27)*($B$8/(1-$B$8)),0)+('FULL COST BUDGET'!J26) -> 0 | I23: ='FULL COST BUDGET'!M26 -> 0 | J23: =IF('FULL COST BUDGET'!M26-'FULL COST BUDGET'!M27,('FULL COST BUDGET'!M26-'FULL COST BUDGET'!M27)*($B$8/(1-$B$8)),0)+('FULL COST BUDGET'!M26) -> 0 | K23: ='FULL COST BUDGET'!P26 -> 0 | L23: =IF('FULL COST BUDGET'!P26-'FULL COST BUDGET'!P27,('FULL COST BUDGET'!P26-'FULL COST BUDGET'!P27)*($B$8/(1-$B$8)),0)+('FULL COST BUDGET'!P26) -> 0 | M23: ='FULL COST BUDGET'!S26 -> 0 | N23: =IF('FULL COST BUDGET'!S26-'FULL COST BUDGET'!S27,('FULL COST BUDGET'!S26-'FULL COST BUDGET'!S27)*($B$8/(1-$B$8)),0)+('FULL COST BUDGET'!S26) -> 0
A24: Running Costs | B24: ZAR | C24: 0 | D24: 0 | E24: ='FULL COST BUDGET'!G47 -> 0 | F24: =SUM($E24+($E24*($B$8/(1-$B$8)))) -> 0 | G24: ='FULL COST BUDGET'!J47 -> 0 | H24: =SUM($G24+($G24*($B$8/(1-$B$8)))) -> 0 | I24: ='FULL COST BUDGET'!M47 -> 0 | J24: =SUM($I24+($I24*($B$8/(1-$B$8)))) -> 0 | K24: ='FULL COST BUDGET'!P47 -> 0 | L24: =SUM($K24+($K24*($B$8/(1-$B$8)))) -> 0 | M24: ='FULL COST BUDGET'!S47 -> 0 | N24: =SUM($M24+($M24*($B$8/(1-$B$8)))) -> 0
A25: Audit Fees | B25: ZAR | C25: 0 | D25: 0 | E25: ='FULL COST BUDGET'!G50 -> 0 | F25: =SUM($E25+($E25*($B$8/(1-$B$8)))) -> 0 | G25: ='FULL COST BUDGET'!J50 -> 0 | H25: 0 | I25: ='FULL COST BUDGET'!M50 -> 0 | J25: 0 | K25: ='FULL COST BUDGET'!P50 -> 0 | L25: 0 | M25: ='FULL COST BUDGET'!S50 -> 0 | N25: 0
A26: Travel | B26: ZAR | C26: 0 | D26: 0 | E26: ='FULL COST BUDGET'!G59 -> 0 | F26: =SUM($E26+($E26*($B$8/(1-$B$8)))) -> 0 | G26: ='FULL COST BUDGET'!J59 -> 0 | H26: 0 | I26: ='FULL COST BUDGET'!M59 -> 0 | J26: 0 | K26: ='FULL COST BUDGET'!P59 -> 0 | L26: 0 | M26: ='FULL COST BUDGET'!S59 -> 0 | N26: 0
A27: Other/Flowthrough Costs | B27: ZAR | C27: 0 | D27: 0 | E27: ='FULL COST BUDGET'!G65 -> 0 | F27: =SUM($E27+($E27*($B$8/(1-$B$8)))) -> 0 | G27: ='FULL COST BUDGET'!J65 -> 0 | H27: 0 | I27: ='FULL COST BUDGET'!M65 -> 0 | J27: 0 | K27: ='FULL COST BUDGET'!P65 -> 0 | L27: 0 | M27: ='FULL COST BUDGET'!S65 -> 0 | N27: 0
A28: Departmental levy | B28: ZAR | C28: 0 | D28: 0 | E28: ='FULL COST BUDGET'!G78 -> 0 | F28: =SUM($E28+($E28*($B$8/(1-$B$8)))) -> 0 | G28: ='FULL COST BUDGET'!J78 -> 0 | H28: 0 | I28: ='FULL COST BUDGET'!M78 -> 0 | J28: 0 | K28: ='FULL COST BUDGET'!P78 -> 0 | L28: 0 | M28: ='FULL COST BUDGET'!S78 -> 0 | N28: 0
A29: Faculty Levy | B29: ZAR | C29: 0 | D29: 0 | E29: ='FULL COST BUDGET'!G79 -> 0 | F29: =SUM($E29+($E29*($B$8/(1-$B$8)))) -> 0 | G29: ='FULL COST BUDGET'!J79 -> 0 | H29: 0 | I29: ='FULL COST BUDGET'!M79 -> 0 | J29: 0 | K29: ='FULL COST BUDGET'!P79 -> 0 | L29: 0 | M29: ='FULL COST BUDGET'!S79 -> 0 | N29: 0
A30: IP Levy | B30: ZAR | C30: 0 | D30: 0 | E30: ='FULL COST BUDGET'!G89 -> 0 | F30: =SUM($E30+($E30*($B$8/0.7))) -> 0 | G30: ='FULL COST BUDGET'!J89 -> 0 | H30: =G30 -> 0 | I30: ='FULL COST BUDGET'!M89 -> 0 | J30: =I30 -> 0 | K30: ='FULL COST BUDGET'!P89 -> 0 | L30: =K30 -> 0 | M30: ='FULL COST BUDGET'!S89 -> 0 | N30: =M30 -> 0
A31: Bursaries | B31: ZAR | C31: 0 | D31: 0 | E31: ='FULL COST BUDGET'!G100 -> 0 | F31: =E31 -> 0 | G31: ='FULL COST BUDGET'!J100 -> 0 | H31: =G31 -> 0 | I31: ='FULL COST BUDGET'!M100 -> 0 | J31: =I31 -> 0 | K31: ='FULL COST BUDGET'!P100 -> 0 | L31: =K31 -> 0 | M31: ='FULL COST BUDGET'!S100 -> 0 | N31: =M31 -> 0
A32: Total Cost | C32: =SUM(C22:C31) -> 0 | D32: =SUM(D22:D31) -> 0 | E32: =SUM(E22:E31) -> 0 | F32: 0 | G32: 0 | H32: 0 | I32: 0 | J32: 0 | K32: 0 | L32: 0 | M32: 0 | N32: 0
A34: TOTAL FULL COST BUDGET | C34: ='FULL COST BUDGET'!T82+'FULL COST BUDGET'!T100 -> 0 | D34: ='FULL COST BUDGET'!T91+'FULL COST BUDGET'!T100 -> 0 | E34: ='FULL COST BUDGET'!G82+'FULL COST BUDGET'!G100 -> 0 | F34: ='FULL COST BUDGET'!G91+'FULL COST BUDGET'!G100 -> 0 | G34: ='FULL COST BUDGET'!J82+'FULL COST BUDGET'!J100 -> 0 | H34: ='FULL COST BUDGET'!J91+'FULL COST BUDGET'!J100 -> 0 | I34: ='FULL COST BUDGET'!M82+'FULL COST BUDGET'!M100 -> 0 | J34: ='FULL COST BUDGET'!M91+'FULL COST BUDGET'!M100 -> 0 | K34: ='FULL COST BUDGET'!P82+'FULL COST BUDGET'!P100 -> 0 | L34: ='FULL COST BUDGET'!P91+'FULL COST BUDGET'!P100 -> 0 | M34: ='FULL COST BUDGET'!S82+'FULL COST BUDGET'!S100 -> 0 | N34: ='FULL COST BUDGET'!S91+'FULL COST BUDGET'!S100 -> 0
A35: VARIANCE | C35: =C34-C32 -> 0 | D35: =D34-D32 -> 0 | E35: 0 | F35: 0 | G35: 0 | H35: 0 | I35: 0 | J35: 0 | K35: 0 | L35: 0 | M35: 0 | N35: 0

Sheet SUNFIN - Contract budget
A1: CONTRACT PRICE ZAR BUDGET: RESEARCH BUDGET
A2: Principal Investigator | B2: ='COVER PAGE'!B2 -> Enter PI name
A3: Contract Number | B3: ='COVER PAGE'!B3 -> Enter S-number
A4: PROJECT NAME: | B4: ='COVER PAGE'!B1 -> Enter NAME
A5: FACULTY: | B5: ='COVER PAGE'!B14 -> 0
A6: Departmental levy | B6: =IF(IsDeptLevy="YES",DeptLevy,0) -> 0
A7: Faculty levy | B7: =IF(IsFactLevy="YES",FacultyLevy,0) -> 0
A8: ICRR | B8: =IF(IsIndirectRestricted="Yes",Hide1,ICRR) -> 0.2
A9: Total Overhead charges | B9: =SUM(B6:B8) -> 0.2
A10: Does the funder restrict the indirect cost percentage allowed? | B10: =IsIndirectRestricted -> NO
A11: Indirect Cost Recovery Rate funder restrictions | B11: =IF(IsIndirectRestricted ="No",0,Hide1) -> 0
A13: Foreign Currency Budget (as per CONTRACT) | B13: Currency | C13: ='COVER PAGE'!B22 -> 0
A15: Exchange Rate at time of Budget (2024) | C15: ='COVER PAGE'!B24 -> 0
A18: Tasks | B18: Currency Code | C18: Total | D18: Total | E18: =Year1 -> 2025 | F18: =Year1 -> 2025 | G18: =E18+1 -> 2026 | H18: =F18+1 -> 2026 | I18: =H18+1 -> 2027 | J18: 2026 | K18: 2027 | L18: 2027 | M18: 2028 | N18: 2028
C19: Raw Cost | D19: Burdened Cost | E19: Raw Cost | F19: Burdened Cost | G19: Raw Cost | H19: Burdened Cost | I19: Raw Cost | J19: Burdened Cost | K19: Raw Cost | L19: Burdened Cost | M19: Raw Cost | N19: Burdened Cost
A20: SU Personnel Costs | B20: ZAR | C20: =E20+G20+I20+K20+M20 -> 0 | D20: =F20+H20+J20+L20+N20 -> 0 | E20: ='CONTRACT PRICE ZAR'!G17 -> 0 | F20: =SUM($E20+($E20*($B$8/(1-$B$8)))) -> 0 | G20: ='CONTRACT PRICE ZAR'!J17 -> 0 | H20: =SUM($G20+($G20*($B$8/(1-$B$8)))) -> 0 | I20: ='CONTRACT PRICE ZAR'!M17 -> 0 | J20: =SUM($I20+($I20*($B$8/(1-$B$8)))) -> 0 | K20: ='CONTRACT PRICE ZAR'!P17 -> 0 | L20: =SUM($K20+($K20*($B$8/(1-$B$8)))) -> 0 | M20: ='CONTRACT PRICE ZAR'!S17 -> 0 | N20: =SUM($M20+($M20*($B$8/(1-$B$8)))) -> 0
A21: External Personnel Costs | B21: ZAR | C21: =E21+G21+I21+K21+M21 -> 0 | D21: =F21+H21+J21+L21+N21 -> 0 | E21: ='CONTRACT PRICE ZAR'!G22 -> 0 | F21: =SUM($E21+($E21*($B$8/(1-$B$8)))) -> 0 | G21: ='CONTRACT PRICE ZAR'!J22 -> 0 | H21: =SUM($G21+($G21*($B$8/(1-$B$8)))) -> 0 | I21: ='CONTRACT PRICE ZAR'!M22 -> 0 | J21: =SUM($I21+($I21*($B$8/(1-$B$8)))) -> 0 | K21: ='CONTRACT PRICE ZAR'!P22 -> 0 | L21: =SUM($K21+($K21*($B$8/(1-$B$8)))) -> 0 | M21: ='CONTRACT PRICE ZAR'!S22 -> 0 | N21: =SUM($M21+($M21*($B$8/(1-$B$8)))) -> 0
A22: Total Personnel Costs | B22: ZAR | C22: =SUM(C20:C21) -> 0 | D22: =SUM(D20:D21) -> 0 | E22: =SUM(E20:E21) -> 0 | F22: =SUM(F20:F21) -> 0 | G22: =SUM(G20:G21) -> 0 | H22: =SUM(H20:H21) -> 0 | I22: =SUM(I20:I21) -> 0 | J22: =SUM(J20:J21) -> 0 | K22: =SUM(K20:K21) -> 0 | L22: =SUM(L20:L21) -> 0 | M22: =SUM(M20:M21) -> 0 | N22: =SUM(N20:N21) -> 0
A23: Equipment | B23: ZAR | C23: =E23+G23+I23+K23+M23 -> 0 | D23: =F23+H23+J23+L23+N23 -> 0 | E23: ='CONTRACT PRICE ZAR'!G29 -> 0 | F23: =IF('CONTRACT PRICE ZAR'!G29-'CONTRACT PRICE ZAR'!G30,('CONTRACT PRICE ZAR'!G29-'CONTRACT PRICE ZAR'!G30)*($B$8/(1-$B$8))+('CONTRACT PRICE ZAR'!G29),0) -> 0 | G23: ='CONTRACT PRICE ZAR'!J29 -> 0 | H23: =IF('CONTRACT PRICE ZAR'!J29-'CONTRACT PRICE ZAR'!J30,('CONTRACT PRICE ZAR'!J29-'CONTRACT PRICE ZAR'!J30)*($B$8/(1-$B$8)),+('CONTRACT PRICE ZAR'!J29)) -> 0 | I23: ='CONTRACT PRICE ZAR'!M29 -> 0 | J23: =IF('CONTRACT PRICE ZAR'!M29-'CONTRACT PRICE ZAR'!M30,('CONTRACT PRICE ZAR'!M29-'CONTRACT PRICE ZAR'!M30)*($B$8/(1-$B$8)),+('CONTRACT PRICE ZAR'!M29)) -> 0 | K23: ='CONTRACT PRICE ZAR'!P29 -> 0 | L23: =IF('CONTRACT PRICE ZAR'!P29-'CONTRACT PRICE ZAR'!P30,('CONTRACT PRICE ZAR'!P29-'CONTRACT PRICE ZAR'!P30)*($B$8/(1-$B$8)),)+('CONTRACT PRICE ZAR'!P29) -> 0 | M23: ='CONTRACT PRICE ZAR'!S29 -> 0 | N23: =IF('CONTRACT PRICE ZAR'!S29-'CONTRACT PRICE ZAR'!S30,('CONTRACT PRICE ZAR'!S29-'CONTRACT PRICE ZAR'!S30)*($B$8/(1-$B$8)),)+('CONTRACT PRICE ZAR'!S29) -> 0
A24: Running Costs | B24: ZAR | C24: 0 | D24: =F24+H24+J24+L24+N24 -> 0 | E24: ='CONTRACT PRICE ZAR'!G50 -> 0 | F24: =SUM($E24+($E24*($B$8/(1-$B$8)))) -> 0 | G24: ='CONTRACT PRICE ZAR'!J50 -> 0 | H24: =SUM($G24+($G24*($B$8/(1-$B$8)))) -> 0 | I24: ='CONTRACT PRICE ZAR'!M50 -> 0 | J24: =SUM($I24+($I24*($B$8/(1-$B$8)))) -> 0 | K24: ='CONTRACT PRICE ZAR'!P50 -> 0 | L24: =SUM($K24+($K24*($B$8/(1-$B$8)))) -> 0 | M24: ='CONTRACT PRICE ZAR'!S50 -> 0 | N24: =SUM($M24+($M24*($B$8/(1-$B$8)))) -> 0
A25: Audit Fees | B25: ZAR | C25: 0 | D25: 0 | E25: ='CONTRACT PRICE ZAR'!G53 -> 0 | F25: 0 | G25: ='CONTRACT PRICE ZAR'!J53 -> 0 | H25: 0 | I25: ='CONTRACT PRICE ZAR'!M53 -> 0 | J25: 0 | K25: ='CONTRACT PRICE ZAR'!P53 -> 0 | L25: 0 | M25: ='CONTRACT PRICE ZAR'!S53 -> 0 | N25: 0
A26: Travel | B26: ZAR | C26: 0 | D26: 0 | E26: ='CONTRACT PRICE ZAR'!G62 -> 0 | F26: 0 | G26: ='CONTRACT PRICE ZAR'!J62 -> 0 | H26: 0 | I26: ='CONTRACT PRICE ZAR'!M62 -> 0 | J26: 0 | K26: ='CONTRACT PRICE ZAR'!P62 -> 0 | L26: 0 | M26: ='CONTRACT PRICE ZAR'!S62 -> 0 | N26: 0
A27: Other/Flowthrough Costs | B27: ZAR | C27: 0 | D27: 0 | E27: ='CONTRACT PRICE ZAR'!G68 -> 0 | F27: 0 | G27: ='CONTRACT PRICE ZAR'!J68 -> 0 | H27: 0 | I27: ='CONTRACT PRICE ZAR'!M68 -> 0 | J27: 0 | K27: ='CONTRACT PRICE ZAR'!P68 -> 0 | L27: 0 | M27: ='CONTRACT PRICE ZAR'!S68 -> 0 | N27: 0
A28: Departmental levy | B28: ZAR | C28: 0 | D28: 0 | E28: ='CONTRACT PRICE ZAR'!G81 -> 0 | F28: 0 | G28: ='CONTRACT PRICE ZAR'!J81 -> 0 | H28: 0 | I28: ='CONTRACT PRICE ZAR'!M81 -> 0 | J28: 0 | K28: ='CONTRACT PRICE ZAR'!P81 -> 0 | L28: 0 | M28: ='CONTRACT PRICE ZAR'!S81 -> 0 | N28: 0
A29: Faculty Levy | B29: ZAR | C29: 0 | D29: 0 | E29: ='CONTRACT PRICE ZAR'!G82 -> 0 | F29: 0 | G29: ='CONTRACT PRICE ZAR'!J82 -> 0 | H29: 0 | I29: ='CONTRACT PRICE ZAR'!M82 -> 0 | J29: 0 | K29: ='CONTRACT PRICE ZAR'!P82 -> 0 | L29: 0 | M29: ='CONTRACT PRICE ZAR'!S82 -> 0 | N29: 0
A30: IP Levy | B30: ZAR | C30: 0 | D30: 0 | E30: ='CONTRACT PRICE ZAR'!G93 -> 0 | F30: =E30 -> 0 | G30: ='CONTRACT PRICE ZAR'!J93 -> 0 | H30: =G30 -> 0 | I30: ='CONTRACT PRICE ZAR'!M93 -> 0 | J30: =I30 -> 0 | K30: ='CONTRACT PRICE ZAR'!P93 -> 0 | L30: =K30 -> 0 | M30: ='CONTRACT PRICE ZAR'!S93 -> 0 | N30: =M30 -> 0
A31: Bursaries | B31: ZAR | C31: 0 | D31: 0 | E31: ='CONTRACT PRICE ZAR'!G103 -> 0 | F31: =E31 -> 0 | G31: ='CONTRACT PRICE ZAR'!J103 -> 0 | H31: =G31 -> 0 | I31: ='CONTRACT PRICE ZAR'!M103 -> 0 | J31: =I31 -> 0 | K31: ='CONTRACT PRICE ZAR'!P103 -> 0 | L31: =K31 -> 0 | M31: ='CONTRACT PRICE ZAR'!S103 -> 0 | N31: =M31 -> 0
A32: Total Cost | C32: =SUM(C22:C31) -> 0 | D32: =SUM(D22:D31) -> 0 | E32: =SUM(E22:E31) -> 0 | F32: 0 | G32: =SUM(G22:G31) -> 0 | H32: =SUM(H22:H31) -> 0 | I32: =SUM(I22:I31) -> 0 | J32: =SUM(J22:J31) -> 0 | K32: =SUM(K22:K31) -> 0 | L32: =SUM(L22:L31) -> 0 | M32: =SUM(M22:M31) -> 0 | N32: =SUM(N22:N31) -> 0
A34: TOTAL CONTRACT BUDGET | C34: ='CONTRACT PRICE ZAR'!T85+'CONTRACT PRICE ZAR'!T93+'CONTRACT PRICE ZAR'!T103 -> 0 | D34: ='CONTRACT PRICE ZAR'!T95+'CONTRACT PRICE ZAR'!T103 -> 0 | E34: ='CONTRACT PRICE ZAR'!G85+'CONTRACT PRICE ZAR'!G93+'CONTRACT PRICE ZAR'!G103 -> 0 | F34: ='CONTRACT PRICE ZAR'!G95+'CONTRACT PRICE ZAR'!G103 -> 0 | G34: ='CONTRACT PRICE ZAR'!J85+'CONTRACT PRICE ZAR'!J93+'CONTRACT PRICE ZAR'!J103 -> 0 | H34: ='CONTRACT PRICE ZAR'!J95+'CONTRACT PRICE ZAR'!J103 -> 0 | I34: ='CONTRACT PRICE ZAR'!M85+'CONTRACT PRICE ZAR'!M93+'CONTRACT PRICE ZAR'!M103 -> 0 | J34: ='CONTRACT PRICE ZAR'!M95+'CONTRACT PRICE ZAR'!M103 -> 0 | K34: ='CONTRACT PRICE ZAR'!P85+'CONTRACT PRICE ZAR'!P93+'CONTRACT PRICE ZAR'!P103 -> 0 | L34: ='CONTRACT PRICE ZAR'!P95+'CONTRACT PRICE ZAR'!P103 -> 0 | M34: ='CONTRACT PRICE ZAR'!S85+'CONTRACT PRICE ZAR'!S93+'CONTRACT PRICE ZAR'!S103 -> 0 | N34: ='CONTRACT PRICE ZAR'!S95+'CONTRACT PRICE ZAR'!S103 -> 0
A35: VARIANCE | C35: =C34-C32 -> 0 | D35: =D34-D32 -> 0 | E35: 0 | F35: 0 | G35: 0 | H35: 0 | I35: 0 | J35: 0 | K35: 0 | L35: 0 | M35: 0 | N35: 0
A37: Quick links:
A38: Introduction
A39: Deviation Report
A40: Contract Price FOREX
A41: Standard Quote for Client
A42: Summarised Quote for Client
A43: Detailed Quote for Client

Sheet SUNFIN - Forex Contract budget
A1: CONTRACT PRICE ZAR BUDGET: RESEARCH BUDGET
A3: Principal Investigator | B3: ='COVER PAGE'!B2 -> Enter PI name
A4: Contract Number | B4: ='COVER PAGE'!B3 -> Enter S-number
A5: PROJECT NAME: | B5: ='COVER PAGE'!B1 -> Enter NAME
A6: FACULTY: | B6: ='COVER PAGE'!B14 -> 0
A7: Departmental levy | B7: =IF(IsDeptLevy="YES",DeptLevy,0) -> 0
A8: Faculty levy | B8: =IF(IsFactLevy="YES",FacultyLevy,0) -> 0
A9: ICRR | B9: =IF(IsIndirectRestricted="Yes",Hide1,ICRR) -> 0.2
A10: Total Overhead charges | B10: =SUM(B7:B9) -> 0.2
A11: Does the funder restrict the indirect cost percentage allowed? | B11: =IsIndirectRestricted -> NO
A12: Indirect Cost Recovery Rate funder restrictions | B12: =IF(IsIndirectRestricted ="No",0,Hide1) -> 0
A14: Foreign Currency Budget (as per CONTRACT) | B14: Currency | C14: ='COVER PAGE'!B22 -> 0
A16: Exchange Rate at time of Budget (2024) | C16: ='COVER PAGE'!B24 -> 0
A19: Tasks | B19: Currency Code | C19: Total | D19: Total | E19: =Year1 -> 2025 | F19: =Year1 -> 2025 | G19: =E19+1 -> 2026 | H19: =F19+1 -> 2026 | I19: =H19+1 -> 2027 | J19: 2026 | K19: 2027 | L19: 2027 | M19: 2028 | N19: 2028
C20: Raw Cost | D20: Burdened Cost | E20: Raw Cost | F20: Burdened Cost | G20: Raw Cost | H20: Burdened Cost | I20: Raw Cost | J20: Burdened Cost | K20: Raw Cost | L20: Burdened Cost | M20: Raw Cost | N20: Burdened Cost
A21: SU Personnel Costs | B21: =ForeignCurr -> 0 | C21: =E21+G21+I21+K21+M21 ->  | D21: =F21+H21+J21+L21+N21 ->  | E21: =('CONTRACT PRICE ZAR'!G17)/$C$16 ->  | F21: =SUM($E21+($E21*($B$9/(1-$B$9)))) ->  | G21: =('CONTRACT PRICE ZAR'!J17)/$C$16 ->  | H21: =SUM($G21+($G21*($B$9/(1-$B$9)))) ->  | I21: =('CONTRACT PRICE ZAR'!M17)/$C$16 ->  | J21: =SUM($I21+($I21*($B$9/(1-$B$9)))) ->  | K21: =('CONTRACT PRICE ZAR'!P17)/$C$16 ->  | L21: =SUM($K21+($K21*($B$9/(1-$B$9)))) ->  | M21: =('CONTRACT PRICE ZAR'!S17)/$C$16 ->  | N21: =SUM($M21+($M21*($B$9/(1-$B$9)))) -> 
A22: External Personnel Costs | B22: 0 | C22: =E22+G22+I22+K22+M22 ->  | D22: =F22+H22+J22+L22+N22 ->  | E22: =('CONTRACT PRICE ZAR'!G22)/$C$16 ->  | F22: =SUM($E22+($E22*($B$9/(1-$B$9)))) ->  | G22: =('CONTRACT PRICE ZAR'!J22)/$C$16 ->  | H22: =SUM($G22+($G22*($B$9/(1-$B$9)))) ->  | I22: =('CONTRACT PRICE ZAR'!M22)/$C$16 ->  | J22: =SUM($I22+($I22*($B$9/(1-$B$9)))) ->  | K22: =('CONTRACT PRICE ZAR'!P22)/$C$16 ->  | L22: =SUM($K22+($K22*($B$9/(1-$B$9)))) ->  | M22: =('CONTRACT PRICE ZAR'!S22)/$C$16 ->  | N22: =SUM($M22+($M22*($B$9/(1-$B$9)))) -> 
A23: Total Personnel Costs | B23: 0 | C23: =SUM(C21:C22) ->  | D23: =SUM(D21:D22) ->  | E23: =SUM(E21:E22) ->  | F23: =SUM(F21:F22) ->  | G23: =SUM(G21:G22) ->  | I23: =SUM(I21:I22) ->  | K23: =SUM(K21:K22) ->  | M23: =SUM(M21:M22) -> 
A24: Equipment | B24: 0 | C24: =E24+G24+I24+K24+M24 ->  | D24: =F24+H24+J24+L24+N24 ->  | E24: ='CONTRACT PRICE FOREX'!D27 ->  | F24: =IF('CONTRACT PRICE FOREX'!D27-'CONTRACT PRICE FOREX'!D28,SUM('CONTRACT PRICE FOREX'!D27-'CONTRACT PRICE FOREX'!D28)*$B$9/(1-$B$9),'CONTRACT PRICE FOREX'!D27*($B$9/(1-$B$9)))+('CONTRACT PRICE FOREX'!D27) ->  | G24: =SUM('CONTRACT PRICE ZAR'!J29)/$C$16 ->  | H24: =IF('CONTRACT PRICE FOREX'!F27-'CONTRACT PRICE FOREX'!F28,SUM('CONTRACT PRICE FOREX'!F27-'CONTRACT PRICE FOREX'!F28)*$B$9/(1-$B$9),'CONTRACT PRICE FOREX'!F27*($B$9/(1-$B$9)))+('CONTRACT PRICE FOREX'!F27) ->  | I24: =SUM('CONTRACT PRICE ZAR'!M29)/$C$16 ->  | J24: =IF('CONTRACT PRICE FOREX'!H27-'CONTRACT PRICE FOREX'!H28,SUM('CONTRACT PRICE FOREX'!H27-'CONTRACT PRICE FOREX'!H28)*$B$9/(1-$B$9),'CONTRACT PRICE FOREX'!H27*($B$9/(1-$B$9)))+('CONTRACT PRICE FOREX'!H27) ->  | K24: =SUM('CONTRACT PRICE ZAR'!P29)/$C$16 ->  | L24: =IF('CONTRACT PRICE FOREX'!J27-'CONTRACT PRICE FOREX'!J28,SUM('CONTRACT PRICE FOREX'!J27-'CONTRACT PRICE FOREX'!J28)*$B$9/(1-$B$9),'CONTRACT PRICE FOREX'!J27*($B$9/(1-$B$9)))+('CONTRACT PRICE FOREX'!J27) ->  | M24: =SUM('CONTRACT PRICE ZAR'!S29)/$C$16 ->  | N24: =IF('CONTRACT PRICE FOREX'!L27-'CONTRACT PRICE FOREX'!L28,SUM('CONTRACT PRICE FOREX'!L27-'CONTRACT PRICE FOREX'!L28)*$B$9/(1-$B$9),'CONTRACT PRICE FOREX'!L27*($B$9/(1-$B$9)))+('CONTRACT PRICE FOREX'!L27) -> 
A25: Running Costs | B25: 0 | C25: =E25+G25+I25+K25+M25 ->  | E25: ='CONTRACT PRICE ZAR'!G50/$C$16 ->  | F25: =SUM($E25+($E25*($B$9/(1-$B$9)))) ->  | G25: ='CONTRACT PRICE ZAR'!J50/$C$16 ->  | H25: =SUM($G25+($G25*($B$9/(1-$B$9)))) ->  | I25: ='CONTRACT PRICE ZAR'!M50/$C$16 ->  | J25: =SUM($I25+($I25*($B$9/(1-$B$9)))) ->  | K25: ='CONTRACT PRICE ZAR'!P50/$C$16 ->  | L25: =SUM($K25+($K25*($B$9/(1-$B$9)))) ->  | M25: ='CONTRACT PRICE ZAR'!S50/$C$16 ->  | N25: =SUM($M25+($M25*($B$9/(1-$B$9)))) -> 
A26: Audit Fees | B26: 0 | E26: ='CONTRACT PRICE ZAR'!G53/$C$16 ->  | G26: ='CONTRACT PRICE ZAR'!J53/$C$16 ->  | I26: ='CONTRACT PRICE ZAR'!M53/$C$16 ->  | K26: ='CONTRACT PRICE ZAR'!P53/$C$16 ->  | M26: ='CONTRACT PRICE ZAR'!S53/$C$16 -> 
A27: Travel | B27: 0 | E27: ='CONTRACT PRICE ZAR'!G62/$C$16 ->  | G27: ='CONTRACT PRICE ZAR'!J62/$C$16 ->  | I27: ='CONTRACT PRICE ZAR'!M62/$C$16 ->  | K27: ='CONTRACT PRICE ZAR'!P62/$C$16 ->  | M27: ='CONTRACT PRICE ZAR'!S62/$C$16 -> 
A28: Other/Flowthrough Costs | B28: 0 | E28: ='CONTRACT PRICE ZAR'!G68/$C$16 ->  | G28: ='CONTRACT PRICE ZAR'!J68/$C$16 ->  | I28: ='CONTRACT PRICE ZAR'!M68/$C$16 ->  | K28: ='CONTRACT PRICE ZAR'!P68/$C$16 ->  | M28: ='CONTRACT PRICE ZAR'!S68/$C$16 -> 
A29: Departmental levy | B29: 0 | E29: ='CONTRACT PRICE ZAR'!G81/$C$16 ->  | G29: ='CONTRACT PRICE ZAR'!J81/$C$16 ->  | I29: ='CONTRACT PRICE ZAR'!M81/$C$16 ->  | K29: ='CONTRACT PRICE ZAR'!P81/$C$16 ->  | M29: ='CONTRACT PRICE ZAR'!S81/$C$16 -> 
A30: Faculty Levy | B30: 0 | E30: ='CONTRACT PRICE ZAR'!G82/$C$16 ->  | G30: ='CONTRACT PRICE ZAR'!J82/$C$16 ->  | I30: ='CONTRACT PRICE ZAR'!M82/$C$16 ->  | K30: ='CONTRACT PRICE ZAR'!P82/$C$16 ->  | M30: ='CONTRACT PRICE ZAR'!S82/$C$16 -> 
A31: IP Levy | B31: 0 | E31: ='CONTRACT PRICE ZAR'!G93/$C$16 ->  | F31: =E31 ->  | G31: ='CONTRACT PRICE ZAR'!J93/$C$16 ->  | H31: =G31 ->  | I31: ='CONTRACT PRICE ZAR'!M93/$C$16 ->  | J31: =I31 ->  | K31: ='CONTRACT PRICE ZAR'!P93/$C$16 ->  | L31: =K31 ->  | M31: ='CONTRACT PRICE ZAR'!S93/$C$16 ->  | N31: =M31 -> 
A32: Bursaries | B32: 0 | E32: ='CONTRACT PRICE ZAR'!G103/$C$16 ->  | F32: =E32 ->  | G32: ='CONTRACT PRICE ZAR'!J103/$C$16 ->  | H32: =G32 ->  | I32: ='CONTRACT PRICE ZAR'!M103/$C$16 ->  | J32: =I32 ->  | K32: ='CONTRACT PRICE ZAR'!P103/$C$16 ->  | L32: =K32 ->  | M32: ='CONTRACT PRICE ZAR'!S103/$C$16 ->  | N32: =M32 -> 
A33: Total Cost | C33: =SUM(C23:C32) ->  | D33: =SUM(D23:D32) ->  | E33: =SUM(E23:E32) -> 
A35: TOTAL FOREX CONTRACT BUDGET | C35: ='CONTRACT PRICE FOREX'!M95-'CONTRACT PRICE FOREX'!M78 ->  | D35: ='CONTRACT PRICE FOREX'!M95 ->  | E35: ='CONTRACT PRICE FOREX'!D95-'CONTRACT PRICE FOREX'!D78 ->  | F35: ='CONTRACT PRICE FOREX'!D95 ->  | G35: ='CONTRACT PRICE FOREX'!F95-'CONTRACT PRICE FOREX'!F78 ->  | H35: ='CONTRACT PRICE FOREX'!F95 ->  | I35: ='CONTRACT PRICE FOREX'!H95-'CONTRACT PRICE FOREX'!H78 ->  | J35: ='CONTRACT PRICE FOREX'!H95 ->  | K35: ='CONTRACT PRICE FOREX'!J95-'CONTRACT PRICE FOREX'!J78 ->  | L35: ='CONTRACT PRICE FOREX'!J95 ->  | M35: ='CONTRACT PRICE FOREX'!L95-'CONTRACT PRICE FOREX'!L78 ->  | N35: ='CONTRACT PRICE FOREX'!L95 -> 
A36: VARIANCE | C36: =C35-C33 ->  | D36: =D35-D33 -> 

Sheet TEMPLAAT (hidden)
C2: VOLKOSTE GOEDKEURING
C3: FULL COST APPROVAL
C5: KLIëNT NAAM/CLIENT NAME | E5: ='COVER PAGE'!B4 -> Enter funder
C8: PROJEK NAAM/PROJECT NAME | E8: ='COVER PAGE'!B1 -> Enter NAME
M9: =UPPER(E9) -> 
C11: NAVORSER/RESEARCHER | E11: ='COVER PAGE'!B2 -> Enter PI name
C14: DATUM/DATE | E14: =TODAY() -> 2025-04-22
C17: KONTRAK NO/CONTRACT NR | E17: ='COVER PAGE'!B3 -> Enter S-number
C20: KOSTEPUNT/COST CENTRE | E20: Please log a Jira to create a project . https://servicedesk.sun.ac.za/jira/plugins/servlet/theme/portal/35/create/733
C23: IKVK%/ICRR% | E23: =IF(IsIndirectRestricted="no",ICRR,Hide1) -> 0.2 | F23: =IF(IsIndirectRestricted="No","√","") -> √ | H23: ANDER/OTHER | I23: =IF(IsIndirectRestricted="Yes","√","") ->  | J23: Befondser Beperking/Funder Limitation
C26: BTW/VAT | E26: =Constants!K3 -> 0.155 | F26: =IF(IsForeignClient="no","√","") -> √ | H26: NULKOERS /ZERO RATED | I26: =IF(IsForeignClient="yes","√","") -> 
C29: REGSADVISEUR/LEGAL ADVISOR | E29: ='COVER PAGE'!B5 -> Select Legal Advisor
C32: VOLKOSTE BEGROTING/FULL COST BUDGET | E32: ='DEVIATION REPORT'!H99 -> 0
C35: KONTRAK BEDRAG/CONTRACT AMOUNT | E35: ='DEVIATION REPORT'!N99 -> 0
C38: NOTAS/NOTES:
C39: Bursaries | E39: ='DEVIATION REPORT'!N97 -> 0
C40: Foreign exchange rate | E40: =IF(IsForeignClient="no","",'COVER PAGE'!B24) -> 
C41: Foreign exchange currency | E41: =IF(IsForeignClient="no","",ForeignCurr) -> 
C42: Faculty levy | E42: ='DEVIATION REPORT'!N76 -> 0
C43: Department levy | E43: ='DEVIATION REPORT'!N75 -> 0
C44: IP levy | E44: ='DEVIATION REPORT'!N87 -> 0
C45: Please note that the budget was tested based on the information provided, should there be any deviations in the contract then budget needs to be re-tested on full cost.
C47: NIPMO Wet van toepassing (IE oordrag)/NIPMO Law applicable (IP transfer) | H47: JA /YES | I47: =IF('COVER PAGE'!B8 = 25%,"√","") ->  | K47: NEE / NO | L47: =IF('COVER PAGE'!B8 = 20%,"√","") -> √
C51: Kontrak en begroting voldoen aan Volkoste/Contract and the budget Full Cost Compliant | H51: JA /YES | I51: =IF(E32<=E35,"√","") -> √ | K51: NEE / NO | L51: =IF(E32>E35,"√","") -> 
C54: GOEDGEKEUR/APPROVED | H54: JA /YES | I54: =IF(I51 ="√","√","") -> √ | K54: NEE / NO | L54: =IF(L51 ="√","√","") -> 
C57: Gegewe inligting beskikbaar, word goedkeuring hiermee verleen.
C58: Given the information available, approval is hereby granted.
C59: Kind Regards | Vriendelike groete
C60: ='COVER PAGE'!B6 -> Select Accountant
C61: Full Cost Accountant | Volkoste Rekenmeester
C62: Financial Planning and Asset Management | Finansiële Beplanning en Bate Bestuur
